{"text_format":"1","workbook":"xlsx","n_sheets":13,"sheets":["HOME","Privacy Notice","Demographic Profile","Part II for P","Part II for HP","Part II for D","Part II-A","Part III","Summary","Survey Completed","IDP","data1","data2"],"not_rendered":{"charts":0,"images":4,"macros":1,"external_links":0,"defined_names":172,"comments":0,"pivot_tables":0},"unopened":[],"bounds":{"document_bytes":16777216,"sheet_cells":100000,"rows_first":2000,"rows_last":500,"rows_between":2000,"halvings":0,"cell_chars":16384,"cell_head_chars":4096},"cells_cut":0,"cells_raw":0,"read":"whole","date_system":"1900"}

{"sheet":"HOME","index":0,"n_rows":17,"n_cols":4,"rows_kept":17,"cut":false,"hidden":false,"merged":[[0,0,0,13],[16,4,16,6]]}
["ELECTRONIC SELF-ASSESSMENT TOOL (e-SAT)\nSY 2025-2028"]
[]
[]
[]
[]
[]
[]
[]
[]
[]
[]
[]
[]
[]
[]
[]
[null,null,null,"Select Career Stage:"]

{"sheet":"Privacy Notice","index":1,"n_rows":1,"n_cols":1,"rows_kept":1,"cut":false,"hidden":true,"merged":[[0,0,0,11]]}
["ELECTRONIC SELF-ASSESSMENT TOOL (e-SAT)\nSY 2025-2028"]

{"sheet":"Demographic Profile","index":2,"n_rows":131,"n_cols":24,"rows_kept":131,"cut":false,"hidden":true,"merged":[[0,1,0,18],[1,1,1,18],[2,1,2,18],[6,1,6,4],[6,5,6,8],[6,10,6,12],[6,13,6,14],[7,1,7,4],[7,5,7,8],[7,10,7,12],[7,13,7,14],[7,16,8,16],[8,1,8,4],[8,5,8,8],[8,10,8,12],[8,13,8,14],[9,1,9,4],[9,5,9,8],[9,10,9,12],[9,13,9,14],[10,1,10,4],[10,5,10,8],[10,10,10,12],[10,13,10,14],[24,7,25,15],[11,1,11,4],[11,5,11,8],[11,10,11,12],[11,13,11,14],[12,1,12,4],[12,5,12,8],[12,10,12,12],[12,13,12,14],[13,1,13,4],[13,5,13,8],[13,10,13,12],[13,13,13,14],[16,7,17,15],[31,7,32,15],[36,1,36,2],[36,7,37,15],[48,7,49,15],[62,7,63,15]]}
[null,"Electronic Self-Assessment Tool"]
[null,{"$f":"selected_career_stage&\" Teacher\"","v":" Teacher"},null,null,null,null,null,null,null,null,null,null,null,null,null,null,null,null,null,null,"CHECK DROPDOWN OPTIONS",null,null,"index"]
[null,"SY 2025-2028",null,null,null,null,null,null,null,null,null,null,null,null,null,null,null,null,null,null,{"$f":"CELL(\"address\",F7)","v":"$F$7"},{"$f":"IFERROR(IF(X3=FALSE,FALSE,X3>0),FALSE)","v":false},"regions_list",{"$f":"IFERROR(MATCH(TRUE,EXACT(INDIRECT(U3),INDIRECT(W3)),0),EXACT(INDIRECT(U3),INDIRECT(W3)))","v":false}]
[null,null,null,null,null,null,null,null,null,null,null,null,null,null,null,null,null,null,null,null,{"$f":"CELL(\"address\",F8)","v":"$F$8"},false,"_divlist",{"$f":"IFERROR(MATCH(TRUE,EXACT(INDIRECT(U4),INDIRECT(W4)),0),EXACT(INDIRECT(U4),INDIRECT(W4)))","v":{"$error":"#REF!"}}]
[null,"SCHOOL INFORMATION",null,null,null,null,null,null,null,null,"DEMOGRAPHIC PROFILE",null,null,null,null,null,null,null,null,null,{"$f":"CELL(\"address\",F12)","v":"$F$12"},{"$f":"IFERROR(IF(demographics_classification=data1!$K$19,TRUE,IF(X5=FALSE,FALSE,X5>0)),FALSE)","v":false},"school_type_list",{"$f":"IFERROR(MATCH(TRUE,EXACT(INDIRECT(U5),INDIRECT(W5)),0),EXACT(INDIRECT(U5),INDIRECT(W5)))","v":false}]
[null,null,null,null,null,null,null,null,null,null,null,null,null,null,null,null,null,null,null,null,{"$f":"CELL(\"address\",F13)","v":"$F$13"},{"$f":"IFERROR(IF(demographics_classification=data1!$K$19,TRUE,IF(X6=FALSE,FALSE,X6>0)),FALSE)","v":false},"school_size_list",{"$f":"IFERROR(MATCH(TRUE,EXACT(INDIRECT(U6),INDIRECT(W6)),0),EXACT(INDIRECT(U6),INDIRECT(W6)))","v":false}]
[null,"Region:",null,null,null,null,null,null,null,"*","Last Name:",null,null,null,null,"*","Number of Years in Teaching:",null,"*",null,{"$f":"CELL(\"address\",F14)","v":"$F$14"},{"$f":"IFERROR(IF(X7=FALSE,FALSE,X7>0),FALSE)","v":false},"curricular_classification_list",{"$f":"IFERROR(MATCH(TRUE,EXACT(INDIRECT(U7),INDIRECT(W7)),0),EXACT(INDIRECT(U7),INDIRECT(W7)))","v":false}]
[null,"Division:",null,null,null,null,null,null,null,"*","First Name:",null,null,null,null,"*","Highest Degree Obtained:",null,"*",null,{"$f":"CELL(\"address\",N11)","v":"$N$11"},false,{"$f":"IF(career_stage=\"HP\",\"HP_positions\",\"P_positions\")","v":{"$error":"#NAME?"}},{"$f":"IFERROR(MATCH(TRUE,EXACT(INDIRECT(U8),INDIRECT(W8)),0),EXACT(INDIRECT(U8),INDIRECT(W8)))","v":{"$error":"#NAME?"}}]
[null,"(optional for ALS-CLC) School ID:",null,null,null,null,null,null,null,"*","Middle Name:",null,null,null,null,null,null,null,null,null,{"$f":"CELL(\"address\",N12)","v":"$N$12"},false,"emp_status_list",{"$f":"IFERROR(MATCH(TRUE,EXACT(INDIRECT(U9),INDIRECT(W9)),0),EXACT(INDIRECT(U9),INDIRECT(W9)))","v":false}]
[null,"CLC / School Name:",null,null,null,null,null,null,null,{"$f":"IF($F$14=\"Community-based Learning Center\",\"\",\"*\")","v":"*"},"Employee ID:",null,null,null,null,"*","Level Taught:",null,"*",null,{"$f":"CELL(\"address\",N13)","v":"$N$13"},false,"age_list",{"$f":"IFERROR(MATCH(TRUE,EXACT(INDIRECT(U10),INDIRECT(W10)),0),EXACT(INDIRECT(U10),INDIRECT(W10)))","v":false}]
[null,"(optional for ALS-CLC) School Type:",null,null,null,null,null,null,null,"*","Position:",null,null,null,null,"*","DepEd Email Address:",null,"*",null,{"$f":"CELL(\"address\",N14)","v":"$N$14"},false,"sex_list",{"$f":"IFERROR(MATCH(TRUE,EXACT(INDIRECT(U11),INDIRECT(W11)),0),EXACT(INDIRECT(U11),INDIRECT(W11)))","v":false}]
[null,"(optional for ALS-CLC) School Size:",null,null,null,null,null,null,null,{"$f":"IF($F$14=\"Community-based Learning Center\",\"\",\"*\")","v":"*"},"Employment Status:",null,null,null,null,"*","TIN:",null,"*",null,{"$f":"CELL(\"address\",R7)","v":"$R$7"},false,"years_in_teaching",{"$f":"IFERROR(MATCH(TRUE,EXACT(INDIRECT(U12),INDIRECT(W12)),0),EXACT(INDIRECT(U12),INDIRECT(W12)))","v":false}]
[null,"Curricular Classification:",null,null,null,null,null,null,null,{"$f":"IF($F$14=\"Community-based Learning Center\",\"\",\"*\")","v":"*"},"Age:",null,null,null,null,"*",null,null,null,null,{"$f":"CELL(\"address\",R8)","v":"$R$8"},false,"degree_list",{"$f":"IFERROR(MATCH(TRUE,EXACT(INDIRECT(U13),INDIRECT(W13)),0),EXACT(INDIRECT(U13),INDIRECT(W13)))","v":false}]
[null,null,null,null,null,null,null,null,null,null,"Sex:",null,null,null,null,"*",null,null,null,null,{"$f":"CELL(\"address\",demographics_level)","v":"$R$10"},{"$f":"IFERROR(IF(X14=FALSE,FALSE,X14>0),FALSE)","v":false},{"$f":"VLOOKUP($F$14,curricular_classification_vlookup,2,FALSE)","v":{"$error":"#N/A"}},{"$f":"IFERROR(MATCH(TRUE,EXACT(INDIRECT(U14),INDIRECT(W14)),0),EXACT(INDIRECT(U14),INDIRECT(W14)))","v":{"$error":"#N/A"}}]
[null,"• For ALS, select Community-based Learning Center in the Curricular Classification field and leave optional school data fields blank (school ID, type, size) if the CLC is non-school-based."]
[null,"* Required"]
[null,null,null,null,null,null,null,"GRADE LEVEL(S) TAUGHT*\nPlease tick all the boxes that apply."]
[]
[null,null,null,null,null,null,null,null,"SPED",null,null,null,null,null,"Grade 4"]
[null,null,null,null,null,null,null,null,"Kindergarten",null,null,null,null,null,"Grade 5"]
[null,null,null,null,null,null,null,null,"Grade 1",null,null,null,null,null,"Grade 6"]
[null,null,null,null,null,null,null,null,"Grade 2",null,null,null,null,null,"Multigrade (2 or more grade levels in a class)"]
[null,null,null,null,null,null,null,null,"Grade 3",null,null,null,null,null,"   (if multigrade, select two or more grades)"]
[]
[null,null,null,null,null,null,null,"GRADE LEVEL(S) TAUGHT*\nPlease tick all the boxes that apply."]
[]
[null,null,null,null,null,null,null,null,"SPED",null,null,null,null,null,"Grade 9"]
[null,null,null,null,null,null,null,null,"Grade 7",null,null,null,null,null,"Grade 10"]
[null,null,null,null,null,null,null,null,"Grade 8",null,null,null,null,null,"Multigrade (2 or more grade levels in a class)"]
[null,null,null,null,null,null,null,null,null,null,null,null,null,null,"   (if multigrade, select two or more grades)"]
[]
[null,null,null,null,null,null,null,"GRADE LEVEL(S) TAUGHT*\nPlease tick all the boxes that apply."]
[]
[null,null,null,null,null,null,null,null,"Grade 11",null,null,null,null,null,"Multigrade (2 or more grade levels in a class)"]
[null,null,null,null,null,null,null,null,"Grade 12",null,null,null,null,null,"   (if multigrade, select two or more grades)"]
[]
[null,null,null,null,null,null,null,"AREA(S) OF SPECIALIZATION*\nPlease tick all the boxes that apply."]
[]
[null,null,null,null,null,null,null,null,"English",null,null,null,null,null,"Values Education"]
[null,null,null,null,null,null,null,null,"Filipino",null,null,null,null,null,"SPED"]
[null,null,null,null,null,null,null,null,"Mathematics",null,null,null,null,null,"Music"]
[null,null,null,null,null,null,null,null,"General Science",null,null,null,null,null,"Arts"]
[null,null,null,null,null,null,null,null,"Biology",null,null,null,null,null,"Physical Education"]
[null,null,null,null,null,null,null,null,"Chemistry",null,null,null,null,null,"Health"]
[null,null,null,null,null,null,null,null,"Physics",null,null,null,null,null,"TLE/HE/TVL"]
[null,null,null,null,null,null,null,null,"Social Science",null,null,null,null,null,"Others (specify)"]
[null,null,null,null,null,null,null,null,"Early Childhood Education",null,null,null,null,null,null,null,null,null,null,null,null,{"$f":"R81","v":true}]
[]
[null,null,null,null,null,null,null,"SUBJECT(S) TAUGHT*\nPlease tick all the boxes that apply."]
[]
[null,null,null,null,null,null,null,null,"All Subjects",null,null,null,null,null,"PE and Health"]
[null,null,null,null,null,null,null,null,"MTB-MLE",null,null,null,null,null,"Makabansa"]
[null,null,null,null,null,null,null,null,"Madrasah ALIVE",null,null,null,null,null,"Languages / Reading and Literacy"]
[null,null,null,null,null,null,null,null,"Filipino",null,null,null,null,null,"TLE/EPP-HE"]
[null,null,null,null,null,null,null,null,"English",null,null,null,null,null,"TLE/EPP-LE/Tech-Voc"]
[null,null,null,null,null,null,null,null,"Mathematics",null,null,null,null,null,"ALS"]
[null,null,null,null,null,null,null,null,"Science / Physical and Natural Env.",null,null,null,null,null,"IPED"]
[null,null,null,null,null,null,null,null,"Araling Panlipunan",null,null,null,null,null,"Special Programs"]
[null,null,null,null,null,null,null,null,"GMRC / EsP",null,null,null,null,null,"   (i.e. Journalism and Foreign Language)"]
[null,null,null,null,null,null,null,null,"MAPEH",null,null,null,null,null,"Others (specify)"]
[null,null,null,null,null,null,null,null,"Music and Arts",null,null,null,null,null,null,null,null,null,null,null,null,{"$f":"R82","v":true}]
[]
[null,null,null,null,null,null,null,"STRAND(S) TAUGHT*\nPlease tick all the boxes that apply."]
[]
[null,null,null,null,null,null,null,null,"ACAD-ABM",null,null,null,null,null,"TVL-HE"]
[null,null,null,null,null,null,null,null,"ACAD-HUMSS",null,null,null,null,null,"TVL-ICT"]
[null,null,null,null,null,null,null,null,"ACAD-STEM",null,null,null,null,null,"TVL-Industrial Arts"]
[null,null,null,null,null,null,null,null,"ACAD-General Academic",null,null,null,null,null,"TVL-Maritime"]
[null,null,null,null,null,null,null,null,"ACAD-Pre-Baccalaureate Maritime",null,null,null,null,null,"Sports"]
[null,null,null,null,null,null,null,null,"TVL-Agri-Fishery",null,null,null,null,null,"Arts & Design"]
[]
[null,null,"all valid?",null,"name_locked"]
[null,null,{"$f":"AND(V3:V14,F124:F131,N124:N126,N128:N131,R124:R127,R129,R76:R79,R81:R82)","v":{"$error":"#NAME?"}},null,false]
[null,null,"save attempt"]
[null,null,false]
[null,null,null,"area of specialization",null,null,null,null,null,null,null,null,null,"subjects taught",null,null,"Grade Level(s) Taught",{"$f":"LEN(E121)>0","v":false}]
[null,null,false,null,"English",{"$f":"IF(C77=TRUE,E77,\"\")","v":""},null,null,null,null,null,null,false,null,"All Subjects",{"$f":"IF(M77=TRUE,O77,\"\")","v":""},"Area(s) of Specialization",{"$f":"LEN(E98)>0","v":{"$error":"#NAME?"}}]
[null,null,false,null,"Filipino",{"$f":"IF(C78=FALSE,F77,IF(F77=\"\",E78,F77&\", \"&E78))","v":""},null,null,null,null,null,null,false,null,"MTB-MLE",{"$f":"IF(M78=FALSE,P77,IF(P77=\"\",O78,P77&\", \"&O78))","v":""},"Subject(s) Taught",{"$f":"IF(LOWER(TRIM(demographics_level))=\"senior high school\",TRUE,LEN(O98)>0)","v":false}]
[null,null,false,null,"Mathematics",{"$f":"IF(C79=FALSE,F78,IF(F78=\"\",E79,F78&\", \"&E79))","v":""},null,null,null,null,null,null,false,null,"Madrasah ALIVE",{"$f":"IF(M79=FALSE,P78,IF(P78=\"\",O79,P78&\", \"&O79))","v":""},"Strands Taught",{"$f":"IF(LOWER(TRIM(demographics_level))=\"senior high school\",LEN(O115)>0,TRUE)","v":true}]
[null,null,false,null,"General Science","",null,null,null,null,null,null,false,null,"Filipino",""]
[null,null,false,null,"Biology","",null,null,null,null,null,null,false,null,"English","",{"$f":"CELL(\"address\",O47)","v":"$O$47"},{"$f":"IF(AND(C93,LEN(TRIM(INDIRECT(Q81)))=0),FALSE,TRUE)","v":true}]
[null,null,false,null,"Chemistry","",null,null,null,null,null,null,false,null,"Mathematics","",{"$f":"CELL(\"address\",O61)","v":"$O$61"},{"$f":"IF(LOWER(TRIM($R$10))=\"senior high school\",TRUE,IF(AND(M96,LEN(TRIM(INDIRECT(Q82)))=0),FALSE,TRUE))","v":true}]
[null,null,false,null,"Physics","",null,null,null,null,null,null,false,null,"Science / Physical and Natural Environment",""]
[null,null,false,null,"Social Science","",null,null,null,null,null,null,false,null,"Araling Panlipunan",""]
[null,null,false,null,"Early Childhood Education","",null,null,null,null,null,null,false,null,"GMRC / EsP",""]
[null,null,false,null,"Values Education","",null,null,null,null,null,null,false,null,"MAPEH",""]
[null,null,false,null,"SPED","",null,null,null,null,null,null,false,null,"Music and Arts",""]
[null,null,false,null,"Music","",null,null,null,null,null,null,false,null,"PE and Health",""]
[null,null,false,null,"Arts","",null,null,null,null,null,null,false,null,"Makabansa",""]
[null,null,false,null,"Physical Education","",null,null,null,null,null,null,false,null,"Languages / Reading and Literacy",""]
[null,null,false,null,"Health","",null,null,null,null,null,null,false,null,"TLE/EPP-HE",""]
[null,null,false,null,"TLE/HE/TVL","",null,null,null,null,null,null,false,null,"TLE/EPP-LE/Tech-Voc",""]
[null,null,false,null,{"$f":"IF(ISBLANK(O47),\"\",O47)","v":""},"",null,null,null,null,null,null,false,null,"ALS",""]
[null,null,null,null,null,null,null,null,null,null,null,null,false,null,"IPED",""]
[null,null,null,null,null,null,null,null,null,null,null,null,false,null,"Special Programs",""]
[null,null,null,null,null,null,null,null,null,null,null,null,false,null,{"$f":"IF(ISBLANK(O61),\"\",O61)","v":""},""]
[]
[null,null,null,null,{"$f":"Lookup_concat(TRUE,C77:C93,E77:E93)","v":{"$error":"#NAME?"}},null,null,null,null,null,null,null,null,null,{"$f":"IFERROR(IF(LOWER(TRIM($F$14))=\"community-based learning center\",\"ALS\",IF(LOWER(TRIM($R$10))=\"kindergarten\",\"Kindergarten\",Lookup_concat(TRUE,M77:M96,O77:O96))),\"\")","v":""}]
[]
[]
[null,null,null,null,"grades taught",null,null,null,null,null,null,null,null,"strands taught"]
[null,null,false,null,"SPED",null,null,null,null,null,null,null,false,null,"ACAD-ABM",{"$f":"IF(M102=TRUE,O102,\"\")","v":""}]
[null,null,false,null,"Kindergarten",null,null,null,null,null,null,null,false,null,"ACAD-HUMSS",{"$f":"IF(M103=FALSE,P102,IF(P102=\"\",O103,P102&\", \"&O103))","v":""}]
[null,null,false,null,1,null,null,null,null,null,null,null,false,null,"ACAD-STEM",{"$f":"IF(M104=FALSE,P103,IF(P103=\"\",O104,P103&\", \"&O104))","v":""}]
[null,null,false,null,2,null,null,null,null,null,null,null,false,null,"ACAD-General Academic",""]
[null,null,false,null,3,null,null,null,null,null,null,null,false,null,"ACAD-Pre-Baccalaureate Maritime",""]
[null,null,false,null,4,null,null,null,null,null,null,null,false,null,"TVL-Agri-Fishery",""]
[null,null,false,null,5,null,null,null,null,null,null,null,false,null,"TVL-HE",""]
[null,null,false,null,6,null,null,null,null,null,null,null,false,null,"TVL-ICT",""]
[null,null,false,null,"Multigrade",null,null,null,null,null,null,null,false,null,"TVL-Industrial Arts",""]
[null,null,false,null,"SPED",null,null,null,null,null,null,null,false,null,"TVL-Maritime",""]
[null,null,false,null,7,null,null,null,null,null,null,null,false,null,"Sports",""]
[null,null,false,null,8,null,null,null,null,null,null,null,false,null,"Arts & Design",""]
[null,null,false,null,9]
[null,null,false,null,10,null,null,null,null,null,null,null,null,null,{"$f":"Lookup_concat(TRUE,M102:M113,O102:O113)","v":{"$error":"#NAME?"}}]
[null,null,false,null,"Multigrade"]
[null,null,false,null,11]
[null,null,false,null,12]
[null,null,false,null,"Multigrade"]
[]
[null,null,null,null,{"$f":"IFERROR(IF(LOWER(TRIM($F$14))=\"community-based learning center\",demographics_level,IF(LOWER(TRIM(demographics_level))=\"kindergarten\",\"Kindergarten\",IF(LOWER(TRIM(demographics_level))=\"elementary\",Lookup_concat(TRUE,C102:C109,E102:E109,INT(C110)),IF(LOWER(TRIM(demographics_level))=\"junior high school\",Lookup_concat(TRUE,C111:C115,E111:E115,INT(C116)),IF(LOWER(TRIM(demographics_level))=\"senior high school\",Lookup_concat(TRUE,C117:C118,E117:E118,INT(C119)),\"\"))))),\"\")","v":""}]
[]
[null,null,null,null,null,"validation helpers for conditional formatting"]
[null,null,null,null,"region:",{"$f":"AND(NOT(ISBLANK(TRIM(F7))),V3)","v":false},null,null,null,null,null,null,"last:",{"$f":"LEN(TRIM(N7))>0","v":false},null,null,"years experience:",{"$f":"AND(NOT(ISBLANK(TRIM(R7))),V12)","v":false}]
[null,null,null,null,"division:",{"$f":"AND(NOT(ISBLANK(TRIM(F8))),V4)","v":false},null,null,null,null,null,null,"first:",{"$f":"LEN(TRIM(N8))>0","v":false},null,null,"highest degree obtained:",{"$f":"AND(NOT(ISBLANK(TRIM(R8))),V13)","v":false}]
[null,null,null,null,"municipality:",{"$f":"LEN(TRIM(F9))>0","v":false},null,null,null,null,null,null,"middle:",true,null,null,null,true]
[null,null,null,null,"school ID:",{"$f":"IF($F$14=data1!$K$19,TRUE,LEN(TRIM(F10))>0)","v":false},null,null,null,null,null,null,"id:",{"$f":"LEN(TRIM(N10))>0","v":false},null,null,"level taught:",{"$f":"AND(NOT(ISBLANK(TRIM(R10))),V14)","v":false}]
[null,null,null,null,"school name:",{"$f":"LEN(TRIM(F11))>0","v":false},null,null,null,null,null,null,"position:",{"$f":"AND(NOT(ISBLANK(TRIM(N11))),V8)","v":false},null,null,"deped email:",{"$f":"AND(LEN(TRIM(demographics_email))>0,ISNUMBER(SEARCH(\"@deped.gov.ph\",demographics_email)))","v":false}]
[null,null,null,null,"school type",{"$f":"OR(AND(demographics_classification=data1!$K$19,ISBLANK(_xlfn.SINGLE(demographics_school_type))),AND(NOT(ISBLANK(TRIM(F12))),V5))","v":false},null,null,null,null,null,null,"status:",{"$f":"AND(NOT(ISBLANK(TRIM(N12))),V9)","v":false},null,null,"TIN:",{"$f":"LEN(TRIM(_xlfn.SINGLE(demographic_TIN)))=9","v":false}]
[null,null,null,null,"school size",{"$f":"OR(AND(demographics_classification=data1!$K$19,ISBLANK(_xlfn.SINGLE(demographics_school_size))),AND(NOT(ISBLANK(TRIM(F13))),V6))","v":false},null,null,null,null,null,null,"age:",{"$f":"AND(NOT(ISBLANK(TRIM(N13))),V10)","v":false}]
[null,null,null,null,"classification:",{"$f":"AND(NOT(ISBLANK(TRIM(F14))),V7)","v":false},null,null,null,null,null,null,"sex:",{"$f":"AND(NOT(ISBLANK(TRIM(N14))),V11)","v":false}]

{"sheet":"Part II for P","index":3,"n_rows":53,"n_cols":21,"rows_kept":53,"cut":false,"hidden":true,"merged":[[42,1,42,12],[47,1,47,12],[9,1,9,12],[17,1,17,12],[24,1,24,12],[30,1,30,12],[36,1,36,12],[6,5,6,8],[6,9,6,12],[0,1,0,12],[1,1,1,12],[6,2,8,2],[6,1,8,1],[6,3,8,3],[6,4,8,4],[2,1,2,2]]}
[null,"Electronic Self-Assessment Tool"]
[null,"SY 2025-2028"]
[null,"PART II: INDICATORS"]
[]
[]
[]
[null,"Strand","PPST Indicators","CO","Year","Level of Capability",null,null,null,"Priority for Development"]
[null,null,null,null,null,"Low","Moderate","High","Very High","Low","Moderate","High","Very High"]
[null,null,null,null,null,1,2,3,4,1,2,3,4]
[null,"Domain 1. Content Knowledge and Pedagogy"]
[null,"1.1.2","Applied knowledge of content within and across curriculum teaching areas","COI","Year 1 - 3",null,null,null,null,null,null,null,null,null,0,0,null,null,null,1,"Low"]
[null,"1.2.2","Used research-based knowledge and principles of teaching and learning to enhance professional practice","NCOI","Year 3",null,null,null,null,null,null,null,null,null,0,0,null,null,null,2,"Moderate"]
[null,"1.3.2","Ensured the positive use of ICT to facilitate the teaching and learning process","COI","Year 3",null,null,null,null,null,null,null,null,null,0,0,null,null,null,3,"High"]
[null,"1.4.2","Used a range of teaching strategies that enhance learner achievement in literacy and numeracy skills","COI","Year 1 - 3",null,null,null,null,null,null,null,null,null,0,0,null,null,null,4,"Very High"]
[null,"1.5.2","Applied a range of teaching strategies to develop critical and creative thinking, as well as other higher-order thinking skills","COI","Year 1 - 2",null,null,null,null,null,null,null,null,null,0,0]
[null,"1.6.2","Displayed proficient use of Mother Tongue, Filipino and English to facilitate teaching and learning","COI","Year 2",null,null,null,null,null,null,null,null,null,0,0]
[null,"1.7.2","Used effective verbal and non-verbal classroom communication strategies to support learner understanding, participation, engagement and achievement","COI","Year 3",null,null,null,null,null,null,null,null,null,0,0]
[null,"Domain 2. Learning Environment"]
[null,"2.1.2","Established safe and secure learning environments to enhance learning through the consistent implementation of policies, guidelines and procedures","COI","Year 2",null,null,null,null,null,null,null,null,null,0,0]
[null,"2.2.2","Maintained learning environments that promote fairness, respect and care to encourage learning","COI","Year 2",null,null,null,null,null,null,null,null,null,0,0]
[null,"2.3.2","Managed classroom structure to engage learners, individually or in groups, in meaningful exploration, discovery and hands-on activities within a range of physical learning environments","COI","Year 1",null,null,null,null,null,null,null,null,null,0,0]
[null,"2.4.2","Maintained learning environments that nurture and inspire learners to participate, cooperate and collaborate in continued learning","COI","Year 3",null,null,null,null,null,null,null,null,null,0,0]
[null,"2.5.2","Applied a range of successful strategies that maintain learning environments that motivate learners to work productively by assuming responsibility for their own learning","COI","Year 3",null,null,null,null,null,null,null,null,null,0,0]
[null,"2.6.2","Managed learner behavior constructively by applying positive and non-violent discipline to ensure learning- focused environments","COI","Year 1",null,null,null,null,null,null,null,null,null,0,0]
[null,"Domain 3. Diversity of Learners"]
[null,"3.1.2","Used differentiated, developmentally appropriate learning experiences to address learners’ gender, needs, strengths, interests and experiences","COI","Year 1",null,null,null,null,null,null,null,null,null,0,0]
[null,"3.2.2","Established a learner- centered culture by using teaching strategies that respond to their linguistic, cultural, socioeconomic and religious backgrounds","COI","Year 2",null,null,null,null,null,null,null,null,null,0,0]
[null,"3.3.2","Designed, adapted and implemented teaching strategies that are responsive to learners with disabilities, giftedness and talents","COI","Year 3",null,null,null,null,null,null,null,null,null,0,0]
[null,"3.4.2","Planned and delivered teaching strategies that are responsive to the special educational needs of learners in difficult circumstances*, including: geographic isolation; chronic illness; displacement due to armed conflict, urban resettlement or disasters; child abuse and child labor practices","COI","Year 3",null,null,null,null,null,null,null,null,null,0,0]
[null,"3.5.2","Adapted and used culturally appropriate teaching strategies to address the needs of learners from indigenous groups","COI","Year 2",null,null,null,null,null,null,null,null,null,0,0]
[null,"Domain 4. Curriculum and Planning"]
[null,"4.1.2","Planned, managed and implemented developmentally sequenced teaching and learning processes to meet curriculum requirements and varied teaching contexts","COI","Year 1",null,null,null,null,null,null,null,null,null,0,0]
[null,"4.2.2","Set achievable and appropriate learning outcomes that are aligned with learning competencies","NCOI","Year 2",null,null,null,null,null,null,null,null,null,0,0]
[null,"4.3.2","Adapted and implemented learning programs that ensure relevance and responsiveness to the needs of all learners","NCOI","Year 3",null,null,null,null,null,null,null,null,null,0,0]
[null,"4.4.2","Participated in collegial discussions that use teacher and learner feedback to  enrich teaching practice","NCOI","Year 1",null,null,null,null,null,null,null,null,null,0,0]
[null,"4.5.2","Selected, developed, organized and used appropriate teaching and learning resources, including ICT, to address learning goals","COI","Year 1",null,null,null,null,null,null,null,null,null,0,0]
[null,"Domain 5. Assessment and Reporting"]
[null,"5.1.2","Designed, selected, organized and used diagnostic, formative and summative assessment strategies consistent with curriculum requirements","COI","Year 1",null,null,null,null,null,null,null,null,null,0,0]
[null,"5.2.2","Monitored and evaluated learner progress and achievement using learner attainment data","NCOI","Year 1",null,null,null,null,null,null,null,null,null,0,0]
[null,"5.3.2","Used strategies for providing timely, accurate and constructive feedback to improve learner performance","COI","Year 2",null,null,null,null,null,null,null,null,null,0,0]
[null,"5.4.2","Communicated promptly and clearly the learners’ needs, progress and achievement  to key stakeholders, including parents/guardians","NCOI","Year 1",null,null,null,null,null,null,null,null,null,0,0]
[null,"5.5.2","Utilized assessment data to inform the modification of teaching and learning practices and programs","NCOI","Year 2",null,null,null,null,null,null,null,null,null,0,0]
[null,"Domain 6. Community Linkages and Professional Engagement"]
[null,"6.1.2","Maintained learning environments that are responsive to community contexts","NCOI","Year 3",null,null,null,null,null,null,null,null,null,0,0]
[null,"6.2.2","Built relationships with parents/ guardians and the wider school community to facilitate involvement in the educative process","NCOI","Year 2",null,null,null,null,null,null,null,null,null,0,0]
[null,"6.3.2","Reviewed regularly personal teaching practice using existing laws and regulations that apply to the teaching profession and the responsibilities specified in the Code of Ethics for Professional Teachers","NCOI","Year 3",null,null,null,null,null,null,null,null,null,0,0]
[null,"6.4.2","Complied with and implemented school policies and procedures consistently to foster harmonious relationships with learners, parents, and other stakeholders","NCOI","Year 3",null,null,null,null,null,null,null,null,null,0,0]
[null,"Domain 7. Personal Growth and Professional Development"]
[null,"7.1.2","Applied a personal philosophy of teaching that is learner-centered","NCOI","Year 1",null,null,null,null,null,null,null,null,null,0,0]
[null,"7.2.2","Adopted practices that uphold the dignity of teaching as a profession by exhibiting qualities such as caring attitude, respect and integrity","NCOI","Year 3",null,null,null,null,null,null,null,null,null,0,0]
[null,"7.3.2","Participated in professional networks to share knowledge and to enhance practice","NCOI","Year 2",null,null,null,null,null,null,null,null,null,0,0]
[null,"7.4.2","Developed a personal improvement plan based on reflection of one’s practice and ongoing professional learning","NCOI","Year 2",null,null,null,null,null,null,null,null,null,0,0]
[null,"7.5.2","Set professional development goals based on the Philippine Professional Standards for Teachers","NCOI","Year 1",null,null,null,null,null,null,null,null,null,0,0]

{"sheet":"Part II for HP","index":4,"n_rows":53,"n_cols":16,"rows_kept":53,"cut":false,"hidden":true,"merged":[[0,1,0,12],[1,1,1,12],[2,1,2,2],[6,1,8,1],[6,2,8,2],[6,3,8,3],[6,4,8,4],[6,5,6,8],[6,9,6,12],[47,1,47,12],[9,1,9,12],[17,1,17,12],[24,1,24,12],[30,1,30,12],[36,1,36,12],[42,1,42,12]]}
[null,"Electronic Self-Assessment Tool"]
[null,"SY 2025-2028"]
[null,"PART II: INDICATORS"]
[]
[]
[]
[null,"Strand","PPST Indicators","CO","Year","Level of Capability",null,null,null,"Priority for Development"]
[null,null,null,null,null,"Low","Moderate","High","Very High","Low","Moderate","High","Very High"]
[null,null,null,null,null,1,2,3,4,1,2,3,4]
[null,"Domain 1. Content Knowledge and Pedagogy"]
[null,"1.1.3","Modelled effective applications of content knowledge within and across curriculum teaching areas","COI","Year 1 - 3",null,null,null,null,null,null,null,null,null,0,0]
[null,"1.2.3","Collaborated with colleagues in the conduct and   application of research to enrich knowledge of content and pedagogy","NCOI","Year 3",null,null,null,null,null,null,null,null,null,0,0]
[null,"1.3.3","Promoted effective strategies in the positive use of ICT to facilitate the teaching and learning process","COI","Year 3",null,null,null,null,null,null,null,null,null,0,0]
[null,"1.4.3","Evaluated with colleagues the effectiveness of teaching strategies that promote learner achievement in literacy and numeracy","COI","Year 1 - 3",null,null,null,null,null,null,null,null,null,0,0]
[null,"1.5.3","Developed and applied effective teaching strategies to promote critical and creative thinking, as well as other higher-order thinking skills","COI","Year 1 - 2",null,null,null,null,null,null,null,null,null,0,0]
[null,"1.6.3","Modelled and supported colleagues in the proficient use of Mother Tongue, Filipino and English to improve teaching and learning, as well as to develop learners’ pride of their language, heritage and culture","COI","Year 2",null,null,null,null,null,null,null,null,null,0,0]
[null,"1.7.3","Displayed a wide range of effective verbal and non-verbal classroom communication strategies to support learner understanding, participation, engagement and achievement","COI","Year 3",null,null,null,null,null,null,null,null,null,0,0]
[null,"Domain 2. Learning Environment"]
[null,"2.1.3","Exhibited effective strategies that ensure safe and secure learning environments to enhance learning through the consistent implementation of policies, guidelines and procedures","COI","Year 2",null,null,null,null,null,null,null,null,null,0,0]
[null,"2.2.3","Exhibited effective practices to foster learning environments that promote fairness, respect and care to encourage learning","COI","Year 2",null,null,null,null,null,null,null,null,null,0,0]
[null,"2.3.3","Worked with colleagues to model and share effective techniques in the management of classroom structure to engage learners, individually or in groups, in meaningful exploration, discovery and hands-on activities within a range of physical learning environments","COI","Year 1",null,null,null,null,null,null,null,null,null,0,0]
[null,"2.4.3","Worked with colleagues to share successful strategies that sustain supportive learning environments that nurture and inspire learners to participate, cooperate and collaborate in continued learning","COI","Year 3",null,null,null,null,null,null,null,null,null,0,0]
[null,"2.5.3","Modelled successful strategies and supported colleagues in promoting learning environments that effectively motivate learners to work productively by assuming responsibility for their own learning","COI","Year 3",null,null,null,null,null,null,null,null,null,0,0]
[null,"2.6.3","Exhibited effective and constructive behavior management skills by applying positive and non-violent discipline to ensure learning- focused environments","COI","Year 1",null,null,null,null,null,null,null,null,null,0,0]
[null,"Domain 3. Diversity of Learners"]
[null,"3.1.3","Worked with colleagues to share differentiated, developmentally appropriate opportunities to address learners’ differences in gender, needs, strengths, interests and experiences","COI","Year 1",null,null,null,null,null,null,null,null,null,0,0]
[null,"3.2.3","Exhibited a learner-centered culture that promotes success by using effective teaching strategies that respond to their linguistic, cultural, socioeconomic and religious backgrounds","COI","Year 2",null,null,null,null,null,null,null,null,null,0,0]
[null,"3.3.3","Assisted colleagues to design, adapt and implement teaching strategies that are responsive to learners with disabilities, giftedness and talents","COI","Year 3",null,null,null,null,null,null,null,null,null,0,0]
[null,"3.4.3","Evaluated with colleagues teaching strategies that are responsive to the special educational needs of learners in difficult circumstances*, including: geographic isolation; chronic illness; displacement due to armed conflict, urban resettlement or disasters; child abuse and child labor practices","COI","Year 3",null,null,null,null,null,null,null,null,null,0,0]
[null,"3.5.3","Developed and applied teaching strategies to address effectively the needs of learners from indigenous groups","COI","Year 2",null,null,null,null,null,null,null,null,null,0,0]
[null,"Domain 4. Curriculum and Planning"]
[null,"4.1.3","Developed and applied effective strategies in the planning and management of developmentally sequenced teaching and learning processes  to meet curriculum requirements and varied teaching\ncontexts","COI","Year 1",null,null,null,null,null,null,null,null,null,0,0]
[null,"4.2.3","Modelled to colleagues the setting of achievable and challenging learning outcomes that are aligned with learning competencies to cultivate a culture of excellence for all learners","NCOI","Year 2",null,null,null,null,null,null,null,null,null,0,0]
[null,"4.3.3","Worked collaboratively with colleagues to evaluate the design of learning programs that develop the knowledge and skills of learners at different ability levels","NCOI","Year 3",null,null,null,null,null,null,null,null,null,0,0]
[null,"4.4.3","Reviewed with colleagues, teacher and learner feedback to plan, facilitate and enrich teaching practice","NCOI","Year 1",null,null,null,null,null,null,null,null,null,0,0]
[null,"4.5.3","Advised and guided colleagues  in the selection, organization, development and use of appropriate teaching and learning resources, including ICT, to address specific learning goals","COI","Year 1",null,null,null,null,null,null,null,null,null,0,0]
[null,"Domain 5. Assessment and Reporting"]
[null,"5.1.3","Worked collaboratively with colleagues to review the design, selection, organization and use of a range of effective diagnostic, formative and summative assessment strategies consistent with curriculum requirements","COI","Year 1",null,null,null,null,null,null,null,null,null,0,0]
[null,"5.2.3","Interpreted collaboratively monitoring and evaluation strategies of attainment data to support learner progress and achievement","NCOI","Year 1",null,null,null,null,null,null,null,null,null,0,0]
[null,"5.3.3","Used effective strategies for providing timely, accurate and constructive feedback to encourage learners to reflect on and improve their own learning","COI","Year 2",null,null,null,null,null,null,null,null,null,0,0]
[null,"5.4.3","Applied skills in the effective communication of learner needs, progress and achievement to key stakeholders, including parents/guardians","NCOI","Year 1",null,null,null,null,null,null,null,null,null,0,0]
[null,"5.5.3","Worked collaboratively with colleagues to analyze and utilize assessment data to modify practices and programs to further support learner progress and achievement","NCOI","Year 2",null,null,null,null,null,null,null,null,null,0,0]
[null,"Domain 6. Community Linkages and Professional Engagement"]
[null,"6.1.3","Reflected on and evaluated learning environments that are responsive to community contexts","NCOI","Year 3",null,null,null,null,null,null,null,null,null,0,0]
[null,"6.2.3","Guided colleagues to strengthen relationships with parents/ guardians and the wider school community to maximize their involvement in the educative process","NCOI","Year 2",null,null,null,null,null,null,null,null,null,0,0]
[null,"6.3.3","Discussed with colleagues teaching and learning practices that apply existing codes, laws and regulations that apply to the teaching profession, and the responsibilities specified in the Code of Ethics for Professional Teachers","NCOI","Year 3",null,null,null,null,null,null,null,null,null,0,0]
[null,"6.4.3","Exhibited commitment to and supported teachers in the implementation of school policies and procedures to foster harmonious relationships with learners, parents and other stakeholders","NCOI","Year 3",null,null,null,null,null,null,null,null,null,0,0]
[null,"Domain 7. Personal Growth and Professional Development"]
[null,"7.1.3","Manifested a learner-centered teaching philosophy in various aspects of practice and support colleagues in enhancing their own learner-centered teaching philosophy","NCOI","Year 1",null,null,null,null,null,null,null,null,null,0,0]
[null,"7.2.3","Identified and utilized personal professional strengths to uphold the dignity of teaching as a profession to help build a positive teaching and learning culture within the school","NCOI","Year 3",null,null,null,null,null,null,null,null,null,0,0]
[null,"7.3.3","Contributed actively to professional networks within and between schools to improve knowledge and to enhance practice","NCOI","Year 2",null,null,null,null,null,null,null,null,null,0,0]
[null,"7.4.3","Initiated professional reflections and promote learning opportunities with colleagues to improve practice","NCOI","Year 2",null,null,null,null,null,null,null,null,null,0,0]
[null,"7.5.3","Reflected on the Philippine Professional Standards for Teachers to plan personal professional development goals and assist colleagues in planning and achieving their own goals","NCOI","Year 1",null,null,null,null,null,null,null,null,null,0,0]

{"sheet":"Part II for D","index":5,"n_rows":53,"n_cols":16,"rows_kept":53,"cut":false,"hidden":true,"merged":[[47,1,47,12],[9,1,9,12],[17,1,17,12],[24,1,24,12],[30,1,30,12],[36,1,36,12],[42,1,42,12],[0,1,0,12],[1,1,1,12],[2,1,2,2],[6,1,8,1],[6,2,8,2],[6,3,8,3],[6,4,8,4],[6,5,6,8],[6,9,6,12]]}
[null,"Electronic Self-Assessment Tool"]
[null,"SY 2025-2028"]
[null,"PART II: INDICATORS"]
[]
[]
[]
[null,"Strand","PPST Indicators","CO","Year","Level of Capability",null,null,null,"Priority for Development"]
[null,null,null,null,null,"Low","Moderate","High","Very High","Low","Moderate","High","Very High"]
[null,null,null,null,null,1,2,3,4,1,2,3,4]
[null,"Domain 1. Content Knowledge and Pedagogy"]
[null,"1.1.4","Modelled exemplary practice to improve the applications of content  knowledge within and across curriculum teaching areas.","COI","Year 1 - 3",null,null,null,null,null,null,null,null,null,0,0]
[null,"1.2.4","Lead colleagues in the advancement of the art and science of teaching based on their comprehensive  knowledge of research and pedagogy.","NCOI","Year 3",null,null,null,null,null,null,null,null,null,0,0]
[null,"1.3.4","Mentored colleagues in the implementation of policies to ensure the positive use of ICT within or beyond the school.","COI","Year 3",null,null,null,null,null,null,null,null,null,0,0]
[null,"1.4.4","Modelled a comprehensive selection of effective teaching strategies that promote learner achievement in literacy and numeracy.","COI","Year 1 - 3",null,null,null,null,null,null,null,null,null,0,0]
[null,"1.5.4","Lead colleagues in reviewing, modifying and  expanding their range of  teaching strategies that promote critical and creative  thinking, as well as other higher-order thinking skills.","COI","Year 1 - 2",null,null,null,null,null,null,null,null,null,0,0]
[null,"1.6.4","Showed exemplary skills in  and advocate the use of  Mother Tongue, Filipino and  English in teaching and learning to facilitate the learners’ language, cognitive  and academic development  and to foster pride of their  language, heritage and culture.","COI","Year 2",null,null,null,null,null,null,null,null,null,0,0]
[null,"1.7.4","Exhibited exemplary practice in the use of effective  verbal and non-verbal classroom communication strategies to support learner  understanding, participation, engagement and achievement  in different learning contexts.","COI","Year 3",null,null,null,null,null,null,null,null,null,0,0]
[null,"Domain 2. Learning Environment"]
[null,"2.1.4","Applied comprehensive  knowledge of and act as a resource person for, policies, guidelines and procedures that relate to the implementation of safe and secure learning environments for learners.","COI","Year 2",null,null,null,null,null,null,null,null,null,0,0]
[null,"2.2.4","Advocated and facilitate the use of effective practices to foster learning environments that promote fairness, respect and care to encourage learning.","COI","Year 2",null,null,null,null,null,null,null,null,null,0,0]
[null,"2.3.4","Modelled exemplary practices in the management of classroom structure and  activities, and lead colleagues at the whole-school level to review and evaluate their practices.","COI","Year 1",null,null,null,null,null,null,null,null,null,0,0]
[null,"2.4.4","Facilitated processes to review the effectiveness of the school’s learning environment to nurture and inspire learner participation.","COI","Year 3",null,null,null,null,null,null,null,null,null,0,0]
[null,"2.5.4","Lead and empower colleagues in promoting learning environments that effectively motivate learners to achieve quality outcomes by  assuming responsibility for their own learning.","COI","Year 3",null,null,null,null,null,null,null,null,null,0,0]
[null,"2.6.4","Provided leadership in applying a wide range of strategies in the implementation of positive and  non-violent discipline  \npolicies/procedures to ensure  learning-focused environments.","COI","Year 1",null,null,null,null,null,null,null,null,null,0,0]
[null,"Domain 3. Diversity of Learners"]
[null,"3.1.4","Lead colleagues to evaluate differentiated strategies to enrich teaching practices that address learners’  differences in gender, needs, strengths, interests and experiences.","COI","Year 1",null,null,null,null,null,null,null,null,null,0,0]
[null,"3.2.4","Modelled exemplary teaching practices that recognize and affirm diverse  linguistic, cultural, socio economic and religious backgrounds to promote learner success.","COI","Year 2",null,null,null,null,null,null,null,null,null,0,0]
[null,"3.3.4","Lead colleagues in designing, adapting and implementing teaching  \nstrategies that are responsive to learners with disabilities, giftedness and talents.","COI","Year 3",null,null,null,null,null,null,null,null,null,0,0]
[null,"3.4.4","Modelled a range of high level skills responsive to the  special educational needs of learners in difficult circumstances, including:  geographic isolation; chronic illness; displacement due to armed conflict, urban resettlement or disasters; child  abuse and child labor  \npractices.","COI","Year 3",null,null,null,null,null,null,null,null,null,0,0]
[null,"3.5.4","Showed comprehensive skills in delivering culturally appropriate teaching strategies  to address effectively the needs of learners from  \nindigenous groups.","COI","Year 2",null,null,null,null,null,null,null,null,null,0,0]
[null,"Domain 4. Curriculum and Planning"]
[null,"4.1.4","Modelled exemplary  practice and lead colleagues in enhancing current practices in the planning and management of developmentally sequenced teaching and learning process.","COI","Year 1",null,null,null,null,null,null,null,null,null,0,0]
[null,"4.2.4","Exhibited high-level skills and lead in setting achievable and challenging learning outcomes that are aligned with learning competencies towards the cultivation of a culture of excellence for all.","NCOI","Year 2",null,null,null,null,null,null,null,null,null,0,0]
[null,"4.3.4","Provided advice in the  design and implementation of  relevant and responsive learning programs that develop the knowledge and skills of learners at different ability levels.","NCOI","Year 3",null,null,null,null,null,null,null,null,null,0,0]
[null,"4.4.4","Lead colleagues in professional discussions to plan and implement strategies that enrich teaching practice. ","NCOI","Year 1",null,null,null,null,null,null,null,null,null,0,0]
[null,"4.5.4","Modelled exemplary skills and lead colleagues in the development and evaluation of  teaching and learning resources, including ICT, for  use within and beyond the school.","COI","Year 1",null,null,null,null,null,null,null,null,null,0,0]
[null,"Domain 5. Assessment and Reporting"]
[null,"5.1.4","Lead initiatives in the  evaluation of assessment policies and guidelines that relate to the design, selection, organization and use of effective diagnostic, formative and summative assessment  strategies consistent with curriculum requirements.","COI","Year 1",null,null,null,null,null,null,null,null,null,0,0]
[null,"5.2.4","Provided advice on, and mentor colleagues in the effective analysis and use of learner attainment data.","NCOI","Year 1",null,null,null,null,null,null,null,null,null,0,0]
[null,"5.3.4","Exhibited exemplary skills and lead initiatives to support  colleagues in applying strategies that effectively provide timely, accurate and constructive feedback to learners to improve learning  achievement.","COI","Year 2",null,null,null,null,null,null,null,null,null,0,0]
[null,"5.4.4","Shared with colleagues a wide range of strategies that ensure effective communication of learner needs, progress and  \nachievement to key stakeholders, including parents/guardians.","NCOI","Year 1",null,null,null,null,null,null,null,null,null,0,0]
[null,"5.5.4","Lead colleagues to explore, design and implement effective practices and programs using information derived from assessment data.","NCOI","Year 2",null,null,null,null,null,null,null,null,null,0,0]
[null,"Domain 6. Community Linkages and Professional Engagement"]
[null,"6.1.4","Modelled exemplary practice and empower colleagues to establish and maintain effective learning environments that are responsive to community contexts.","NCOI","Year 3",null,null,null,null,null,null,null,null,null,0,0]
[null,"6.2.4","Lead in consolidating networks that strengthen relationships with  \nparents/guardians and the wider school community to maximize their involvement in the educative process.","NCOI","Year 2",null,null,null,null,null,null,null,null,null,0,0]
[null,"6.3.4","Lead colleagues in the regular review of existing codes, laws and regulations that apply to the teaching profession, and the responsibilities as specified in the Code of Ethics for Professional Teachers.","NCOI","Year 3",null,null,null,null,null,null,null,null,null,0,0]
[null,"6.4.4","Evaluated existing school policies and procedures to make them more responsive to the needs of the learners, parents and other stakeholders.","NCOI","Year 3",null,null,null,null,null,null,null,null,null,0,0]
[null,"Domain 7. Personal Growth and Professional Development"]
[null,"7.1.4","Modelled a learner-centered teaching philosophy through teaching practices that stimulate colleagues to engage in further professional learning.","NCOI","Year 1",null,null,null,null,null,null,null,null,null,0,0]
[null,"7.2.4","Acted as a role model and  advocate for upholding the  dignity of teaching as a profession to build a positive teaching and learning culture within and beyond the school. ","NCOI","Year 3",null,null,null,null,null,null,null,null,null,0,0]
[null,"7.3.4","Took a leadership role in supporting colleagues’ engagement with professional networks within and across schools to advance knowledge and practice in identified areas of need.","NCOI","Year 2",null,null,null,null,null,null,null,null,null,0,0]
[null,"7.4.4","Demonstrated leadership within and across school  \ncontexts in critically evaluating practice and setting clearly defined targets for professional development. ","NCOI","Year 2",null,null,null,null,null,null,null,null,null,0,0]
[null,"7.5.4","Lead reforms in enhancing professional development programs based on an in-depth knowledge and understanding of the Philippine Professional  Standards for Teachers.","NCOI","Year 1",null,null,null,null,null,null,null,null,null,0,0]

{"sheet":"Part II-A","index":6,"n_rows":22,"n_cols":6,"rows_kept":22,"cut":false,"hidden":true,"merged":[[17,5,21,5],[0,1,0,5],[1,1,1,5],[4,3,4,5],[4,1,4,2],[7,4,11,4],[7,5,11,5],[3,1,3,5],[5,1,6,1],[5,2,6,2],[7,1,11,1],[12,1,16,1],[17,1,21,1],[12,4,16,4],[12,5,16,5],[17,4,21,4]]}
[null,"Electronic Self-Assessment Tool (e-SAT)"]
[null,{"$f":"HOME!E17&\" Teachers\"","v":" Teachers"}]
[]
[null,"PART II - A:  LEADERSHIP COMPETENCIES\nPart II - A. Leadership Competencies shall capture competencies expected of heads of functional offices who hold managerial and executive/supervisory positions. The Leadership Competencies expected to be demonstrated include Leading People, People Performance Management, and People Development.  "]
[null,"*DepEd Competencies \nScale: \n5 - Outstanding (Role Model - Behavioral indicator is consistently exhibited and is worthy of emulation); \n4 - Very Satisfactory ( Consistently Demonstrated - Behavioral indicator is constantly showed); \n3 - Satisfactory (Most of the Time Demonstrated - Behavioral indicator is often showed); \n2 - Unsatisfactory (Sometimes Demonstrated - Behavioral indicator is irregularly showed); \n1 - Poor (Rarely Demonstrated -Behavioral indicator is seldomly showed)\n",null,"**Rating Scale: \n5.000 - Outstanding (4.500-5.000); \n4.000 - Very Satisfactory (3.5000-4.499); \n3.000 - Satisfactory (2.500 - 3.499); \n2.000 - Unsatisfactory (1.500-2.499); \n1.000  - Poor (Below 1.499)"]
[null,"Competencies","Behavioral Indicators"]
[]
[null,"Leading People","1.   Uses basic persuasion techniques in a discussion or presentation e.g., staff mobilization, appeals to reason and/or emotions, uses data and examples, visual aids",null,{"$f":"IF(COUNTBLANK(D8:D12)>0,\"\",ROUND(AVERAGE(D8:D12),3))","v":""},{"$f":"IFERROR(VLOOKUP(E8,core,2,1),\"\")","v":""}]
[null,null,"2.   Persuades, convinces or influences others, in order to have a specific impact or effect."]
[null,null,"3.   “Sets a good example”, is a credible and respected leader; and demonstrates desired behavior."]
[null,null,"4.   Forwards personal, professional and work unit needs and interests in an issue."]
[null,null,"5.   Assumes a pivotal role in promoting the development of an inspiring, relevant vision for the organization and influences others to share ownership of DepEd goals, in order to create an effective work environment."]
[null,"People Performance Management","1.   Makes specific changes in the performance management system or in own work methods to improve performance (e.g. does something better, faster, at lower cost, more efficiently; improves quality, customer satisfaction, morale, revenues).",null,{"$f":"IF(COUNTBLANK(D13:D17)>0,\"\",ROUND(AVERAGE(D13:D17),3))","v":""},{"$f":"IFERROR(VLOOKUP(E13,core,2,1),\"\")","v":""}]
[null,null,"2.   Sets performance standards and measures progress of employees based on office and department targets."]
[null,null,"3.   Provides feedback and technical assistance such as coaching for performance improvement and action planning."]
[null,null,"4.   States performance expectations clearly and checks understanding and commitment."]
[null,null,"5.   Performs all the stages of result-based performance management system supported by evidence and required documents/forms."]
[null,"People Development","1.   Improves the skills and effectiveness of individuals through employing a range of development strategies.",null,{"$f":"IF(COUNTBLANK(D18:D22)>0,\"\",ROUND(AVERAGE(D18:D22),3))","v":""},{"$f":"IFERROR(VLOOKUP(E18,core,2,1),\"\")","v":""}]
[null,null,"2.   Facilitates workforce effectiveness through coaching and motivating/developing people within a work environment that promotes mutual trust and respect."]
[null,null,"3.   Conceptualizes and implements learning interventions to meet identified training needs."]
[null,null,"4.   Does long-term coaching or training by arranging appropriate and helpful assignments, formal training, or other experiences for the purpose of supporting a person’s learning and development."]
[null,null,"5.   Cultivates a learning environment by structuring interactive experiences such as looking for future opportunities that are in support of achieving individual career goals."]

{"sheet":"Part III","index":7,"n_rows":56,"n_cols":26,"rows_kept":56,"cut":false,"hidden":true,"merged":[[44,2,44,17],[41,2,41,17],[54,2,54,17],[53,2,53,17],[45,2,45,17],[46,2,46,17],[47,2,47,17],[52,2,52,17],[48,2,48,17],[51,2,51,17],[37,2,37,17],[34,2,34,17],[38,2,38,17],[39,2,39,17],[40,2,40,17],[0,0,0,20],[1,0,1,20],[20,2,20,17],[24,2,24,17],[25,2,25,17],[7,1,7,20],[6,1,6,15],[6,16,6,20],[9,20,13,20],[16,20,20,20],[23,20,27,20],[12,2,12,17],[13,2,13,17],[9,19,13,19],[9,2,9,17],[10,2,10,17],[37,20,41,20],[44,20,48,20],[51,20,55,20],[18,2,18,17],[19,2,19,17],[23,2,23,17],[55,2,55,17],[16,19,20,19],[23,19,27,19],[30,19,34,19],[37,19,41,19],[44,19,48,19],[51,19,55,19],[16,2,16,17],[17,2,17,17],[31,2,31,17],[11,2,11,17],[26,2,26,17],[30,2,30,17],[27,2,27,17],[30,20,34,20],[32,2,32,17],[33,2,33,17]]}
["Electronic Self-Assessment Tool (e-SAT)"]
[{"$f":"HOME!E17&\" Teachers\"","v":" Teachers"}]
[]
["PART III: CORE BEHAVIORAL COMPETENCIES"]
[]
[]
[null,"*DepEd Competencies \nScale: \n5 - Outstanding (Role Model - Behavioral indicator is consistently exhibited and is worthy of emulation); \n4 - Very Satisfactory ( Consistently Demonstrated - Behavioral indicator is constantly showed); \n3 - Satisfactory (Most of the Time Demonstrated - Behavioral indicator is often showed); \n2 - Unsatisfactory (Sometimes Demonstrated - Behavioral indicator is irregularly showed); \n1 - Poor (Rarely Demonstrated -Behavioral indicator is seldomly showed)\n",null,null,null,null,null,null,null,null,null,null,null,null,null,null,"**Rating Scale: \n5.000 - Outstanding (4.500-5.000); \n4.000 - Very Satisfactory (3.5000-4.499); \n3.000 - Satisfactory (2.500 - 3.499); \n2.000 - Unsatisfactory (1.500-2.499); \n1.000  - Poor (Below 1.499)"]
[]
[null,"1. SELF - MANAGEMENT"]
[null,1,"Sets personal goals and directions, needs and development.",null,null,null,null,null,null,null,null,null,null,null,null,null,null,null,null,{"$f":"IF(COUNTBLANK(S10:S14)>0,\"\",AVERAGE(S10:S14))","v":""},{"$f":"IFERROR(VLOOKUP(T10,core,2,1),\"\")","v":""},null,null,null,1,"Poor"]
[null,2,"Undertakes personal actions and behavior that are clear and purposive and takes into account personal goals and values congruent to that of the organization.",null,null,null,null,null,null,null,null,null,null,null,null,null,null,null,null,null,null,null,null,null,1.5,"Unsatisfactory"]
[null,3,"Displays emotional maturity and enthusiasm for and is challenged by higher goals.",null,null,null,null,null,null,null,null,null,null,null,null,null,null,null,null,null,null,null,null,null,2.5,"Satisfactory"]
[null,4,"Prioritizes work tasks and schedules (through Gantt charts, checklists, etc.) to achieve goals.",null,null,null,null,null,null,null,null,null,null,null,null,null,null,null,null,null,null,null,null,null,3.5,"Very Satisfactory"]
[null,5,"Sets high quality, challenging, realistic goals for self and others.",null,null,null,null,null,null,null,null,null,null,null,null,null,null,null,null,null,null,null,null,null,4.5,"Outstanding"]
[]
[null,"2. PROFESSIONALISM AND ETHICS"]
[null,1,"Demonstrates the values and behavior enshrined in the Norms and Conduct and Ethical Standards for public officials and employees (RA 6713).",null,null,null,null,null,null,null,null,null,null,null,null,null,null,null,null,{"$f":"IF(COUNTBLANK(S17:S21)>0,\"\",AVERAGE(S17:S21))","v":""},{"$f":"IFERROR(VLOOKUP(T17,core,2,1),\"\")","v":""}]
[null,2,"Practices ethical and professional behavior and conduct taking into account the impact of his/her actions and decisions."]
[null,3,"Maintains a professional image: being trustworthy, regularity of attendance and punctuality, good grooming and communication."]
[null,4,"Makes personal sacrifices to meet the organization's needs."]
[null,5,"Act with a sense of urgency and responsibility to meet the organization’s needs, improve system and help others improve their effectiveness."]
[]
[null,"3. RESULTS FOCUS"]
[null,1,"Achieves results with optimal use of time and resources most of the time.",null,null,null,null,null,null,null,null,null,null,null,null,null,null,null,null,{"$f":"IF(COUNTBLANK(S24:S28)>0,\"\",AVERAGE(S24:S28))","v":""},{"$f":"IFERROR(VLOOKUP(T24,core,2,1),\"\")","v":""}]
[null,2,"Avoids rework, mistakes and wastage through effective work methods by placing organizational needs before personal needs."]
[null,3,"Delivers error-free outputs most of the time by conforming to standard operating procedures correctly and consistently. Able to produce very satisfactory quality work in terms of usefulness/acceptability and completeness with no supervision required."]
[null,4,"Expresses a desire to do better and may express frustration at waste or inefficiency. May focus on new or more precise ways of meeting goals set."]
[null,5,"Makes specific changes in the system or in own work methods to improve performance. Examples may include doing something better, faster, at a lower cost, more efficiently, or improving quality, customer satisfaction, morale, without setting any specific goal."]
[]
[null,"4. TEAMWORK"]
[null,1,"Willingly does his/her share of responsibility.",null,null,null,null,null,null,null,null,null,null,null,null,null,null,null,null,{"$f":"IF(COUNTBLANK(S31:S35)>0,\"\",AVERAGE(S31:S35))","v":""},{"$f":"IFERROR(VLOOKUP(T31,core,2,1),\"\")","v":""}]
[null,2,"Promotes collaboration and removes barrier to teamwork and goal accomplishment across the organization."]
[null,3,"Applies negotiation principles in arriving at win-win agreements."]
[null,4,"Drives consensus and team ownership of decisions."]
[null,5,"Works constructively and collaboratively with others and across organizations to accomplish organization goals and objectives."]
[]
[null,"5. SERVICE ORIENTATION"]
[null,1,"Can explain and articulate organizational directions, issues and problems.",null,null,null,null,null,null,null,null,null,null,null,null,null,null,null,null,{"$f":"IF(COUNTBLANK(S38:S42)>0,\"\",AVERAGE(S38:S42))","v":""},{"$f":"IFERROR(VLOOKUP(T38,core,2,1),\"\")","v":""}]
[null,2,"Takes personal responsibility for dealing with and/or correcting customer service issues and concerns."]
[null,3,"Initiates activities that promote advocacy for men and women empowerment."]
[null,4,"Participates in updating office vision, mission, mandates and strategies based on DepEd strategies and directions."]
[null,5,"Develops and adopts service improvement program through simplified procedures that will further enhance service delivery."]
[]
[null,"6. INNOVATION"]
[null,1,"Examines the root cause of problems and suggests effective solutions. Foster new ideas, processes and suggests better ways to do things (cost and/or operational efficiency).",null,null,null,null,null,null,null,null,null,null,null,null,null,null,null,null,{"$f":"IF(COUNTBLANK(S45:S49)>0,\"\",AVERAGE(S45:S49))","v":""},{"$f":"IFERROR(VLOOKUP(T45,core,2,1),\"\")","v":""}]
[null,2,"Demonstrates an ability to think “beyond the box”. Continuously focuses on improving personal productivity to create higher value and results."]
[null,3,"Promotes a creative climate and inspires co-workers to develop original ideas or solutions."]
[null,4,"Translates creative thinking into tangible changes and solutions that improve the work unit and organization."]
[null,5,"Uses ingenious methods to accomplish responsibilities. Demonstrates resourcefulness and the ability to succeed with minimal resources."]
[]
[null,"7. GENDER SENSITIVITY"]
[null,1,"Recognizes and respects individual differences.",null,null,null,null,null,null,null,null,null,null,null,null,null,null,null,null,{"$f":"IF(COUNTBLANK(S52:S56)>0,\"\",AVERAGE(S52:S56))","v":""},{"$f":"IFERROR(VLOOKUP(T52,core,2,1),\"\")","v":""}]
[null,2,"Does not discriminate persons on the basis of Sexual Orientation, Gender Identity, Gender Expression, and Sex Characteristics (SOGIESC)."]
[null,3,"Promotes gender equality, diversity, and inclusion in the workplace."]
[null,4,"Has zero-tolerance to gender-biases, discriminatory and exclusionary behaviors and practices."]
[null,5,"Taking affirmatice action to address gender inequalities."]

{"sheet":"Summary","index":8,"n_rows":285,"n_cols":18,"rows_kept":285,"cut":false,"hidden":true,"merged":[[248,1,249,2],[248,3,249,15],[235,13,239,13],[240,13,244,13],[228,1,229,2],[230,1,234,2],[235,1,239,2],[240,1,244,2],[230,3,230,11],[231,3,231,11],[232,3,232,11],[233,3,233,11],[234,3,234,11],[235,3,235,11],[228,3,229,15],[230,14,234,15],[235,14,239,15],[240,14,244,15],[236,3,236,11],[237,3,237,11],[238,3,238,11],[239,3,239,11],[240,3,240,11],[241,3,241,11],[242,3,242,11],[243,3,243,11],[244,3,244,11],[230,13,234,13],[222,1,222,15],[223,1,224,15],[82,1,82,15],[83,1,84,15],[218,2,218,11],[218,12,218,13],[218,14,218,15],[219,2,219,11],[219,12,219,13],[219,14,219,15],[220,1,220,15],[221,2,221,11],[221,12,221,13],[221,14,221,15],[213,2,213,11],[213,12,213,13],[213,14,213,15],[214,1,214,15],[215,2,215,11],[215,12,215,13],[215,14,215,15],[216,1,216,15],[217,2,217,11],[217,12,217,13],[217,14,217,15],[208,1,208,15],[209,2,209,11],[209,12,209,13],[209,14,209,15],[210,2,210,11],[210,12,210,13],[210,14,210,15],[211,1,211,15],[212,2,212,11],[212,12,212,13],[212,14,212,15],[205,2,205,11],[205,12,205,13],[205,14,205,15],[206,2,206,11],[206,12,206,13],[206,14,206,15],[207,2,207,11],[207,12,207,13],[207,14,207,15],[201,1,201,11],[201,12,201,13],[201,14,201,15],[202,1,202,15],[203,2,203,11],[203,12,203,13],[203,14,203,15],[204,2,204,11],[204,12,204,13],[204,14,204,15],[195,1,195,15],[196,2,196,11],[196,12,196,13],[196,14,196,15],[197,1,197,15],[198,2,198,11],[198,12,198,13],[198,14,198,15],[199,2,199,11],[199,12,199,13],[199,14,199,15],[190,1,190,15],[191,2,191,11],[191,12,191,13],[191,14,191,15],[192,1,192,15],[193,2,193,11],[193,12,193,13],[193,14,193,15],[194,2,194,11],[194,12,194,13],[194,14,194,15],[186,2,186,11],[186,12,186,13],[186,14,186,15],[187,1,187,15],[188,2,188,11],[188,12,188,13],[188,14,188,15],[189,2,189,11],[189,12,189,13],[189,14,189,15],[182,2,182,11],[182,12,182,13],[182,14,182,15],[183,2,183,11],[183,12,183,13],[183,14,183,15],[184,1,184,15],[185,2,185,11],[185,12,185,13],[185,14,185,15],[178,1,178,11],[178,12,178,13],[178,14,178,15],[179,1,179,15],[180,2,180,11],[180,12,180,13],[180,14,180,15],[181,2,181,11],[181,12,181,13],[181,14,181,15],[173,2,173,11],[173,12,173,13],[173,14,173,15],[174,1,174,15],[175,2,175,11],[175,12,175,13],[175,14,175,15],[176,2,176,11],[176,12,176,13],[176,14,176,15],[169,2,169,11],[169,12,169,13],[169,14,169,15],[170,1,170,15],[171,2,171,11],[171,12,171,13],[171,14,171,15],[172,2,172,11],[172,12,172,13],[172,14,172,15],[164,1,164,15],[165,2,165,11],[165,12,165,13],[165,14,165,15],[166,1,166,15],[167,2,167,11],[167,12,167,13],[167,14,167,15],[168,2,168,11],[168,12,168,13],[168,14,168,15],[160,2,160,11],[160,12,160,13],[160,14,160,15],[161,1,161,15],[162,2,162,11],[162,12,162,13],[162,14,162,15],[163,2,163,11],[163,12,163,13],[163,14,163,15],[156,1,156,11],[156,12,156,13],[156,14,156,15],[157,1,157,15],[158,2,158,11],[158,12,158,13],[158,14,158,15],[159,2,159,11],[159,12,159,13],[159,14,159,15],[1,1,1,15],[2,1,2,15],[6,1,6,3],[6,4,6,7],[6,9,6,11],[6,12,6,15],[9,1,9,3],[9,4,9,7],[9,9,9,11],[9,12,9,15],[10,1,10,3],[10,4,10,7],[10,9,10,11],[10,12,10,15],[7,1,7,3],[7,4,7,7],[7,9,7,11],[7,12,7,15],[8,1,8,3],[8,4,8,7],[8,9,8,11],[8,12,8,15],[15,1,15,15],[11,1,11,3],[11,4,11,7],[11,9,11,11],[11,12,11,15],[12,1,12,3],[12,4,12,7],[12,9,12,11],[12,12,12,15],[19,2,19,11],[19,12,19,13],[19,14,19,15],[20,2,20,11],[20,12,20,13],[20,14,20,15],[17,1,17,15],[18,2,18,11],[18,12,18,13],[18,14,18,15],[24,1,24,15],[25,2,25,11],[26,1,26,15],[22,2,22,11],[23,2,23,11],[23,12,23,13],[23,14,23,15],[21,1,21,15],[22,12,22,13],[22,14,22,15],[25,12,25,13],[25,14,25,15],[29,2,29,11],[29,12,29,13],[29,14,29,15],[30,1,30,15],[27,2,27,11],[27,12,27,13],[27,14,27,15],[28,2,28,11],[28,12,28,13],[28,14,28,15],[34,1,34,15],[31,2,31,11],[31,12,31,13],[31,14,31,15],[33,2,33,11],[33,12,33,13],[33,14,33,15],[32,2,32,11],[32,12,32,13],[32,14,32,15],[39,1,39,15],[36,2,36,11],[36,12,36,13],[36,14,36,15],[38,12,38,13],[38,14,38,15],[38,1,38,11],[35,2,35,11],[35,12,35,13],[35,14,35,15],[40,2,40,11],[41,12,41,13],[41,14,41,15],[41,2,41,11],[43,12,43,13],[43,14,43,15],[42,2,42,11],[40,12,40,13],[40,14,40,15],[76,1,76,15],[80,1,80,15],[63,2,63,11],[66,2,66,11],[67,2,67,11],[69,2,69,11],[70,2,70,11],[72,2,72,11],[16,14,16,15],[16,12,16,13],[16,1,16,11],[62,1,62,15],[68,1,68,15],[71,1,71,15],[74,1,74,15],[58,2,58,11],[59,12,59,13],[59,14,59,15],[59,2,59,11],[55,1,55,15],[56,2,56,11],[58,12,58,13],[58,14,58,15],[57,1,57,15],[51,14,51,15],[56,12,56,13],[56,14,56,15],[73,2,73,11],[75,2,75,11],[53,2,53,11],[54,12,54,13],[54,14,54,15],[54,2,54,11],[51,2,51,11],[53,12,53,13],[53,14,53,15],[52,1,52,15],[66,12,66,13],[66,14,66,15],[72,12,72,13],[72,14,72,15],[73,12,73,13],[73,14,73,15],[75,12,75,13],[75,14,75,15],[67,12,67,13],[67,14,67,15],[69,12,69,13],[45,12,45,13],[45,14,45,15],[63,12,63,13],[63,14,63,15],[42,12,42,13],[42,14,42,15],[50,1,50,15],[48,2,48,11],[49,12,49,13],[49,14,49,15],[49,2,49,11],[46,2,46,11],[48,12,48,13],[48,14,48,15],[47,1,47,15],[43,2,43,11],[44,1,44,15],[45,2,45,11],[46,12,46,13],[46,14,46,15],[61,1,61,11],[61,12,61,13],[61,14,61,15],[51,12,51,13],[69,14,69,15],[70,12,70,13],[70,14,70,15],[250,1,254,2],[278,3,278,11],[269,3,269,11],[265,1,269,2],[267,3,267,11],[268,3,268,11],[77,12,77,13],[77,14,77,15],[78,12,78,13],[78,14,78,15],[79,12,79,13],[79,14,79,15],[77,2,77,11],[78,2,78,11],[79,2,79,11],[81,2,81,11],[81,12,81,13],[81,14,81,15],[152,1,152,15],[153,1,154,15],[255,13,259,13],[280,14,284,15],[275,1,279,2],[275,3,275,11],[276,3,276,11],[277,3,277,11],[264,3,264,11],[260,1,264,2],[265,3,265,11],[266,3,266,11],[272,3,272,11],[273,3,273,11],[274,3,274,11],[270,1,274,2],[255,14,259,15],[250,13,254,13],[250,14,254,15],[250,3,250,11],[251,3,251,11],[252,3,252,11],[253,3,253,11],[254,3,254,11],[255,3,255,11],[255,1,259,2],[260,3,260,11],[261,3,261,11],[262,3,262,11],[263,3,263,11],[256,3,256,11],[257,3,257,11],[258,3,258,11],[259,3,259,11],[64,2,64,11],[65,2,65,11],[64,12,64,13],[64,14,64,15],[65,12,65,13],[65,14,65,15],[280,1,284,2],[260,13,264,13],[260,14,264,15],[265,13,269,13],[265,14,269,15],[270,13,274,13],[270,14,274,15],[275,13,279,13],[275,14,279,15],[280,13,284,13],[279,3,279,11],[280,3,280,11],[281,3,281,11],[282,3,282,11],[283,3,283,11],[284,3,284,11],[270,3,270,11],[271,3,271,11],[86,1,86,11],[86,12,86,13],[86,14,86,15],[87,1,87,15],[88,2,88,11],[88,12,88,13],[88,14,88,15],[89,2,89,11],[89,12,89,13],[89,14,89,15],[90,2,90,11],[90,12,90,13],[90,14,90,15],[91,1,91,15],[92,2,92,11],[92,12,92,13],[92,14,92,15],[93,2,93,11],[93,12,93,13],[93,14,93,15],[94,1,94,15],[95,2,95,11],[95,12,95,13],[95,14,95,15],[96,1,96,15],[97,2,97,11],[97,12,97,13],[97,14,97,15],[98,2,98,11],[98,12,98,13],[98,14,98,15],[99,2,99,11],[99,12,99,13],[99,14,99,15],[100,1,100,15],[101,2,101,11],[101,12,101,13],[101,14,101,15],[102,2,102,11],[102,12,102,13],[102,14,102,15],[103,2,103,11],[103,12,103,13],[103,14,103,15],[104,1,104,15],[105,2,105,11],[105,12,105,13],[105,14,105,15],[106,2,106,11],[106,12,106,13],[106,14,106,15],[108,1,108,11],[108,12,108,13],[108,14,108,15],[109,1,109,15],[110,2,110,11],[110,12,110,13],[110,14,110,15],[111,2,111,11],[111,12,111,13],[111,14,111,15],[112,2,112,11],[112,12,112,13],[112,14,112,15],[113,2,113,11],[113,12,113,13],[113,14,113,15],[114,1,114,15],[115,2,115,11],[115,12,115,13],[115,14,115,15],[116,2,116,11],[116,12,116,13],[116,14,116,15],[117,1,117,15],[118,2,118,11],[118,12,118,13],[118,14,118,15],[119,2,119,11],[119,12,119,13],[119,14,119,15],[120,1,120,15],[121,2,121,11],[121,12,121,13],[121,14,121,15],[122,1,122,15],[123,2,123,11],[123,12,123,13],[123,14,123,15],[124,2,124,11],[124,12,124,13],[124,14,124,15],[125,1,125,15],[126,2,126,11],[126,12,126,13],[126,14,126,15],[127,1,127,15],[128,2,128,11],[128,12,128,13],[128,14,128,15],[129,2,129,11],[129,12,129,13],[129,14,129,15],[131,1,131,11],[131,12,131,13],[131,14,131,15],[132,1,132,15],[133,2,133,11],[133,12,133,13],[133,14,133,15],[134,2,134,11],[134,12,134,13],[134,14,134,15],[135,2,135,11],[135,12,135,13],[135,14,135,15],[136,2,136,11],[136,12,136,13],[136,14,136,15],[137,2,137,11],[137,12,137,13],[137,14,137,15],[139,12,139,13],[139,14,139,15],[140,2,140,11],[140,12,140,13],[140,14,140,15],[141,1,141,15],[142,2,142,11],[142,12,142,13],[142,14,142,15],[0,1,0,15],[148,2,148,11],[148,12,148,13],[148,14,148,15],[149,2,149,11],[149,12,149,13],[149,14,149,15],[150,1,150,15],[151,2,151,11],[151,12,151,13],[151,14,151,15],[143,2,143,11],[143,12,143,13],[143,14,143,15],[144,1,144,15],[145,2,145,11],[145,12,145,13],[145,14,145,15],[146,1,146,15],[147,2,147,11],[147,12,147,13],[147,14,147,15],[138,1,138,15],[139,2,139,11]]}
[null,"Electronic Self-Assessment Tool"]
[null,"SY 2025 - 2028"]
[null,{"$f":"HOME!E17&\" Teachers\"","v":" Teachers"}]
[]
[null,"PART I: DEMOGRAPHIC PROFILE"]
[]
[null,"Name of Employee:",null,null,{"$f":"'Demographic Profile'!N8&\" \"&'Demographic Profile'!N9&\" \"&'Demographic Profile'!N7","v":"  "},null,null,null,null,"Region:",null,null,{"$f":"'Demographic Profile'!F7","v":0}]
[null,"Position:",null,null,{"$f":"'Demographic Profile'!N11","v":0},null,null,null,null,"Division:",null,null,{"$f":"'Demographic Profile'!F8","v":0}]
[null,"Employment Status:",null,null,{"$f":"'Demographic Profile'!N12","v":0},null,null,null,null,"School:",null,null,{"$f":"'Demographic Profile'!F9","v":0}]
[null,"Age:",null,null,{"$f":"'Demographic Profile'!N13","v":0},null,null,null,null,"Curricular Classification:",null,null,{"$f":"'Demographic Profile'!F13","v":0}]
[null,"Sex:",null,null,{"$f":"'Demographic Profile'!N14","v":0},null,null,null,null,"Grade Level Taught:",null,null,{"$f":"'Demographic Profile'!R10","v":0}]
[null,"No. of Years in Teaching:",null,null,{"$f":"'Demographic Profile'!R7","v":0},null,null,null,null,"Area(s) of Specialization:",null,null,{"$f":"'Demographic Profile'!F93","v":""}]
[null,"Highest Degree Obtained:",null,null,{"$f":"'Demographic Profile'!R8","v":0},null,null,null,null,"Subject(s) Taught:",null,null,{"$f":"'Demographic Profile'!P96","v":""}]
[]
[null,"PART II: INDICATORS"]
[]
[null,"INDICATORS - YEAR 1",null,null,null,null,null,null,null,null,null,null,"Level of Capability",null,"Priority for Development"]
[null,"Domain 1. Content Knowledge and Pedagogy"]
[null,"1.1.2","Applied knowledge of content within and across curriculum teaching areas",null,null,null,null,null,null,null,null,null,{"$f":"VLOOKUP(INDIRECT(\"'Part II for P'!O\"&R19),leveldesc,2,0)","v":{"$error":"#N/A"}},null,{"$f":"VLOOKUP(INDIRECT(\"'Part II for P'!P\"&R19),leveldesc,2,0)","v":{"$error":"#N/A"}},null,null,{"$f":"MATCH(B19,'Part II for P'!B:B,0)","v":11}]
[null,"1.4.2","Used a range of teaching strategies that enhance learner achievement in literacy and numeracy skills",null,null,null,null,null,null,null,null,null,{"$f":"VLOOKUP(INDIRECT(\"'Part II for P'!O\"&R20),leveldesc,2,0)","v":{"$error":"#N/A"}},null,{"$f":"VLOOKUP(INDIRECT(\"'Part II for P'!P\"&R20),leveldesc,2,0)","v":{"$error":"#N/A"}},null,null,{"$f":"MATCH(B20,'Part II for P'!B:B,0)","v":14}]
[null,"1.5.2","Applied a range of teaching strategies to develop critical and creative thinking, as well as other higher-order thinking skills",null,null,null,null,null,null,null,null,null,{"$f":"VLOOKUP(INDIRECT(\"'Part II for P'!O\"&R21),leveldesc,2,0)","v":{"$error":"#N/A"}},null,{"$f":"VLOOKUP(INDIRECT(\"'Part II for P'!P\"&R21),leveldesc,2,0)","v":{"$error":"#N/A"}},null,null,{"$f":"MATCH(B21,'Part II for P'!B:B,0)","v":15}]
[null,"Domain 2. Learning Environment"]
[null,"2.3.2","Managed classroom structure to engage learners, individually or in groups, in meaningful exploration, discovery and hands-on activities within a range of physical learning environments",null,null,null,null,null,null,null,null,null,{"$f":"VLOOKUP(INDIRECT(\"'Part II for P'!O\"&R23),leveldesc,2,0)","v":{"$error":"#N/A"}},null,{"$f":"VLOOKUP(INDIRECT(\"'Part II for P'!P\"&R23),leveldesc,2,0)","v":{"$error":"#N/A"}},null,null,{"$f":"MATCH(B23,'Part II for P'!B:B,0)","v":21}]
[null,"2.6.2","Managed learner behavior constructively by applying positive and non-violent discipline to ensure learning- focused environments",null,null,null,null,null,null,null,null,null,{"$f":"VLOOKUP(INDIRECT(\"'Part II for P'!O\"&R24),leveldesc,2,0)","v":{"$error":"#N/A"}},null,{"$f":"VLOOKUP(INDIRECT(\"'Part II for P'!P\"&R24),leveldesc,2,0)","v":{"$error":"#N/A"}},null,null,{"$f":"MATCH(B24,'Part II for P'!B:B,0)","v":24}]
[null,"Domain 3. Diversity of Learners"]
[null,"3.1.2","Used differentiated, developmentally appropriate learning experiences to address learners’ gender, needs, strengths, interests and experiences",null,null,null,null,null,null,null,null,null,{"$f":"VLOOKUP(INDIRECT(\"'Part II for P'!O\"&R26),leveldesc,2,0)","v":{"$error":"#N/A"}},null,{"$f":"VLOOKUP(INDIRECT(\"'Part II for P'!P\"&R26),leveldesc,2,0)","v":{"$error":"#N/A"}},null,null,{"$f":"MATCH(B26,'Part II for P'!B:B,0)","v":26}]
[null,"Domain 4. Curriculum and Planning",null,null,null,null,null,null,null,null,null,null,{"$f":"VLOOKUP(#REF!,#REF!,2,0)","v":{"$error":"#REF!"}},null,{"$f":"VLOOKUP(#REF!,#REF!,2,0)","v":{"$error":"#REF!"}}]
[null,"4.1.2","Planned, managed and implemented developmentally sequenced teaching and learning processes to meet curriculum requirements and varied teaching contexts",null,null,null,null,null,null,null,null,null,{"$f":"VLOOKUP(INDIRECT(\"'Part II for P'!O\"&R28),leveldesc,2,0)","v":{"$error":"#N/A"}},null,{"$f":"VLOOKUP(INDIRECT(\"'Part II for P'!P\"&R28),leveldesc,2,0)","v":{"$error":"#N/A"}},null,null,{"$f":"MATCH(B28,'Part II for P'!B:B,0)","v":32}]
[null,"4.4.2","Participated in collegial discussions that use teacher and learner feedback to  enrich teaching practice",null,null,null,null,null,null,null,null,null,{"$f":"VLOOKUP(INDIRECT(\"'Part II for P'!O\"&R29),leveldesc,2,0)","v":{"$error":"#N/A"}},null,{"$f":"VLOOKUP(INDIRECT(\"'Part II for P'!P\"&R29),leveldesc,2,0)","v":{"$error":"#N/A"}},null,null,{"$f":"MATCH(B29,'Part II for P'!B:B,0)","v":35}]
[null,"4.5.2","Selected, developed, organized and used appropriate teaching and learning resources, including ICT, to address learning goals",null,null,null,null,null,null,null,null,null,{"$f":"VLOOKUP(INDIRECT(\"'Part II for P'!O\"&R30),leveldesc,2,0)","v":{"$error":"#N/A"}},null,{"$f":"VLOOKUP(INDIRECT(\"'Part II for P'!P\"&R30),leveldesc,2,0)","v":{"$error":"#N/A"}},null,null,{"$f":"MATCH(B30,'Part II for P'!B:B,0)","v":36}]
[null,"Domain 5. Assessment and Reporting",null,null,null,null,null,null,null,null,null,null,{"$f":"VLOOKUP(#REF!,#REF!,2,0)","v":{"$error":"#REF!"}},null,{"$f":"VLOOKUP(#REF!,#REF!,2,0)","v":{"$error":"#REF!"}}]
[null,"5.1.2","Designed, selected, organized and used diagnostic, formative and summative assessment strategies consistent with curriculum requirements",null,null,null,null,null,null,null,null,null,{"$f":"VLOOKUP(INDIRECT(\"'Part II for P'!O\"&R32),leveldesc,2,0)","v":{"$error":"#N/A"}},null,{"$f":"VLOOKUP(INDIRECT(\"'Part II for P'!P\"&R32),leveldesc,2,0)","v":{"$error":"#N/A"}},null,null,{"$f":"MATCH(B32,'Part II for P'!B:B,0)","v":38}]
[null,"5.2.2","Monitored and evaluated learner progress and achievement using learner attainment data",null,null,null,null,null,null,null,null,null,{"$f":"VLOOKUP(INDIRECT(\"'Part II for P'!O\"&R33),leveldesc,2,0)","v":{"$error":"#N/A"}},null,{"$f":"VLOOKUP(INDIRECT(\"'Part II for P'!P\"&R33),leveldesc,2,0)","v":{"$error":"#N/A"}},null,null,{"$f":"MATCH(B33,'Part II for P'!B:B,0)","v":39}]
[null,"5.4.2","Communicated promptly and clearly the learners’ needs, progress and achievement  to key stakeholders, including parents/guardians",null,null,null,null,null,null,null,null,null,{"$f":"VLOOKUP(INDIRECT(\"'Part II for P'!O\"&R34),leveldesc,2,0)","v":{"$error":"#N/A"}},null,{"$f":"VLOOKUP(INDIRECT(\"'Part II for P'!P\"&R34),leveldesc,2,0)","v":{"$error":"#N/A"}},null,null,{"$f":"MATCH(B34,'Part II for P'!B:B,0)","v":41}]
[null,"Domain 7. Personal Growth and Professional Development",null,null,null,null,null,null,null,null,null,null,{"$f":"VLOOKUP(#REF!,#REF!,2,0)","v":{"$error":"#REF!"}},null,{"$f":"VLOOKUP(#REF!,#REF!,2,0)","v":{"$error":"#REF!"}}]
[null,"7.1.2","Applied a personal philosophy of teaching that is learner-centered",null,null,null,null,null,null,null,null,null,{"$f":"VLOOKUP(INDIRECT(\"'Part II for P'!O\"&R36),leveldesc,2,0)","v":{"$error":"#N/A"}},null,{"$f":"VLOOKUP(INDIRECT(\"'Part II for P'!P\"&R36),leveldesc,2,0)","v":{"$error":"#N/A"}},null,null,{"$f":"MATCH(B36,'Part II for P'!B:B,0)","v":49}]
[null,"7.5.2","Set professional development goals based on the Philippine Professional Standards for Teachers",null,null,null,null,null,null,null,null,null,{"$f":"VLOOKUP(INDIRECT(\"'Part II for P'!O\"&R37),leveldesc,2,0)","v":{"$error":"#N/A"}},null,{"$f":"VLOOKUP(INDIRECT(\"'Part II for P'!P\"&R37),leveldesc,2,0)","v":{"$error":"#N/A"}},null,null,{"$f":"MATCH(B37,'Part II for P'!B:B,0)","v":53}]
[]
[null,"INDICATORS - YEAR 2",null,null,null,null,null,null,null,null,null,null,"Level of Capability",null,"Priority for Development"]
[null,"Domain 1. Content Knowledge and Pedagogy"]
[null,"1.1.2","Applied knowledge of content within and across curriculum teaching areas",null,null,null,null,null,null,null,null,null,{"$f":"VLOOKUP('Part II for P'!O11,leveldesc,2,0)","v":{"$error":"#N/A"}},null,{"$f":"VLOOKUP('Part II for P'!P11,leveldesc,2,0)","v":{"$error":"#N/A"}},null,null,{"$f":"MATCH(B41,'Part II for P'!B:B,0)","v":11}]
[null,"1.4.2","Used a range of teaching strategies that enhance learner achievement in literacy and numeracy skills",null,null,null,null,null,null,null,null,null,{"$f":"VLOOKUP(INDIRECT(\"'Part II for P'!O\"&R42),leveldesc,2,0)","v":{"$error":"#N/A"}},null,{"$f":"VLOOKUP(INDIRECT(\"'Part II for P'!P\"&R42),leveldesc,2,0)","v":{"$error":"#N/A"}},null,null,{"$f":"MATCH(B42,'Part II for P'!B:B,0)","v":14}]
[null,"1.5.2","Applied a range of teaching strategies to develop critical and creative thinking, as well as other higher-order thinking skills",null,null,null,null,null,null,null,null,null,{"$f":"VLOOKUP(INDIRECT(\"'Part II for P'!O\"&R43),leveldesc,2,0)","v":{"$error":"#N/A"}},null,{"$f":"VLOOKUP(INDIRECT(\"'Part II for P'!P\"&R43),leveldesc,2,0)","v":{"$error":"#N/A"}},null,null,{"$f":"MATCH(B43,'Part II for P'!B:B,0)","v":15}]
[null,"1.6.2","Displayed proficient use of Mother Tongue, Filipino and English to facilitate teaching and learning",null,null,null,null,null,null,null,null,null,{"$f":"VLOOKUP(INDIRECT(\"'Part II for P'!O\"&R44),leveldesc,2,0)","v":{"$error":"#N/A"}},null,{"$f":"VLOOKUP(INDIRECT(\"'Part II for P'!P\"&R44),leveldesc,2,0)","v":{"$error":"#N/A"}},null,null,{"$f":"MATCH(B44,'Part II for P'!B:B,0)","v":16}]
[null,"Domain 2. Learning Environment"]
[null,"2.1.2","Established safe and secure learning environments to enhance learning through the consistent implementation of policies, guidelines and procedures",null,null,null,null,null,null,null,null,null,{"$f":"VLOOKUP(INDIRECT(\"'Part II for P'!O\"&R46),leveldesc,2,0)","v":{"$error":"#N/A"}},null,{"$f":"VLOOKUP(INDIRECT(\"'Part II for P'!P\"&R46),leveldesc,2,0)","v":{"$error":"#N/A"}},null,null,{"$f":"MATCH(B46,'Part II for P'!B:B,0)","v":19}]
[null,"2.2.2","Maintained learning environments that promote fairness, respect and care to encourage learning",null,null,null,null,null,null,null,null,null,{"$f":"VLOOKUP(INDIRECT(\"'Part II for P'!O\"&R47),leveldesc,2,0)","v":{"$error":"#N/A"}},null,{"$f":"VLOOKUP(INDIRECT(\"'Part II for P'!P\"&R47),leveldesc,2,0)","v":{"$error":"#N/A"}},null,null,{"$f":"MATCH(B47,'Part II for P'!B:B,0)","v":20}]
[null,"Domain 3. Diversity of Learners"]
[null,"3.2.2","Established a learner- centered culture by using teaching strategies that respond to their linguistic, cultural, socioeconomic and religious backgrounds",null,null,null,null,null,null,null,null,null,{"$f":"VLOOKUP(INDIRECT(\"'Part II for P'!O\"&R49),leveldesc,2,0)","v":{"$error":"#N/A"}},null,{"$f":"VLOOKUP(INDIRECT(\"'Part II for P'!P\"&R49),leveldesc,2,0)","v":{"$error":"#N/A"}},null,null,{"$f":"MATCH(B49,'Part II for P'!B:B,0)","v":27}]
[null,"3.5.2","Adapted and used culturally appropriate teaching strategies to address the needs of learners from indigenous groups",null,null,null,null,null,null,null,null,null,{"$f":"VLOOKUP(INDIRECT(\"'Part II for P'!O\"&R50),leveldesc,2,0)","v":{"$error":"#N/A"}},null,{"$f":"VLOOKUP(INDIRECT(\"'Part II for P'!P\"&R50),leveldesc,2,0)","v":{"$error":"#N/A"}},null,null,{"$f":"MATCH(B50,'Part II for P'!B:B,0)","v":30}]
[null,"Domain 4. Curriculum and Planning"]
[null,"4.2.2","Set achievable and appropriate learning outcomes that are aligned with learning competencies",null,null,null,null,null,null,null,null,null,{"$f":"VLOOKUP(INDIRECT(\"'Part II for P'!O\"&R52),leveldesc,2,0)","v":{"$error":"#N/A"}},null,{"$f":"VLOOKUP(INDIRECT(\"'Part II for P'!P\"&R52),leveldesc,2,0)","v":{"$error":"#N/A"}},null,null,{"$f":"MATCH(B52,'Part II for P'!B:B,0)","v":33}]
[null,"Domain 5. Assessment and Reporting",null,null,null,null,null,null,null,null,null,null,{"$f":"VLOOKUP(#REF!,#REF!,2,0)","v":{"$error":"#REF!"}},null,{"$f":"VLOOKUP(#REF!,#REF!,2,0)","v":{"$error":"#REF!"}}]
[null,"5.3.2","Used strategies for providing timely, accurate and constructive feedback to improve learner performance",null,null,null,null,null,null,null,null,null,{"$f":"VLOOKUP(INDIRECT(\"'Part II for P'!O\"&R54),leveldesc,2,0)","v":{"$error":"#N/A"}},null,{"$f":"VLOOKUP(INDIRECT(\"'Part II for P'!P\"&R54),leveldesc,2,0)","v":{"$error":"#N/A"}},null,null,{"$f":"MATCH(B54,'Part II for P'!B:B,0)","v":40}]
[null,"5.5.2","Utilized assessment data to inform the modification of teaching and learning practices and programs",null,null,null,null,null,null,null,null,null,{"$f":"VLOOKUP(INDIRECT(\"'Part II for P'!O\"&R55),leveldesc,2,0)","v":{"$error":"#N/A"}},null,{"$f":"VLOOKUP(INDIRECT(\"'Part II for P'!P\"&R55),leveldesc,2,0)","v":{"$error":"#N/A"}},null,null,{"$f":"MATCH(B55,'Part II for P'!B:B,0)","v":42}]
[null,"Domain 6. Community Linkages and Professional Engagement",null,null,null,null,null,null,null,null,null,null,{"$f":"VLOOKUP(#REF!,#REF!,2,0)","v":{"$error":"#REF!"}},null,{"$f":"VLOOKUP(#REF!,#REF!,2,0)","v":{"$error":"#REF!"}}]
[null,"6.2.2","Built relationships with parents/ guardians and the wider school community to facilitate involvement in the educative process",null,null,null,null,null,null,null,null,null,{"$f":"VLOOKUP(INDIRECT(\"'Part II for P'!O\"&R57),leveldesc,2,0)","v":{"$error":"#N/A"}},null,{"$f":"VLOOKUP(INDIRECT(\"'Part II for P'!P\"&R57),leveldesc,2,0)","v":{"$error":"#N/A"}},null,null,{"$f":"MATCH(B57,'Part II for P'!B:B,0)","v":45}]
[null,"Domain 7. Personal Growth and Professional Development",null,null,null,null,null,null,null,null,null,null,{"$f":"VLOOKUP(#REF!,#REF!,2,0)","v":{"$error":"#REF!"}},null,{"$f":"VLOOKUP(#REF!,#REF!,2,0)","v":{"$error":"#REF!"}}]
[null,"7.3.2","Participated in professional networks to share knowledge and to enhance practice",null,null,null,null,null,null,null,null,null,{"$f":"VLOOKUP(INDIRECT(\"'Part II for P'!O\"&R59),leveldesc,2,0)","v":{"$error":"#N/A"}},null,{"$f":"VLOOKUP(INDIRECT(\"'Part II for P'!P\"&R59),leveldesc,2,0)","v":{"$error":"#N/A"}},null,null,{"$f":"MATCH(B59,'Part II for P'!B:B,0)","v":51}]
[null,"7.4.2","Developed a personal improvement plan based on reflection of one’s practice and ongoing professional learning",null,null,null,null,null,null,null,null,null,{"$f":"VLOOKUP(INDIRECT(\"'Part II for P'!O\"&R60),leveldesc,2,0)","v":{"$error":"#N/A"}},null,{"$f":"VLOOKUP(INDIRECT(\"'Part II for P'!P\"&R60),leveldesc,2,0)","v":{"$error":"#N/A"}},null,null,{"$f":"MATCH(B60,'Part II for P'!B:B,0)","v":52}]
[]
[null,"INDICATORS - YEAR 3",null,null,null,null,null,null,null,null,null,null,"Level of Capability",null,"Priority for Development"]
[null,"Domain 1. Content Knowledge and Pedagogy"]
[null,"1.1.2","Applied knowledge of content within and across curriculum teaching areas",null,null,null,null,null,null,null,null,null,{"$f":"VLOOKUP(INDIRECT(\"'Part II for P'!O\"&R64),leveldesc,2,0)","v":{"$error":"#N/A"}},null,{"$f":"VLOOKUP(INDIRECT(\"'Part II for P'!P\"&R64),leveldesc,2,0)","v":{"$error":"#N/A"}},null,null,{"$f":"MATCH(B64,'Part II for P'!B:B,0)","v":11}]
[null,"1.2.2","Used research-based knowledge and principles of teaching and learning to enhance professional practice",null,null,null,null,null,null,null,null,null,{"$f":"VLOOKUP(INDIRECT(\"'Part II for P'!O\"&R65),leveldesc,2,0)","v":{"$error":"#N/A"}},null,{"$f":"VLOOKUP(INDIRECT(\"'Part II for P'!P\"&R65),leveldesc,2,0)","v":{"$error":"#N/A"}},null,null,{"$f":"MATCH(B65,'Part II for P'!B:B,0)","v":12}]
[null,"1.3.2","Ensured the positive use of ICT to facilitate the teaching and learning process",null,null,null,null,null,null,null,null,null,{"$f":"VLOOKUP(INDIRECT(\"'Part II for P'!O\"&R66),leveldesc,2,0)","v":{"$error":"#N/A"}},null,{"$f":"VLOOKUP(INDIRECT(\"'Part II for P'!P\"&R66),leveldesc,2,0)","v":{"$error":"#N/A"}},null,null,{"$f":"MATCH(B66,'Part II for P'!B:B,0)","v":13}]
[null,"1.4.2","Used a range of teaching strategies that enhance learner achievement in literacy and numeracy skills",null,null,null,null,null,null,null,null,null,{"$f":"VLOOKUP(INDIRECT(\"'Part II for P'!O\"&R67),leveldesc,2,0)","v":{"$error":"#N/A"}},null,{"$f":"VLOOKUP(INDIRECT(\"'Part II for P'!P\"&R67),leveldesc,2,0)","v":{"$error":"#N/A"}},null,null,{"$f":"MATCH(B67,'Part II for P'!B:B,0)","v":14}]
[null,"1.7.2","Used effective verbal and non-verbal classroom communication strategies to support learner understanding, participation, engagement and achievement",null,null,null,null,null,null,null,null,null,{"$f":"VLOOKUP(INDIRECT(\"'Part II for P'!O\"&R68),leveldesc,2,0)","v":{"$error":"#N/A"}},null,{"$f":"VLOOKUP(INDIRECT(\"'Part II for P'!P\"&R68),leveldesc,2,0)","v":{"$error":"#N/A"}},null,null,{"$f":"MATCH(B68,'Part II for P'!B:B,0)","v":17}]
[null,"Domain 2. Learning Environment"]
[null,"2.4.2","Maintained learning environments that nurture and inspire learners to participate, cooperate and collaborate in continued learning",null,null,null,null,null,null,null,null,null,{"$f":"VLOOKUP(INDIRECT(\"'Part II for P'!O\"&R70),leveldesc,2,0)","v":{"$error":"#N/A"}},null,{"$f":"VLOOKUP(INDIRECT(\"'Part II for P'!P\"&R70),leveldesc,2,0)","v":{"$error":"#N/A"}},null,null,{"$f":"MATCH(B70,'Part II for P'!B:B,0)","v":22}]
[null,"2.5.2","Applied a range of successful strategies that maintain learning environments that motivate learners to work productively by assuming responsibility for their own learning",null,null,null,null,null,null,null,null,null,{"$f":"VLOOKUP(INDIRECT(\"'Part II for P'!O\"&R71),leveldesc,2,0)","v":{"$error":"#N/A"}},null,{"$f":"VLOOKUP(INDIRECT(\"'Part II for P'!P\"&R71),leveldesc,2,0)","v":{"$error":"#N/A"}},null,null,{"$f":"MATCH(B71,'Part II for P'!B:B,0)","v":23}]
[null,"Domain 3. Diversity of Learners"]
[null,"3.3.2","Designed, adapted and implemented teaching strategies that are responsive to learners with disabilities, giftedness and talents",null,null,null,null,null,null,null,null,null,{"$f":"VLOOKUP(INDIRECT(\"'Part II for P'!O\"&R73),leveldesc,2,0)","v":{"$error":"#N/A"}},null,{"$f":"VLOOKUP(INDIRECT(\"'Part II for P'!P\"&R73),leveldesc,2,0)","v":{"$error":"#N/A"}},null,null,{"$f":"MATCH(B73,'Part II for P'!B:B,0)","v":28}]
[null,"3.4.2","Planned and delivered teaching strategies that are responsive to the special educational needs of learners in difficult circumstances*, including: geographic isolation; chronic illness; displacement due to armed conflict, urban resettlement or disasters; child abuse and child labor practices",null,null,null,null,null,null,null,null,null,{"$f":"VLOOKUP(INDIRECT(\"'Part II for P'!O\"&R74),leveldesc,2,0)","v":{"$error":"#N/A"}},null,{"$f":"VLOOKUP(INDIRECT(\"'Part II for P'!P\"&R74),leveldesc,2,0)","v":{"$error":"#N/A"}},null,null,{"$f":"MATCH(B74,'Part II for P'!B:B,0)","v":29}]
[null,"Domain 4. Curriculum and Planning"]
[null,"4.3.2","Adapted and implemented learning programs that ensure relevance and responsiveness to the needs of all learners",null,null,null,null,null,null,null,null,null,{"$f":"VLOOKUP(INDIRECT(\"'Part II for P'!O\"&R76),leveldesc,2,0)","v":{"$error":"#N/A"}},null,{"$f":"VLOOKUP(INDIRECT(\"'Part II for P'!P\"&R76),leveldesc,2,0)","v":{"$error":"#N/A"}},null,null,{"$f":"MATCH(B76,'Part II for P'!B:B,0)","v":34}]
[null,"Domain 6. Community Linkages and Professional Engagement"]
[null,"6.1.2","Maintained learning environments that are responsive to community contexts",null,null,null,null,null,null,null,null,null,{"$f":"VLOOKUP(INDIRECT(\"'Part II for P'!O\"&R78),leveldesc,2,0)","v":{"$error":"#N/A"}},null,{"$f":"VLOOKUP(INDIRECT(\"'Part II for P'!P\"&R78),leveldesc,2,0)","v":{"$error":"#N/A"}},null,null,{"$f":"MATCH(B78,'Part II for P'!B:B,0)","v":44}]
[null,"6.3.2","Reviewed regularly personal teaching practice using existing laws and regulations that apply to the teaching profession and the responsibilities specified in the Code of Ethics for Professional Teachers",null,null,null,null,null,null,null,null,null,{"$f":"VLOOKUP(INDIRECT(\"'Part II for P'!O\"&R79),leveldesc,2,0)","v":{"$error":"#N/A"}},null,{"$f":"VLOOKUP(INDIRECT(\"'Part II for P'!P\"&R79),leveldesc,2,0)","v":{"$error":"#N/A"}},null,null,{"$f":"MATCH(B79,'Part II for P'!B:B,0)","v":46}]
[null,"6.4.2","Complied with and implemented school policies and procedures consistently to foster harmonious relationships with learners, parents, and other stakeholders",null,null,null,null,null,null,null,null,null,{"$f":"VLOOKUP(INDIRECT(\"'Part II for P'!O\"&R80),leveldesc,2,0)","v":{"$error":"#N/A"}},null,{"$f":"VLOOKUP(INDIRECT(\"'Part II for P'!P\"&R80),leveldesc,2,0)","v":{"$error":"#N/A"}},null,null,{"$f":"MATCH(B80,'Part II for P'!B:B,0)","v":47}]
[null,"Domain 7. Personal Growth and Professional Development"]
[null,"7.2.2","Adopted practices that uphold the dignity of teaching as a profession by exhibiting qualities such as caring attitude, respect and integrity",null,null,null,null,null,null,null,null,null,{"$f":"VLOOKUP(INDIRECT(\"'Part II for P'!O\"&R82),leveldesc,2,0)","v":{"$error":"#N/A"}},null,{"$f":"VLOOKUP(INDIRECT(\"'Part II for P'!P\"&R82),leveldesc,2,0)","v":{"$error":"#N/A"}},null,null,{"$f":"MATCH(B82,'Part II for P'!B:B,0)","v":50}]
[null,"Personal Comments"]
[]
[]
[]
[null,"INDICATORS - YEAR 1",null,null,null,null,null,null,null,null,null,null,"Level of Capability",null,"Priority for Development"]
[null,"Domain 1. Content Knowledge and Pedagogy"]
[null,"1.1.3","Modelled effective applications of content knowledge within and across curriculum teaching areas",null,null,null,null,null,null,null,null,null,{"$f":"VLOOKUP(INDIRECT(\"'Part II for HP'!O\"&R89),leveldesc,2,0)","v":{"$error":"#N/A"}},null,{"$f":"VLOOKUP(INDIRECT(\"'Part II for HP'!P\"&R89),leveldesc,2,0)","v":{"$error":"#N/A"}},null,null,{"$f":"MATCH(B89,'Part II for HP'!B:B,0)","v":11}]
[null,"1.4.3","Evaluated with colleagues the effectiveness of teaching strategies that promote learner achievement in literacy and numeracy",null,null,null,null,null,null,null,null,null,{"$f":"VLOOKUP(INDIRECT(\"'Part II for HP'!O\"&R90),leveldesc,2,0)","v":{"$error":"#N/A"}},null,{"$f":"VLOOKUP(INDIRECT(\"'Part II for HP'!P\"&R90),leveldesc,2,0)","v":{"$error":"#N/A"}},null,null,{"$f":"MATCH(B90,'Part II for HP'!B:B,0)","v":14}]
[null,"1.5.3","Developed and applied effective teaching strategies to promote critical and creative thinking, as well as other higher-order thinking skills",null,null,null,null,null,null,null,null,null,{"$f":"VLOOKUP(INDIRECT(\"'Part II for HP'!O\"&R91),leveldesc,2,0)","v":{"$error":"#N/A"}},null,{"$f":"VLOOKUP(INDIRECT(\"'Part II for HP'!P\"&R91),leveldesc,2,0)","v":{"$error":"#N/A"}},null,null,{"$f":"MATCH(B91,'Part II for HP'!B:B,0)","v":15}]
[null,"Domain 2. Learning Environment"]
[null,"2.3.3","Worked with colleagues to model and share effective techniques in the management of classroom structure to engage learners, individually or in groups, in meaningful exploration, discovery and hands-on activities within a range of physical learning environments",null,null,null,null,null,null,null,null,null,{"$f":"VLOOKUP(INDIRECT(\"'Part II for HP'!O\"&R93),leveldesc,2,0)","v":{"$error":"#N/A"}},null,{"$f":"VLOOKUP(INDIRECT(\"'Part II for HP'!P\"&R93),leveldesc,2,0)","v":{"$error":"#N/A"}},null,null,{"$f":"MATCH(B93,'Part II for HP'!B:B,0)","v":21}]
[null,"2.6.3","Exhibited effective and constructive behavior management skills by applying positive and non-violent discipline to ensure learning- focused environments",null,null,null,null,null,null,null,null,null,{"$f":"VLOOKUP(INDIRECT(\"'Part II for HP'!O\"&R94),leveldesc,2,0)","v":{"$error":"#N/A"}},null,{"$f":"VLOOKUP(INDIRECT(\"'Part II for HP'!P\"&R94),leveldesc,2,0)","v":{"$error":"#N/A"}},null,null,{"$f":"MATCH(B94,'Part II for HP'!B:B,0)","v":24}]
[null,"Domain 3. Diversity of Learners"]
[null,"3.1.3","Worked with colleagues to share differentiated, developmentally appropriate opportunities to address learners’ differences in gender, needs, strengths, interests and experiences",null,null,null,null,null,null,null,null,null,{"$f":"VLOOKUP(INDIRECT(\"'Part II for HP'!O\"&R96),leveldesc,2,0)","v":{"$error":"#N/A"}},null,{"$f":"VLOOKUP(INDIRECT(\"'Part II for HP'!P\"&R96),leveldesc,2,0)","v":{"$error":"#N/A"}},null,null,{"$f":"MATCH(B96,'Part II for HP'!B:B,0)","v":26}]
[null,"Domain 4. Curriculum and Planning",null,null,null,null,null,null,null,null,null,null,{"$f":"VLOOKUP(#REF!,#REF!,2,0)","v":{"$error":"#REF!"}},null,{"$f":"VLOOKUP(#REF!,#REF!,2,0)","v":{"$error":"#REF!"}}]
[null,"4.1.3","Developed and applied effective strategies in the planning and management of developmentally sequenced teaching and learning processes  to meet curriculum requirements and varied teaching\ncontexts",null,null,null,null,null,null,null,null,null,{"$f":"VLOOKUP(INDIRECT(\"'Part II for HP'!O\"&R98),leveldesc,2,0)","v":{"$error":"#N/A"}},null,{"$f":"VLOOKUP(INDIRECT(\"'Part II for HP'!P\"&R98),leveldesc,2,0)","v":{"$error":"#N/A"}},null,null,{"$f":"MATCH(B98,'Part II for HP'!B:B,0)","v":32}]
[null,"4.4.3","Reviewed with colleagues, teacher and learner feedback to plan, facilitate and enrich teaching practice",null,null,null,null,null,null,null,null,null,{"$f":"VLOOKUP(INDIRECT(\"'Part II for HP'!O\"&R99),leveldesc,2,0)","v":{"$error":"#N/A"}},null,{"$f":"VLOOKUP(INDIRECT(\"'Part II for HP'!P\"&R99),leveldesc,2,0)","v":{"$error":"#N/A"}},null,null,{"$f":"MATCH(B99,'Part II for HP'!B:B,0)","v":35}]
[null,"4.5.3","Advised and guided colleagues  in the selection, organization, development and use of appropriate teaching and learning resources, including ICT, to address specific learning goals",null,null,null,null,null,null,null,null,null,{"$f":"VLOOKUP(INDIRECT(\"'Part II for HP'!O\"&R100),leveldesc,2,0)","v":{"$error":"#N/A"}},null,{"$f":"VLOOKUP(INDIRECT(\"'Part II for HP'!P\"&R100),leveldesc,2,0)","v":{"$error":"#N/A"}},null,null,{"$f":"MATCH(B100,'Part II for HP'!B:B,0)","v":36}]
[null,"Domain 5. Assessment and Reporting",null,null,null,null,null,null,null,null,null,null,{"$f":"VLOOKUP(#REF!,#REF!,2,0)","v":{"$error":"#REF!"}},null,{"$f":"VLOOKUP(#REF!,#REF!,2,0)","v":{"$error":"#REF!"}}]
[null,"5.1.3","Worked collaboratively with colleagues to review the design, selection, organization and use of a range of effective diagnostic, formative and summative assessment strategies consistent with curriculum requirements",null,null,null,null,null,null,null,null,null,{"$f":"VLOOKUP(INDIRECT(\"'Part II for HP'!O\"&R102),leveldesc,2,0)","v":{"$error":"#N/A"}},null,{"$f":"VLOOKUP(INDIRECT(\"'Part II for HP'!P\"&R102),leveldesc,2,0)","v":{"$error":"#N/A"}},null,null,{"$f":"MATCH(B102,'Part II for HP'!B:B,0)","v":38}]
[null,"5.2.3","Interpreted collaboratively monitoring and evaluation strategies of attainment data to support learner progress and achievement",null,null,null,null,null,null,null,null,null,{"$f":"VLOOKUP(INDIRECT(\"'Part II for HP'!O\"&R103),leveldesc,2,0)","v":{"$error":"#N/A"}},null,{"$f":"VLOOKUP(INDIRECT(\"'Part II for HP'!P\"&R103),leveldesc,2,0)","v":{"$error":"#N/A"}},null,null,{"$f":"MATCH(B103,'Part II for HP'!B:B,0)","v":39}]
[null,"5.4.3","Applied skills in the effective communication of learner needs, progress and achievement to key stakeholders, including parents/guardians",null,null,null,null,null,null,null,null,null,{"$f":"VLOOKUP(INDIRECT(\"'Part II for HP'!O\"&R104),leveldesc,2,0)","v":{"$error":"#N/A"}},null,{"$f":"VLOOKUP(INDIRECT(\"'Part II for HP'!P\"&R104),leveldesc,2,0)","v":{"$error":"#N/A"}},null,null,{"$f":"MATCH(B104,'Part II for HP'!B:B,0)","v":41}]
[null,"Domain 7. Personal Growth and Professional Development",null,null,null,null,null,null,null,null,null,null,{"$f":"VLOOKUP(#REF!,#REF!,2,0)","v":{"$error":"#REF!"}},null,{"$f":"VLOOKUP(#REF!,#REF!,2,0)","v":{"$error":"#REF!"}}]
[null,"7.1.3","Manifested a learner-centered teaching philosophy in various aspects of practice and support colleagues in enhancing their own learner-centered teaching philosophy",null,null,null,null,null,null,null,null,null,{"$f":"VLOOKUP(INDIRECT(\"'Part II for HP'!O\"&R106),leveldesc,2,0)","v":{"$error":"#N/A"}},null,{"$f":"VLOOKUP(INDIRECT(\"'Part II for HP'!P\"&R106),leveldesc,2,0)","v":{"$error":"#N/A"}},null,null,{"$f":"MATCH(B106,'Part II for HP'!B:B,0)","v":49}]
[null,"7.5.3","Reflected on the Philippine Professional Standards for Teachers to plan personal professional development goals and assist colleagues in planning and achieving their own goals",null,null,null,null,null,null,null,null,null,{"$f":"VLOOKUP(INDIRECT(\"'Part II for HP'!O\"&R107),leveldesc,2,0)","v":{"$error":"#N/A"}},null,{"$f":"VLOOKUP(INDIRECT(\"'Part II for HP'!P\"&R107),leveldesc,2,0)","v":{"$error":"#N/A"}},null,null,{"$f":"MATCH(B107,'Part II for HP'!B:B,0)","v":53}]
[]
[null,"INDICATORS - YEAR 2",null,null,null,null,null,null,null,null,null,null,"Level of Capability",null,"Priority for Development"]
[null,"Domain 1. Content Knowledge and Pedagogy"]
[null,"1.1.3","Modelled effective applications of content knowledge within and across curriculum teaching areas",null,null,null,null,null,null,null,null,null,{"$f":"VLOOKUP(INDIRECT(\"'Part II for HP'!O\"&R111),leveldesc,2,0)","v":{"$error":"#N/A"}},null,{"$f":"VLOOKUP(INDIRECT(\"'Part II for HP'!P\"&R111),leveldesc,2,0)","v":{"$error":"#N/A"}},null,null,{"$f":"MATCH(B111,'Part II for HP'!B:B,0)","v":11}]
[null,"1.4.3","Evaluated with colleagues the effectiveness of teaching strategies that promote learner achievement in literacy and numeracy",null,null,null,null,null,null,null,null,null,{"$f":"VLOOKUP(INDIRECT(\"'Part II for HP'!O\"&R112),leveldesc,2,0)","v":{"$error":"#N/A"}},null,{"$f":"VLOOKUP(INDIRECT(\"'Part II for HP'!P\"&R112),leveldesc,2,0)","v":{"$error":"#N/A"}},null,null,{"$f":"MATCH(B112,'Part II for HP'!B:B,0)","v":14}]
[null,"1.5.3","Developed and applied effective teaching strategies to promote critical and creative thinking, as well as other higher-order thinking skills",null,null,null,null,null,null,null,null,null,{"$f":"VLOOKUP(INDIRECT(\"'Part II for HP'!O\"&R113),leveldesc,2,0)","v":{"$error":"#N/A"}},null,{"$f":"VLOOKUP(INDIRECT(\"'Part II for HP'!P\"&R113),leveldesc,2,0)","v":{"$error":"#N/A"}},null,null,{"$f":"MATCH(B113,'Part II for HP'!B:B,0)","v":15}]
[null,"1.6.3","Modelled and supported colleagues in the proficient use of Mother Tongue, Filipino and English to improve teaching and learning, as well as to develop learners’ pride of their language, heritage and culture",null,null,null,null,null,null,null,null,null,{"$f":"VLOOKUP(INDIRECT(\"'Part II for HP'!O\"&R114),leveldesc,2,0)","v":{"$error":"#N/A"}},null,{"$f":"VLOOKUP(INDIRECT(\"'Part II for HP'!P\"&R114),leveldesc,2,0)","v":{"$error":"#N/A"}},null,null,{"$f":"MATCH(B114,'Part II for HP'!B:B,0)","v":16}]
[null,"Domain 2. Learning Environment"]
[null,"2.1.3","Exhibited effective strategies that ensure safe and secure learning environments to enhance learning through the consistent implementation of policies, guidelines and procedures",null,null,null,null,null,null,null,null,null,{"$f":"VLOOKUP(INDIRECT(\"'Part II for HP'!O\"&R116),leveldesc,2,0)","v":{"$error":"#N/A"}},null,{"$f":"VLOOKUP(INDIRECT(\"'Part II for HP'!P\"&R116),leveldesc,2,0)","v":{"$error":"#N/A"}},null,null,{"$f":"MATCH(B116,'Part II for HP'!B:B,0)","v":19}]
[null,"2.2.3","Exhibited effective practices to foster learning environments that promote fairness, respect and care to encourage learning",null,null,null,null,null,null,null,null,null,{"$f":"VLOOKUP(INDIRECT(\"'Part II for HP'!O\"&R117),leveldesc,2,0)","v":{"$error":"#N/A"}},null,{"$f":"VLOOKUP(INDIRECT(\"'Part II for HP'!P\"&R117),leveldesc,2,0)","v":{"$error":"#N/A"}},null,null,{"$f":"MATCH(B117,'Part II for HP'!B:B,0)","v":20}]
[null,"Domain 3. Diversity of Learners"]
[null,"3.2.3","Exhibited a learner-centered culture that promotes success by using effective teaching strategies that respond to their linguistic, cultural, socioeconomic and religious backgrounds",null,null,null,null,null,null,null,null,null,{"$f":"VLOOKUP(INDIRECT(\"'Part II for HP'!O\"&R119),leveldesc,2,0)","v":{"$error":"#N/A"}},null,{"$f":"VLOOKUP(INDIRECT(\"'Part II for HP'!P\"&R119),leveldesc,2,0)","v":{"$error":"#N/A"}},null,null,{"$f":"MATCH(B119,'Part II for HP'!B:B,0)","v":27}]
[null,"3.5.3","Developed and applied teaching strategies to address effectively the needs of learners from indigenous groups",null,null,null,null,null,null,null,null,null,{"$f":"VLOOKUP(INDIRECT(\"'Part II for HP'!O\"&R120),leveldesc,2,0)","v":{"$error":"#N/A"}},null,{"$f":"VLOOKUP(INDIRECT(\"'Part II for HP'!P\"&R120),leveldesc,2,0)","v":{"$error":"#N/A"}},null,null,{"$f":"MATCH(B120,'Part II for HP'!B:B,0)","v":30}]
[null,"Domain 4. Curriculum and Planning"]
[null,"4.2.3","Modelled to colleagues the setting of achievable and challenging learning outcomes that are aligned with learning competencies to cultivate a culture of excellence for all learners",null,null,null,null,null,null,null,null,null,{"$f":"VLOOKUP(INDIRECT(\"'Part II for HP'!O\"&R122),leveldesc,2,0)","v":{"$error":"#N/A"}},null,{"$f":"VLOOKUP(INDIRECT(\"'Part II for HP'!P\"&R122),leveldesc,2,0)","v":{"$error":"#N/A"}},null,null,{"$f":"MATCH(B122,'Part II for HP'!B:B,0)","v":33}]
[null,"Domain 5. Assessment and Reporting",null,null,null,null,null,null,null,null,null,null,{"$f":"VLOOKUP(#REF!,#REF!,2,0)","v":{"$error":"#REF!"}},null,{"$f":"VLOOKUP(#REF!,#REF!,2,0)","v":{"$error":"#REF!"}}]
[null,"5.3.3","Used effective strategies for providing timely, accurate and constructive feedback to encourage learners to reflect on and improve their own learning",null,null,null,null,null,null,null,null,null,{"$f":"VLOOKUP(INDIRECT(\"'Part II for HP'!O\"&R124),leveldesc,2,0)","v":{"$error":"#N/A"}},null,{"$f":"VLOOKUP(INDIRECT(\"'Part II for HP'!P\"&R124),leveldesc,2,0)","v":{"$error":"#N/A"}},null,null,{"$f":"MATCH(B124,'Part II for HP'!B:B,0)","v":40}]
[null,"5.5.3","Worked collaboratively with colleagues to analyze and utilize assessment data to modify practices and programs to further support learner progress and achievement",null,null,null,null,null,null,null,null,null,{"$f":"VLOOKUP(INDIRECT(\"'Part II for HP'!O\"&R125),leveldesc,2,0)","v":{"$error":"#N/A"}},null,{"$f":"VLOOKUP(INDIRECT(\"'Part II for HP'!P\"&R125),leveldesc,2,0)","v":{"$error":"#N/A"}},null,null,{"$f":"MATCH(B125,'Part II for HP'!B:B,0)","v":42}]
[null,"Domain 6. Community Linkages and Professional Engagement",null,null,null,null,null,null,null,null,null,null,{"$f":"VLOOKUP(#REF!,#REF!,2,0)","v":{"$error":"#REF!"}},null,{"$f":"VLOOKUP(#REF!,#REF!,2,0)","v":{"$error":"#REF!"}}]
[null,"6.2.3","Guided colleagues to strengthen relationships with parents/ guardians and the wider school community to maximize their involvement in the educative process",null,null,null,null,null,null,null,null,null,{"$f":"VLOOKUP(INDIRECT(\"'Part II for HP'!O\"&R127),leveldesc,2,0)","v":{"$error":"#N/A"}},null,{"$f":"VLOOKUP(INDIRECT(\"'Part II for HP'!P\"&R127),leveldesc,2,0)","v":{"$error":"#N/A"}},null,null,{"$f":"MATCH(B127,'Part II for HP'!B:B,0)","v":45}]
[null,"Domain 7. Personal Growth and Professional Development",null,null,null,null,null,null,null,null,null,null,{"$f":"VLOOKUP(#REF!,#REF!,2,0)","v":{"$error":"#REF!"}},null,{"$f":"VLOOKUP(#REF!,#REF!,2,0)","v":{"$error":"#REF!"}}]
[null,"7.3.3","Contributed actively to professional networks within and between schools to improve knowledge and to enhance practice",null,null,null,null,null,null,null,null,null,{"$f":"VLOOKUP(INDIRECT(\"'Part II for HP'!O\"&R129),leveldesc,2,0)","v":{"$error":"#N/A"}},null,{"$f":"VLOOKUP(INDIRECT(\"'Part II for HP'!P\"&R129),leveldesc,2,0)","v":{"$error":"#N/A"}},null,null,{"$f":"MATCH(B129,'Part II for HP'!B:B,0)","v":51}]
[null,"7.4.3","Initiated professional reflections and promote learning opportunities with colleagues to improve practice",null,null,null,null,null,null,null,null,null,{"$f":"VLOOKUP(INDIRECT(\"'Part II for HP'!O\"&R130),leveldesc,2,0)","v":{"$error":"#N/A"}},null,{"$f":"VLOOKUP(INDIRECT(\"'Part II for HP'!P\"&R130),leveldesc,2,0)","v":{"$error":"#N/A"}},null,null,{"$f":"MATCH(B130,'Part II for HP'!B:B,0)","v":52}]
[]
[null,"INDICATORS - YEAR 3",null,null,null,null,null,null,null,null,null,null,"Level of Capability",null,"Priority for Development"]
[null,"Domain 1. Content Knowledge and Pedagogy"]
[null,"1.1.3","Modelled effective applications of content knowledge within and across curriculum teaching areas",null,null,null,null,null,null,null,null,null,{"$f":"VLOOKUP(INDIRECT(\"'Part II for HP'!O\"&R134),leveldesc,2,0)","v":{"$error":"#N/A"}},null,{"$f":"VLOOKUP(INDIRECT(\"'Part II for HP'!P\"&R134),leveldesc,2,0)","v":{"$error":"#N/A"}},null,null,{"$f":"MATCH(B134,'Part II for HP'!B:B,0)","v":11}]
[null,"1.2.3","Collaborated with colleagues in the conduct and   application of research to enrich knowledge of content and pedagogy",null,null,null,null,null,null,null,null,null,{"$f":"VLOOKUP(INDIRECT(\"'Part II for HP'!O\"&R135),leveldesc,2,0)","v":{"$error":"#N/A"}},null,{"$f":"VLOOKUP(INDIRECT(\"'Part II for HP'!P\"&R135),leveldesc,2,0)","v":{"$error":"#N/A"}},null,null,{"$f":"MATCH(B135,'Part II for HP'!B:B,0)","v":12}]
[null,"1.3.3","Promoted effective strategies in the positive use of ICT to facilitate the teaching and learning process",null,null,null,null,null,null,null,null,null,{"$f":"VLOOKUP(INDIRECT(\"'Part II for HP'!O\"&R136),leveldesc,2,0)","v":{"$error":"#N/A"}},null,{"$f":"VLOOKUP(INDIRECT(\"'Part II for HP'!P\"&R136),leveldesc,2,0)","v":{"$error":"#N/A"}},null,null,{"$f":"MATCH(B136,'Part II for HP'!B:B,0)","v":13}]
[null,"1.4.3","Evaluated with colleagues the effectiveness of teaching strategies that promote learner achievement in literacy and numeracy",null,null,null,null,null,null,null,null,null,{"$f":"VLOOKUP(INDIRECT(\"'Part II for HP'!O\"&R137),leveldesc,2,0)","v":{"$error":"#N/A"}},null,{"$f":"VLOOKUP(INDIRECT(\"'Part II for HP'!P\"&R137),leveldesc,2,0)","v":{"$error":"#N/A"}},null,null,{"$f":"MATCH(B137,'Part II for HP'!B:B,0)","v":14}]
[null,"1.7.3","Displayed a wide range of effective verbal and non-verbal classroom communication strategies to support learner understanding, participation, engagement and achievement",null,null,null,null,null,null,null,null,null,{"$f":"VLOOKUP(INDIRECT(\"'Part II for HP'!O\"&R138),leveldesc,2,0)","v":{"$error":"#N/A"}},null,{"$f":"VLOOKUP(INDIRECT(\"'Part II for HP'!P\"&R138),leveldesc,2,0)","v":{"$error":"#N/A"}},null,null,{"$f":"MATCH(B138,'Part II for HP'!B:B,0)","v":17}]
[null,"Domain 2. Learning Environment"]
[null,"2.4.3","Worked with colleagues to share successful strategies that sustain supportive learning environments that nurture and inspire learners to participate, cooperate and collaborate in continued learning",null,null,null,null,null,null,null,null,null,{"$f":"VLOOKUP(INDIRECT(\"'Part II for HP'!O\"&R140),leveldesc,2,0)","v":{"$error":"#N/A"}},null,{"$f":"VLOOKUP(INDIRECT(\"'Part II for HP'!P\"&R140),leveldesc,2,0)","v":{"$error":"#N/A"}},null,null,{"$f":"MATCH(B140,'Part II for HP'!B:B,0)","v":22}]
[null,"2.5.3","Modelled successful strategies and supported colleagues in promoting learning environments that effectively motivate learners to work productively by assuming responsibility for their own learning",null,null,null,null,null,null,null,null,null,{"$f":"VLOOKUP(INDIRECT(\"'Part II for HP'!O\"&R141),leveldesc,2,0)","v":{"$error":"#N/A"}},null,{"$f":"VLOOKUP(INDIRECT(\"'Part II for HP'!P\"&R141),leveldesc,2,0)","v":{"$error":"#N/A"}},null,null,{"$f":"MATCH(B141,'Part II for HP'!B:B,0)","v":23}]
[null,"Domain 3. Diversity of Learners"]
[null,"3.3.3","Assisted colleagues to design, adapt and implement teaching strategies that are responsive to learners with disabilities, giftedness and talents",null,null,null,null,null,null,null,null,null,{"$f":"VLOOKUP(INDIRECT(\"'Part II for HP'!O\"&R143),leveldesc,2,0)","v":{"$error":"#N/A"}},null,{"$f":"VLOOKUP(INDIRECT(\"'Part II for HP'!P\"&R143),leveldesc,2,0)","v":{"$error":"#N/A"}},null,null,{"$f":"MATCH(B143,'Part II for HP'!B:B,0)","v":28}]
[null,"3.4.3","Evaluated with colleagues teaching strategies that are responsive to the special educational needs of learners in difficult circumstances*, including: geographic isolation; chronic illness; displacement due to armed conflict, urban resettlement or disasters; child abuse and child labor practices",null,null,null,null,null,null,null,null,null,{"$f":"VLOOKUP(INDIRECT(\"'Part II for HP'!O\"&R144),leveldesc,2,0)","v":{"$error":"#N/A"}},null,{"$f":"VLOOKUP(INDIRECT(\"'Part II for HP'!P\"&R144),leveldesc,2,0)","v":{"$error":"#N/A"}},null,null,{"$f":"MATCH(B144,'Part II for HP'!B:B,0)","v":29}]
[null,"Domain 4. Curriculum and Planning"]
[null,"4.3.3","Worked collaboratively with colleagues to evaluate the design of learning programs that develop the knowledge and skills of learners at different ability levels",null,null,null,null,null,null,null,null,null,{"$f":"VLOOKUP(INDIRECT(\"'Part II for HP'!O\"&R146),leveldesc,2,0)","v":{"$error":"#N/A"}},null,{"$f":"VLOOKUP(INDIRECT(\"'Part II for HP'!P\"&R146),leveldesc,2,0)","v":{"$error":"#N/A"}},null,null,{"$f":"MATCH(B146,'Part II for HP'!B:B,0)","v":34}]
[null,"Domain 6. Community Linkages and Professional Engagement"]
[null,"6.1.3","Reflected on and evaluated learning environments that are responsive to community contexts",null,null,null,null,null,null,null,null,null,{"$f":"VLOOKUP(INDIRECT(\"'Part II for HP'!O\"&R148),leveldesc,2,0)","v":{"$error":"#N/A"}},null,{"$f":"VLOOKUP(INDIRECT(\"'Part II for HP'!P\"&R148),leveldesc,2,0)","v":{"$error":"#N/A"}},null,null,{"$f":"MATCH(B148,'Part II for HP'!B:B,0)","v":44}]
[null,"6.3.3","Discussed with colleagues teaching and learning practices that apply existing codes, laws and regulations that apply to the teaching profession, and the responsibilities specified in the Code of Ethics for Professional Teachers",null,null,null,null,null,null,null,null,null,{"$f":"VLOOKUP(INDIRECT(\"'Part II for HP'!O\"&R149),leveldesc,2,0)","v":{"$error":"#N/A"}},null,{"$f":"VLOOKUP(INDIRECT(\"'Part II for HP'!P\"&R149),leveldesc,2,0)","v":{"$error":"#N/A"}},null,null,{"$f":"MATCH(B149,'Part II for HP'!B:B,0)","v":46}]
[null,"6.4.3","Exhibited commitment to and supported teachers in the implementation of school policies and procedures to foster harmonious relationships with learners, parents and other stakeholders",null,null,null,null,null,null,null,null,null,{"$f":"VLOOKUP(INDIRECT(\"'Part II for HP'!O\"&R150),leveldesc,2,0)","v":{"$error":"#N/A"}},null,{"$f":"VLOOKUP(INDIRECT(\"'Part II for HP'!P\"&R150),leveldesc,2,0)","v":{"$error":"#N/A"}},null,null,{"$f":"MATCH(B150,'Part II for HP'!B:B,0)","v":47}]
[null,"Domain 7. Personal Growth and Professional Development"]
[null,"7.2.3","Identified and utilized personal professional strengths to uphold the dignity of teaching as a profession to help build a positive teaching and learning culture within the school",null,null,null,null,null,null,null,null,null,{"$f":"VLOOKUP(INDIRECT(\"'Part II for HP'!O\"&R152),leveldesc,2,0)","v":{"$error":"#N/A"}},null,{"$f":"VLOOKUP(INDIRECT(\"'Part II for HP'!P\"&R152),leveldesc,2,0)","v":{"$error":"#N/A"}},null,null,{"$f":"MATCH(B152,'Part II for HP'!B:B,0)","v":50}]
[null,"Personal Comments"]
[]
[]
[]
[null,"INDICATORS - YEAR 1",null,null,null,null,null,null,null,null,null,null,"Level of Capability",null,"Priority for Development"]
[null,"Domain 1. Content Knowledge and Pedagogy"]
[null,"1.1.4","Modelled exemplary practice to improve the applications of content  knowledge within and across curriculum teaching areas.",null,null,null,null,null,null,null,null,null,{"$f":"VLOOKUP(INDIRECT(\"'Part II for D'!O\"&R159),leveldesc,2,0)","v":{"$error":"#N/A"}},null,{"$f":"VLOOKUP(INDIRECT(\"'Part II for D'!P\"&R159),leveldesc,2,0)","v":{"$error":"#N/A"}},null,null,{"$f":"MATCH(B159,'Part II for D'!B:B,0)","v":11}]
[null,"1.4.4","Modelled a comprehensive selection of effective teaching strategies that promote learner achievement in literacy and numeracy.",null,null,null,null,null,null,null,null,null,{"$f":"VLOOKUP(INDIRECT(\"'Part II for D'!O\"&R160),leveldesc,2,0)","v":{"$error":"#N/A"}},null,{"$f":"VLOOKUP(INDIRECT(\"'Part II for D'!P\"&R160),leveldesc,2,0)","v":{"$error":"#N/A"}},null,null,{"$f":"MATCH(B160,'Part II for D'!B:B,0)","v":14}]
[null,"1.5.4","Lead colleagues in reviewing, modifying and  expanding their range of  teaching strategies that promote critical and creative  thinking, as well as other higher-order thinking skills.",null,null,null,null,null,null,null,null,null,{"$f":"VLOOKUP(INDIRECT(\"'Part II for D'!O\"&R161),leveldesc,2,0)","v":{"$error":"#N/A"}},null,{"$f":"VLOOKUP(INDIRECT(\"'Part II for D'!P\"&R161),leveldesc,2,0)","v":{"$error":"#N/A"}},null,null,{"$f":"MATCH(B161,'Part II for D'!B:B,0)","v":15}]
[null,"Domain 2. Learning Environment"]
[null,"2.3.4","Modelled exemplary practices in the management of classroom structure and  activities, and lead colleagues at the whole-school level to review and evaluate their practices.",null,null,null,null,null,null,null,null,null,{"$f":"VLOOKUP(INDIRECT(\"'Part II for D'!O\"&R163),leveldesc,2,0)","v":{"$error":"#N/A"}},null,{"$f":"VLOOKUP(INDIRECT(\"'Part II for D'!P\"&R163),leveldesc,2,0)","v":{"$error":"#N/A"}},null,null,{"$f":"MATCH(B163,'Part II for D'!B:B,0)","v":21}]
[null,"2.6.4","Provided leadership in applying a wide range of strategies in the implementation of positive and  non-violent discipline policies/procedures to ensure  learning-focused environments.",null,null,null,null,null,null,null,null,null,{"$f":"VLOOKUP(INDIRECT(\"'Part II for D'!O\"&R164),leveldesc,2,0)","v":{"$error":"#N/A"}},null,{"$f":"VLOOKUP(INDIRECT(\"'Part II for D'!P\"&R164),leveldesc,2,0)","v":{"$error":"#N/A"}},null,null,{"$f":"MATCH(B164,'Part II for D'!B:B,0)","v":24}]
[null,"Domain 3. Diversity of Learners"]
[null,"3.1.4","Lead colleagues to evaluate differentiated strategies to enrich teaching practices that address learners’  differences in gender, needs, strengths, interests and experiences.",null,null,null,null,null,null,null,null,null,{"$f":"VLOOKUP(INDIRECT(\"'Part II for D'!O\"&R166),leveldesc,2,0)","v":{"$error":"#N/A"}},null,{"$f":"VLOOKUP(INDIRECT(\"'Part II for D'!P\"&R166),leveldesc,2,0)","v":{"$error":"#N/A"}},null,null,{"$f":"MATCH(B166,'Part II for D'!B:B,0)","v":26}]
[null,"Domain 4. Curriculum and Planning",null,null,null,null,null,null,null,null,null,null,{"$f":"VLOOKUP(#REF!,#REF!,2,0)","v":{"$error":"#REF!"}},null,{"$f":"VLOOKUP(#REF!,#REF!,2,0)","v":{"$error":"#REF!"}}]
[null,"4.1.4","Modelled exemplary  practice and lead colleagues in enhancing current practices in the planning and management of developmentally sequenced teaching and learning process.",null,null,null,null,null,null,null,null,null,{"$f":"VLOOKUP(INDIRECT(\"'Part II for D'!O\"&R168),leveldesc,2,0)","v":{"$error":"#N/A"}},null,{"$f":"VLOOKUP(INDIRECT(\"'Part II for D'!P\"&R168),leveldesc,2,0)","v":{"$error":"#N/A"}},null,null,{"$f":"MATCH(B168,'Part II for D'!B:B,0)","v":32}]
[null,"4.4.4","Lead colleagues in professional discussions to plan and implement strategies that enrich teaching practice. ",null,null,null,null,null,null,null,null,null,{"$f":"VLOOKUP(INDIRECT(\"'Part II for D'!O\"&R169),leveldesc,2,0)","v":{"$error":"#N/A"}},null,{"$f":"VLOOKUP(INDIRECT(\"'Part II for D'!P\"&R169),leveldesc,2,0)","v":{"$error":"#N/A"}},null,null,{"$f":"MATCH(B169,'Part II for D'!B:B,0)","v":35}]
[null,"4.5.4","Modelled exemplary skills and lead colleagues in the development and evaluation of  teaching and learning resources, including ICT, for  use within and beyond the school.",null,null,null,null,null,null,null,null,null,{"$f":"VLOOKUP(INDIRECT(\"'Part II for D'!O\"&R170),leveldesc,2,0)","v":{"$error":"#N/A"}},null,{"$f":"VLOOKUP(INDIRECT(\"'Part II for D'!P\"&R170),leveldesc,2,0)","v":{"$error":"#N/A"}},null,null,{"$f":"MATCH(B170,'Part II for D'!B:B,0)","v":36}]
[null,"Domain 5. Assessment and Reporting",null,null,null,null,null,null,null,null,null,null,{"$f":"VLOOKUP(#REF!,#REF!,2,0)","v":{"$error":"#REF!"}},null,{"$f":"VLOOKUP(#REF!,#REF!,2,0)","v":{"$error":"#REF!"}}]
[null,"5.1.4","Lead initiatives in the  evaluation of assessment policies and guidelines that relate to the design, selection, organization and use of effective diagnostic, formative and summative assessment  strategies consistent with curriculum requirements.",null,null,null,null,null,null,null,null,null,{"$f":"VLOOKUP(INDIRECT(\"'Part II for D'!O\"&R172),leveldesc,2,0)","v":{"$error":"#N/A"}},null,{"$f":"VLOOKUP(INDIRECT(\"'Part II for D'!P\"&R172),leveldesc,2,0)","v":{"$error":"#N/A"}},null,null,{"$f":"MATCH(B172,'Part II for D'!B:B,0)","v":38}]
[null,"5.2.4","Provided advice on, and mentor colleagues in the effective analysis and use of learner attainment data.",null,null,null,null,null,null,null,null,null,{"$f":"VLOOKUP(INDIRECT(\"'Part II for D'!O\"&R173),leveldesc,2,0)","v":{"$error":"#N/A"}},null,{"$f":"VLOOKUP(INDIRECT(\"'Part II for D'!P\"&R173),leveldesc,2,0)","v":{"$error":"#N/A"}},null,null,{"$f":"MATCH(B173,'Part II for D'!B:B,0)","v":39}]
[null,"5.4.4","Shared with colleagues a wide range of strategies that ensure effective communication of learner needs, progress and  achievement to key stakeholders, including parents/guardians.",null,null,null,null,null,null,null,null,null,{"$f":"VLOOKUP(INDIRECT(\"'Part II for D'!O\"&R174),leveldesc,2,0)","v":{"$error":"#N/A"}},null,{"$f":"VLOOKUP(INDIRECT(\"'Part II for D'!P\"&R174),leveldesc,2,0)","v":{"$error":"#N/A"}},null,null,{"$f":"MATCH(B174,'Part II for D'!B:B,0)","v":41}]
[null,"Domain 7. Personal Growth and Professional Development",null,null,null,null,null,null,null,null,null,null,{"$f":"VLOOKUP(#REF!,#REF!,2,0)","v":{"$error":"#REF!"}},null,{"$f":"VLOOKUP(#REF!,#REF!,2,0)","v":{"$error":"#REF!"}}]
[null,"7.1.4","Modelled a learner-centered teaching philosophy through teaching practices that stimulate colleagues to engage in further professional learning.",null,null,null,null,null,null,null,null,null,{"$f":"VLOOKUP(INDIRECT(\"'Part II for D'!O\"&R176),leveldesc,2,0)","v":{"$error":"#N/A"}},null,{"$f":"VLOOKUP(INDIRECT(\"'Part II for D'!P\"&R176),leveldesc,2,0)","v":{"$error":"#N/A"}},null,null,{"$f":"MATCH(B176,'Part II for D'!B:B,0)","v":49}]
[null,"7.5.4","Lead reforms in enhancing professional development programs based on an in-depth knowledge and understanding of the Philippine Professional  Standards for Teachers.",null,null,null,null,null,null,null,null,null,{"$f":"VLOOKUP(INDIRECT(\"'Part II for D'!O\"&R177),leveldesc,2,0)","v":{"$error":"#N/A"}},null,{"$f":"VLOOKUP(INDIRECT(\"'Part II for D'!P\"&R177),leveldesc,2,0)","v":{"$error":"#N/A"}},null,null,{"$f":"MATCH(B177,'Part II for D'!B:B,0)","v":53}]
[]
[null,"INDICATORS - YEAR 2",null,null,null,null,null,null,null,null,null,null,"Level of Capability",null,"Priority for Development"]
[null,"Domain 1. Content Knowledge and Pedagogy"]
[null,"1.1.4","Modelled exemplary practice to improve the applications of content  knowledge within and across curriculum teaching areas.",null,null,null,null,null,null,null,null,null,{"$f":"VLOOKUP(INDIRECT(\"'Part II for D'!O\"&R181),leveldesc,2,0)","v":{"$error":"#N/A"}},null,{"$f":"VLOOKUP(INDIRECT(\"'Part II for D'!P\"&R181),leveldesc,2,0)","v":{"$error":"#N/A"}},null,null,{"$f":"MATCH(B181,'Part II for D'!B:B,0)","v":11}]
[null,"1.4.4","Modelled a comprehensive selection of effective teaching strategies that promote learner achievement in literacy and numeracy.",null,null,null,null,null,null,null,null,null,{"$f":"VLOOKUP(INDIRECT(\"'Part II for D'!O\"&R182),leveldesc,2,0)","v":{"$error":"#N/A"}},null,{"$f":"VLOOKUP(INDIRECT(\"'Part II for D'!P\"&R182),leveldesc,2,0)","v":{"$error":"#N/A"}},null,null,{"$f":"MATCH(B182,'Part II for D'!B:B,0)","v":14}]
[null,"1.5.4","Lead colleagues in reviewing, modifying and  expanding their range of  teaching strategies that promote critical and creative  thinking, as well as other higher-order thinking skills.",null,null,null,null,null,null,null,null,null,{"$f":"VLOOKUP(INDIRECT(\"'Part II for D'!O\"&R183),leveldesc,2,0)","v":{"$error":"#N/A"}},null,{"$f":"VLOOKUP(INDIRECT(\"'Part II for D'!P\"&R183),leveldesc,2,0)","v":{"$error":"#N/A"}},null,null,{"$f":"MATCH(B183,'Part II for D'!B:B,0)","v":15}]
[null,"1.6.4","Showed exemplary skills in  and advocate the use of  Mother Tongue, Filipino and  English in teaching and learning to facilitate the learners’ language, cognitive  and academic development  and to foster pride of their  language, heritage and culture.",null,null,null,null,null,null,null,null,null,{"$f":"VLOOKUP(INDIRECT(\"'Part II for D'!O\"&R184),leveldesc,2,0)","v":{"$error":"#N/A"}},null,{"$f":"VLOOKUP(INDIRECT(\"'Part II for D'!P\"&R184),leveldesc,2,0)","v":{"$error":"#N/A"}},null,null,{"$f":"MATCH(B184,'Part II for D'!B:B,0)","v":16}]
[null,"Domain 2. Learning Environment"]
[null,"2.1.4","Applied comprehensive  knowledge of and act as a resource person for, policies, guidelines and procedures that relate to the implementation of safe and secure learning environments for learners.",null,null,null,null,null,null,null,null,null,{"$f":"VLOOKUP(INDIRECT(\"'Part II for D'!O\"&R186),leveldesc,2,0)","v":{"$error":"#N/A"}},null,{"$f":"VLOOKUP(INDIRECT(\"'Part II for D'!P\"&R186),leveldesc,2,0)","v":{"$error":"#N/A"}},null,null,{"$f":"MATCH(B186,'Part II for D'!B:B,0)","v":19}]
[null,"2.2.4","Advocated and facilitate the use of effective practices to foster learning environments that promote fairness, respect and care to encourage learning.",null,null,null,null,null,null,null,null,null,{"$f":"VLOOKUP(INDIRECT(\"'Part II for D'!O\"&R187),leveldesc,2,0)","v":{"$error":"#N/A"}},null,{"$f":"VLOOKUP(INDIRECT(\"'Part II for D'!P\"&R187),leveldesc,2,0)","v":{"$error":"#N/A"}},null,null,{"$f":"MATCH(B187,'Part II for D'!B:B,0)","v":20}]
[null,"Domain 3. Diversity of Learners"]
[null,"3.2.4","Modelled exemplary teaching practices that recognize and affirm diverse  linguistic, cultural, socio economic and religious backgrounds to promote learner success.",null,null,null,null,null,null,null,null,null,{"$f":"VLOOKUP(INDIRECT(\"'Part II for D'!O\"&R189),leveldesc,2,0)","v":{"$error":"#N/A"}},null,{"$f":"VLOOKUP(INDIRECT(\"'Part II for D'!P\"&R189),leveldesc,2,0)","v":{"$error":"#N/A"}},null,null,{"$f":"MATCH(B189,'Part II for D'!B:B,0)","v":27}]
[null,"3.5.4","Showed comprehensive skills in delivering culturally appropriate teaching strategies  to address effectively the needs of learners from indigenous groups.",null,null,null,null,null,null,null,null,null,{"$f":"VLOOKUP(INDIRECT(\"'Part II for D'!O\"&R190),leveldesc,2,0)","v":{"$error":"#N/A"}},null,{"$f":"VLOOKUP(INDIRECT(\"'Part II for D'!P\"&R190),leveldesc,2,0)","v":{"$error":"#N/A"}},null,null,{"$f":"MATCH(B190,'Part II for D'!B:B,0)","v":30}]
[null,"Domain 4. Curriculum and Planning"]
[null,"4.2.4","Exhibited high-level skills and lead in setting achievable and challenging learning outcomes that are aligned with learning competencies towards the cultivation of a culture of excellence for all.",null,null,null,null,null,null,null,null,null,{"$f":"VLOOKUP(INDIRECT(\"'Part II for D'!O\"&R192),leveldesc,2,0)","v":{"$error":"#N/A"}},null,{"$f":"VLOOKUP(INDIRECT(\"'Part II for D'!P\"&R192),leveldesc,2,0)","v":{"$error":"#N/A"}},null,null,{"$f":"MATCH(B192,'Part II for D'!B:B,0)","v":33}]
[null,"Domain 5. Assessment and Reporting",null,null,null,null,null,null,null,null,null,null,{"$f":"VLOOKUP(#REF!,#REF!,2,0)","v":{"$error":"#REF!"}},null,{"$f":"VLOOKUP(#REF!,#REF!,2,0)","v":{"$error":"#REF!"}}]
[null,"5.3.4","Exhibited exemplary skills and lead initiatives to support  colleagues in applying strategies that effectively provide timely, accurate and constructive feedback to learners to improve learning  achievement.",null,null,null,null,null,null,null,null,null,{"$f":"VLOOKUP(INDIRECT(\"'Part II for D'!O\"&R194),leveldesc,2,0)","v":{"$error":"#N/A"}},null,{"$f":"VLOOKUP(INDIRECT(\"'Part II for D'!P\"&R194),leveldesc,2,0)","v":{"$error":"#N/A"}},null,null,{"$f":"MATCH(B194,'Part II for D'!B:B,0)","v":40}]
[null,"5.5.4","Lead colleagues to explore, design and implement effective practices and programs using information derived from assessment data.",null,null,null,null,null,null,null,null,null,{"$f":"VLOOKUP(INDIRECT(\"'Part II for D'!O\"&R195),leveldesc,2,0)","v":{"$error":"#N/A"}},null,{"$f":"VLOOKUP(INDIRECT(\"'Part II for D'!P\"&R195),leveldesc,2,0)","v":{"$error":"#N/A"}},null,null,{"$f":"MATCH(B195,'Part II for D'!B:B,0)","v":42}]
[null,"Domain 6. Community Linkages and Professional Engagement",null,null,null,null,null,null,null,null,null,null,{"$f":"VLOOKUP(#REF!,#REF!,2,0)","v":{"$error":"#REF!"}},null,{"$f":"VLOOKUP(#REF!,#REF!,2,0)","v":{"$error":"#REF!"}}]
[null,"6.2.4","Lead in consolidating networks that strengthen relationships with  parents/guardians and the wider school community to maximize their involvement in the educative process.",null,null,null,null,null,null,null,null,null,{"$f":"VLOOKUP(INDIRECT(\"'Part II for D'!O\"&R197),leveldesc,2,0)","v":{"$error":"#N/A"}},null,{"$f":"VLOOKUP(INDIRECT(\"'Part II for D'!P\"&R197),leveldesc,2,0)","v":{"$error":"#N/A"}},null,null,{"$f":"MATCH(B197,'Part II for D'!B:B,0)","v":45}]
[null,"Domain 7. Personal Growth and Professional Development",null,null,null,null,null,null,null,null,null,null,{"$f":"VLOOKUP(#REF!,#REF!,2,0)","v":{"$error":"#REF!"}},null,{"$f":"VLOOKUP(#REF!,#REF!,2,0)","v":{"$error":"#REF!"}}]
[null,"7.3.4","Took a leadership role in supporting colleagues’ engagement with professional networks within and across schools to advance knowledge and practice in identified areas of need.",null,null,null,null,null,null,null,null,null,{"$f":"VLOOKUP(INDIRECT(\"'Part II for D'!O\"&R199),leveldesc,2,0)","v":{"$error":"#N/A"}},null,{"$f":"VLOOKUP(INDIRECT(\"'Part II for D'!P\"&R199),leveldesc,2,0)","v":{"$error":"#N/A"}},null,null,{"$f":"MATCH(B199,'Part II for D'!B:B,0)","v":51}]
[null,"7.4.4","Demonstrated leadership within and across school contexts in critically evaluating practice and setting clearly defined targets for professional development. ",null,null,null,null,null,null,null,null,null,{"$f":"VLOOKUP(INDIRECT(\"'Part II for D'!O\"&R200),leveldesc,2,0)","v":{"$error":"#N/A"}},null,{"$f":"VLOOKUP(INDIRECT(\"'Part II for D'!P\"&R200),leveldesc,2,0)","v":{"$error":"#N/A"}},null,null,{"$f":"MATCH(B200,'Part II for D'!B:B,0)","v":52}]
[]
[null,"INDICATORS - YEAR 3",null,null,null,null,null,null,null,null,null,null,"Level of Capability",null,"Priority for Development"]
[null,"Domain 1. Content Knowledge and Pedagogy"]
[null,"1.1.4","Modelled exemplary practice to improve the applications of content  knowledge within and across curriculum teaching areas.",null,null,null,null,null,null,null,null,null,{"$f":"VLOOKUP(INDIRECT(\"'Part II for D'!O\"&R204),leveldesc,2,0)","v":{"$error":"#N/A"}},null,{"$f":"VLOOKUP(INDIRECT(\"'Part II for D'!P\"&R204),leveldesc,2,0)","v":{"$error":"#N/A"}},null,null,{"$f":"MATCH(B204,'Part II for D'!B:B,0)","v":11}]
[null,"1.2.4","Lead colleagues in the advancement of the art and science of teaching based on their comprehensive  knowledge of research and pedagogy.",null,null,null,null,null,null,null,null,null,{"$f":"VLOOKUP(INDIRECT(\"'Part II for D'!O\"&R205),leveldesc,2,0)","v":{"$error":"#N/A"}},null,{"$f":"VLOOKUP(INDIRECT(\"'Part II for D'!P\"&R205),leveldesc,2,0)","v":{"$error":"#N/A"}},null,null,{"$f":"MATCH(B205,'Part II for D'!B:B,0)","v":12}]
[null,"1.3.4","Mentored colleagues in the implementation of policies to ensure the positive use of ICT within or beyond the school.",null,null,null,null,null,null,null,null,null,{"$f":"VLOOKUP(INDIRECT(\"'Part II for D'!O\"&R206),leveldesc,2,0)","v":{"$error":"#N/A"}},null,{"$f":"VLOOKUP(INDIRECT(\"'Part II for D'!P\"&R206),leveldesc,2,0)","v":{"$error":"#N/A"}},null,null,{"$f":"MATCH(B206,'Part II for D'!B:B,0)","v":13}]
[null,"1.4.4","Modelled a comprehensive selection of effective teaching strategies that promote learner achievement in literacy and numeracy.",null,null,null,null,null,null,null,null,null,{"$f":"VLOOKUP(INDIRECT(\"'Part II for D'!O\"&R207),leveldesc,2,0)","v":{"$error":"#N/A"}},null,{"$f":"VLOOKUP(INDIRECT(\"'Part II for D'!P\"&R207),leveldesc,2,0)","v":{"$error":"#N/A"}},null,null,{"$f":"MATCH(B207,'Part II for D'!B:B,0)","v":14}]
[null,"1.7.4","Exhibited exemplary practice in the use of effective  verbal and non-verbal classroom communication strategies to support learner  understanding, participation, engagement and achievement  in different learning contexts.",null,null,null,null,null,null,null,null,null,{"$f":"VLOOKUP(INDIRECT(\"'Part II for D'!O\"&R208),leveldesc,2,0)","v":{"$error":"#N/A"}},null,{"$f":"VLOOKUP(INDIRECT(\"'Part II for D'!P\"&R208),leveldesc,2,0)","v":{"$error":"#N/A"}},null,null,{"$f":"MATCH(B208,'Part II for D'!B:B,0)","v":17}]
[null,"Domain 2. Learning Environment"]
[null,"2.4.4","Facilitated processes to review the effectiveness of the school’s learning environment to nurture and inspire learner participation.",null,null,null,null,null,null,null,null,null,{"$f":"VLOOKUP(INDIRECT(\"'Part II for D'!O\"&R210),leveldesc,2,0)","v":{"$error":"#N/A"}},null,{"$f":"VLOOKUP(INDIRECT(\"'Part II for D'!P\"&R210),leveldesc,2,0)","v":{"$error":"#N/A"}},null,null,{"$f":"MATCH(B210,'Part II for D'!B:B,0)","v":22}]
[null,"2.5.4","Lead and empower colleagues in promoting learning environments that effectively motivate learners to achieve quality outcomes by  assuming responsibility for their own learning.",null,null,null,null,null,null,null,null,null,{"$f":"VLOOKUP(INDIRECT(\"'Part II for D'!O\"&R211),leveldesc,2,0)","v":{"$error":"#N/A"}},null,{"$f":"VLOOKUP(INDIRECT(\"'Part II for D'!P\"&R211),leveldesc,2,0)","v":{"$error":"#N/A"}},null,null,{"$f":"MATCH(B211,'Part II for D'!B:B,0)","v":23}]
[null,"Domain 3. Diversity of Learners"]
[null,"3.3.4","Lead colleagues in designing, adapting and implementing teaching strategies that are responsive to learners with disabilities, giftedness and talents.",null,null,null,null,null,null,null,null,null,{"$f":"VLOOKUP(INDIRECT(\"'Part II for D'!O\"&R213),leveldesc,2,0)","v":{"$error":"#N/A"}},null,{"$f":"VLOOKUP(INDIRECT(\"'Part II for D'!P\"&R213),leveldesc,2,0)","v":{"$error":"#N/A"}},null,null,{"$f":"MATCH(B213,'Part II for D'!B:B,0)","v":28}]
[null,"3.4.4","Modelled a range of high level skills responsive to the  special educational needs of learners in difficult circumstances, including:  geographic isolation; chronic illness; displacement due to armed conflict, urban resettlement or disasters; child  abuse and child labor  \npractices.",null,null,null,null,null,null,null,null,null,{"$f":"VLOOKUP(INDIRECT(\"'Part II for D'!O\"&R214),leveldesc,2,0)","v":{"$error":"#N/A"}},null,{"$f":"VLOOKUP(INDIRECT(\"'Part II for D'!P\"&R214),leveldesc,2,0)","v":{"$error":"#N/A"}},null,null,{"$f":"MATCH(B214,'Part II for D'!B:B,0)","v":29}]
[null,"Domain 4. Curriculum and Planning"]
[null,"4.3.4","Provided advice in the  design and implementation of  relevant and responsive learning programs that develop the knowledge and skills of learners at different ability levels.",null,null,null,null,null,null,null,null,null,{"$f":"VLOOKUP(INDIRECT(\"'Part II for D'!O\"&R216),leveldesc,2,0)","v":{"$error":"#N/A"}},null,{"$f":"VLOOKUP(INDIRECT(\"'Part II for D'!P\"&R216),leveldesc,2,0)","v":{"$error":"#N/A"}},null,null,{"$f":"MATCH(B216,'Part II for D'!B:B,0)","v":34}]
[null,"Domain 6. Community Linkages and Professional Engagement"]
[null,"6.1.4","Modelled exemplary practice and empower colleagues to establish and maintain effective learning environments that are responsive to community contexts.",null,null,null,null,null,null,null,null,null,{"$f":"VLOOKUP(INDIRECT(\"'Part II for D'!O\"&R218),leveldesc,2,0)","v":{"$error":"#N/A"}},null,{"$f":"VLOOKUP(INDIRECT(\"'Part II for D'!P\"&R218),leveldesc,2,0)","v":{"$error":"#N/A"}},null,null,{"$f":"MATCH(B218,'Part II for D'!B:B,0)","v":44}]
[null,"6.3.4","Lead colleagues in the regular review of existing codes, laws and regulations that apply to the teaching profession, and the responsibilities as specified in the Code of Ethics for Professional Teachers.",null,null,null,null,null,null,null,null,null,{"$f":"VLOOKUP(INDIRECT(\"'Part II for D'!O\"&R219),leveldesc,2,0)","v":{"$error":"#N/A"}},null,{"$f":"VLOOKUP(INDIRECT(\"'Part II for D'!P\"&R219),leveldesc,2,0)","v":{"$error":"#N/A"}},null,null,{"$f":"MATCH(B219,'Part II for D'!B:B,0)","v":46}]
[null,"6.4.4","Evaluated existing school policies and procedures to make them more responsive to the needs of the learners, parents and other stakeholders.",null,null,null,null,null,null,null,null,null,{"$f":"VLOOKUP(INDIRECT(\"'Part II for D'!O\"&R220),leveldesc,2,0)","v":{"$error":"#N/A"}},null,{"$f":"VLOOKUP(INDIRECT(\"'Part II for D'!P\"&R220),leveldesc,2,0)","v":{"$error":"#N/A"}},null,null,{"$f":"MATCH(B220,'Part II for D'!B:B,0)","v":47}]
[null,"Domain 7. Personal Growth and Professional Development"]
[null,"7.2.4","Acted as a role model and  advocate for upholding the  dignity of teaching as a profession to build a positive teaching and learning culture within and beyond the school. ",null,null,null,null,null,null,null,null,null,{"$f":"VLOOKUP(INDIRECT(\"'Part II for D'!O\"&R222),leveldesc,2,0)","v":{"$error":"#N/A"}},null,{"$f":"VLOOKUP(INDIRECT(\"'Part II for D'!P\"&R222),leveldesc,2,0)","v":{"$error":"#N/A"}},null,null,{"$f":"MATCH(B222,'Part II for D'!B:B,0)","v":50}]
[null,"Personal Comments"]
[null,""]
[]
[]
[null,"PART II-A:  LEADERSHIP COMPETENCIES"]
[]
[null,"Competencies",null,"Behavioral Indicators"]
[]
[null,"LEADING PEOPLE",null,"1.   Uses basic persuasion techniques in a discussion or presentation e.g., staff mobilization, appeals to reason and/or emotions, uses data and examples, visual aids",null,null,null,null,null,null,null,null,{"$f":"'Part II-A'!D8","v":0},{"$f":"IF(COUNTBLANK(M231:M235)>0,\"\",ROUND(AVERAGE(M231:M235),3))","v":0},{"$f":"IFERROR(VLOOKUP(N231,core,2,1),\"\")","v":""}]
[null,null,null,"2.   Persuades, convinces or influences others, in order to have a specific impact or effect.",null,null,null,null,null,null,null,null,{"$f":"'Part II-A'!D9","v":0}]
[null,null,null,"3.   “Sets a good example”, is a credible and respected leader; and demonstrates desired behavior.",null,null,null,null,null,null,null,null,{"$f":"'Part II-A'!D10","v":0}]
[null,null,null,"4.   Forwards personal, professional and work unit needs and interests in an issue.",null,null,null,null,null,null,null,null,{"$f":"'Part II-A'!D11","v":0}]
[null,null,null,"5.   Assumes a pivotal role in promoting the development of an inspiring, relevant vision for the organization and influences others to share ownership of DepEd goals, in order to create an effective work environment.",null,null,null,null,null,null,null,null,{"$f":"'Part II-A'!D12","v":0}]
[null,"PEOPLE PERFORMANCE MANAGEMENT",null,"1.   Makes specific changes in the performance management system or in own work methods to improve performance (e.g. does something better, faster, at lower cost, more efficiently; improves quality, customer satisfaction, morale, revenues).",null,null,null,null,null,null,null,null,{"$f":"'Part II-A'!D13","v":0},{"$f":"IF(COUNTBLANK(M236:M240)>0,\"\",ROUND(AVERAGE(M236:M240),3))","v":0},{"$f":"IFERROR(VLOOKUP(N236,core,2,1),\"\")","v":""}]
[null,null,null,"2.   Sets performance standards and measures progress of employees based on office and department targets.",null,null,null,null,null,null,null,null,{"$f":"'Part II-A'!D14","v":0}]
[null,null,null,"3.   Provides feedback and technical assistance such as coaching for performance improvement and action planning.",null,null,null,null,null,null,null,null,{"$f":"'Part II-A'!D15","v":0}]
[null,null,null,"4.   States performance expectations clearly and checks understanding and commitment.",null,null,null,null,null,null,null,null,{"$f":"'Part II-A'!D16","v":0}]
[null,null,null,"5.   Performs all the stages of result-based performance management system supported by evidence and required documents/forms.",null,null,null,null,null,null,null,null,{"$f":"'Part II-A'!D17","v":0}]
[null,"PEOPLE DEVELOPMENT",null,"1.   Improves the skills and effectiveness of individuals through employing a range of development strategies.",null,null,null,null,null,null,null,null,{"$f":"'Part II-A'!D18","v":0},{"$f":"IF(COUNTBLANK(M241:M245)>0,\"\",ROUND(AVERAGE(M241:M245),3))","v":0},{"$f":"IFERROR(VLOOKUP(N241,core,2,1),\"\")","v":""}]
[null,null,null,"2.   Facilitates workforce effectiveness through coaching and motivating/developing people within a work environment that promotes mutual trust and respect.",null,null,null,null,null,null,null,null,{"$f":"'Part II-A'!D19","v":0}]
[null,null,null,"3.   Conceptualizes and implements learning interventions to meet identified training needs.",null,null,null,null,null,null,null,null,{"$f":"'Part II-A'!D20","v":0}]
[null,null,null,"4.   Does long-term coaching or training by arranging appropriate and helpful assignments, formal training, or other experiences for the purpose of supporting a person’s learning and development.",null,null,null,null,null,null,null,null,{"$f":"'Part II-A'!D21","v":0}]
[null,null,null,"5.   Cultivates a learning environment by structuring interactive experiences such as looking for future opportunities that are in support of achieving individual career goals.",null,null,null,null,null,null,null,null,{"$f":"'Part II-A'!D22","v":0}]
[]
[null,"PART III: CORE BEHAVIORAL COMPETENCIES"]
[]
[null,"Competencies",null,"Behavioral Indicators"]
[]
[null," SELF-MANAGEMENT",null,"Sets personal goals and directions, needs and development.",null,null,null,null,null,null,null,null,{"$f":"'Part III'!S10","v":0},{"$f":"IF(COUNTBLANK(M251:M255)>0,\"\",ROUND(AVERAGE(M251:M255),3))","v":0},{"$f":"IFERROR(VLOOKUP(N251,core,2,1),\"\")","v":""}]
[null,null,null,"Undertakes personal actions and behavior that are clear and purposive and takes into account personal goals and values congruent to that of the organization.",null,null,null,null,null,null,null,null,{"$f":"'Part III'!S11","v":0}]
[null,null,null,"Displays emotional maturity and enthusiasm for and is challenged by higher goals.",null,null,null,null,null,null,null,null,{"$f":"'Part III'!S12","v":0}]
[null,null,null,"Prioritizes work tasks and schedules (through Gantt charts, checklists, etc.) to achieve goals.",null,null,null,null,null,null,null,null,{"$f":"'Part III'!S13","v":0}]
[null,null,null,"Sets high quality, challenging, realistic goals for self and others.",null,null,null,null,null,null,null,null,{"$f":"'Part III'!S14","v":0}]
[null,"PROFESSIONALISM AND ETHICS",null,"Demonstrates the values and behavior enshrined in the Norms and Conduct and Ethical Standards for public officials and employees (RA 6713).",null,null,null,null,null,null,null,null,{"$f":"'Part III'!S17","v":0},0,{"$f":"IFERROR(VLOOKUP(N256,core,2,1),\"\")","v":""}]
[null,null,null,"Practices ethical and professional behavior and conduct taking into account the impact of his/her actions and decisions.",null,null,null,null,null,null,null,null,{"$f":"'Part III'!S18","v":0}]
[null,null,null,"Maintains a professional image: being trustworthy, regularity of attendance and punctuality, good grooming and communication.",null,null,null,null,null,null,null,null,{"$f":"'Part III'!S19","v":0}]
[null,null,null,"Makes personal sacrifices to meet the organization's needs.",null,null,null,null,null,null,null,null,{"$f":"'Part III'!S20","v":0}]
[null,null,null,"Act with a sense of urgency and responsibility to meet the organization’s needs, improve system and help others improve their effectiveness.",null,null,null,null,null,null,null,null,{"$f":"'Part III'!S21","v":0}]
[null,"RESULTS FOCUS",null,"Achieves results with optimal use of time and resources most of the time.",null,null,null,null,null,null,null,null,{"$f":"'Part III'!S24","v":0},0,{"$f":"IFERROR(VLOOKUP(N261,core,2,1),\"\")","v":""}]
[null,null,null,"Avoids rework, mistakes and wastage through effective work methods by placing organizational needs before personal needs.",null,null,null,null,null,null,null,null,{"$f":"'Part III'!S25","v":0}]
[null,null,null,"Delivers error-free outputs most of the time by conforming to standard operating procedures correctly and consistently. Able to produce very satisfactory quality work in terms of usefulness/acceptability and completeness with no supervision required.",null,null,null,null,null,null,null,null,{"$f":"'Part III'!S26","v":0}]
[null,null,null,"Expresses a desire to do better and may express frustration at waste or inefficiency. May focus on new or more precise ways of meeting goals set.",null,null,null,null,null,null,null,null,{"$f":"'Part III'!S27","v":0}]
[null,null,null,"Makes specific changes in the system or in own work methods to improve performance. Examples may include doing something better, faster, at a lower cost, more efficiently, or improving quality, customer satisfaction, morale, without setting any specific goal.",null,null,null,null,null,null,null,null,{"$f":"'Part III'!S28","v":0}]
[null,"TEAMWORK",null,"Willingly does his/her share of responsibility.",null,null,null,null,null,null,null,null,{"$f":"'Part III'!S31","v":0},0,{"$f":"IFERROR(VLOOKUP(N266,core,2,1),\"\")","v":""}]
[null,null,null,"Promotes collaboration and removes barrier to teamwork and goal accomplishment across the organization.",null,null,null,null,null,null,null,null,{"$f":"'Part III'!S32","v":0}]
[null,null,null,"Applies negotiation principles in arriving at win-win agreements.",null,null,null,null,null,null,null,null,{"$f":"'Part III'!S33","v":0}]
[null,null,null,"Drives consensus and team ownership of decisions.",null,null,null,null,null,null,null,null,{"$f":"'Part III'!S34","v":0}]
[null,null,null,"Works constructively and collaboratively with others and across organizations to accomplish organization goals and objectives.",null,null,null,null,null,null,null,null,{"$f":"'Part III'!S35","v":0}]
[null,"SERVICE ORIENTATION",null,"Can explain and articulate organizational directions, issues and problems.",null,null,null,null,null,null,null,null,{"$f":"'Part III'!S38","v":0},0,{"$f":"IFERROR(VLOOKUP(N271,core,2,1),\"\")","v":""}]
[null,null,null,"Takes personal responsibility for dealing with and/or correcting customer service issues and concerns.",null,null,null,null,null,null,null,null,{"$f":"'Part III'!S39","v":0}]
[null,null,null,"Initiates activities that promote advocacy for men and women empowerment.",null,null,null,null,null,null,null,null,{"$f":"'Part III'!S40","v":0}]
[null,null,null,"Participates in updating office vision, mission, mandates and strategies based on DepEd strategies and directions.",null,null,null,null,null,null,null,null,{"$f":"'Part III'!S41","v":0}]
[null,null,null,"Develops and adopts service improvement program through simplified procedures that will further enhance service delivery.",null,null,null,null,null,null,null,null,{"$f":"'Part III'!S42","v":0}]
[null,"INNOVATION",null,"Examines the root cause of problems and suggests effective solutions. Foster new ideas, processes and suggests better ways to do things (cost and/or operational efficiency).",null,null,null,null,null,null,null,null,{"$f":"'Part III'!S45","v":0},0,{"$f":"IFERROR(VLOOKUP(N276,core,2,1),\"\")","v":""}]
[null,null,null,"Demonstrates an ability to think “beyond the box”. Continuously focuses on improving personal productivity to create higher value and results.",null,null,null,null,null,null,null,null,{"$f":"'Part III'!S46","v":0}]
[null,null,null,"Promotes a creative climate and inspires co-workers to develop original ideas or solutions.",null,null,null,null,null,null,null,null,{"$f":"'Part III'!S47","v":0}]
[null,null,null,"Translates creative thinking into tangible changes and solutions that improve the work unit and organization.",null,null,null,null,null,null,null,null,{"$f":"'Part III'!S48","v":0}]
[null,null,null,"Uses ingenious methods to accomplish responsibilities. Demonstrates resourcefulness and the ability to succeed with minimal resources.",null,null,null,null,null,null,null,null,{"$f":"'Part III'!S49","v":0}]
[null,"GENDER SENSITIVITY",null,"Recognizes and respects individual differences.","1.   Recognizes and respects individual differences.",null,null,null,null,null,null,null,{"$f":"'Part III'!S52","v":0},0,{"$f":"IFERROR(VLOOKUP(N281,core,2,1),\"\")","v":""}]
[null,null,null,"Does not discriminate persons on the basis of Sexual Orientation, Gender Identity, Gender Expression, and Sex Characteristics (SOGIESC).","2.   Does not discriminate persons on the basis of Sexual Orientation, Gender Identity, Gender Expression, and Sex Characteristics (SOGIESC).",null,null,null,null,null,null,null,{"$f":"'Part III'!S53","v":0}]
[null,null,null,"Promotes gender equality, diversity, and inclusion in the workplace.","3.   Promotes gender equality, diversity, and inclusion in the workplace.",null,null,null,null,null,null,null,{"$f":"'Part III'!S54","v":0}]
[null,null,null,"Has zero-tolerance to gender-biases, discriminatory and exclusionary behaviors and practices.","4.   Has zero-tolerance to gender-biases, discriminatory and exclusionary behaviors and practices.",null,null,null,null,null,null,null,{"$f":"'Part III'!S55","v":0}]
[null,null,null,"Taking affirmatice action to address gender inequalities.","5.   Taking affirmatice action to address gender inequalities.",null,null,null,null,null,null,null,{"$f":"'Part III'!S56","v":0}]

{"sheet":"Survey Completed","index":9,"n_rows":9,"n_cols":3,"rows_kept":9,"cut":false,"hidden":true,"merged":[[8,2,8,3],[0,0,0,6],[2,0,2,6],[3,0,3,6],[5,2,5,5],[6,2,6,5],[7,2,7,3]]}
["ELECTRONIC SELF-ASSESSMENT TOOL\nSY 2025-2028"]
[]
["SURVEY COMPLETED"]
["Submit this file to your Department Head or School Head for consolidation."]
[]
[null,"Name:",{"$f":"Summary!E7","v":"  "}]
[null,"School:",{"$f":"Summary!M9","v":0}]
[null,"School Year:",{"$f":"TRIM(MID(A1,SEARCH(\"SY\",A1)+2,LEN(A1)+2-SEARCH(\"SY\",A1)))","v":"2025-2028"}]
[null,"Date:"]

{"sheet":"IDP","index":10,"n_rows":47,"n_cols":21,"rows_kept":47,"cut":false,"hidden":true,"merged":[[24,0,24,5],[35,0,37,1],[38,0,38,1],[39,0,39,1],[40,0,40,1],[32,0,32,5],[33,0,33,5],[35,2,35,3],[35,4,37,4],[35,5,37,5],[36,2,36,3],[5,0,5,5],[16,0,16,5],[0,0,0,5],[2,0,4,0],[2,1,4,1],[2,2,2,3],[2,4,4,4],[2,5,4,5],[3,2,3,3],[46,0,46,1],[46,2,46,3],[46,4,46,5],[43,0,43,5],[42,0,42,5],[45,0,45,1],[45,2,45,3],[45,4,45,5]]}
["INDIVIDUAL DEVELOPMENT PLANS"]
[]
["Strengths","Development Needs","Action Plan",null,"Timeline","Resources Needed",null,null,null,null,null,null,null,null,null,null,null,"save_attempt",false]
[null,null,"(Recommended Developmental Intervention)",null,null,null,null,null,null,null,null,null,null,null,null,null,null,"all valid?",{"$f":"AND(R7:U24)","v":true}]
[null,null,"Learning Objectives","Intervention",null,null,null,"id","strength","count","index",null,"id","weakness","count","index",null,"validation helpers"]
["A. Functional Competencies",null,null,null,null,null,null,null,"-",0,null,null,null,"-",0]
[null,null,null,null,null,null,null,"",{"$error":"#REF!"},{"$error":"#REF!"},{"$f":"IF(I7=\"\",\"\",COUNTIF(I$7:I7,I7))","v":{"$error":"#REF!"}},null,"",{"$error":"#REF!"},{"$error":"#REF!"},{"$f":"IF(N7=\"\",\"\",COUNTIF(N$7:N7,N7))","v":{"$error":"#REF!"}},null,{"$f":"OR($M7=\"\", $G7=\"optional\", AND($M7<>\"\",TRIM(C7)<>\"\"))","v":true},true,true,true]
[null,null,null,null,null,null,null,"",{"$error":"#REF!"},{"$error":"#REF!"},{"$f":"IF(I8=\"\",\"\",COUNTIF(I$7:I8,I8))","v":{"$error":"#REF!"}},null,"",{"$error":"#REF!"},{"$error":"#REF!"},{"$f":"IF(N8=\"\",\"\",COUNTIF(N$7:N8,N8))","v":{"$error":"#REF!"}},null,true,true,true,true]
[null,null,null,null,null,null,null,"",{"$error":"#REF!"},{"$error":"#REF!"},{"$f":"IF(I9=\"\",\"\",COUNTIF(I$7:I9,I9))","v":{"$error":"#REF!"}},null,"",{"$error":"#REF!"},{"$error":"#REF!"},{"$f":"IF(N9=\"\",\"\",COUNTIF(N$7:N9,N9))","v":{"$error":"#REF!"}},null,true,true,true,true]
[null,null,null,null,null,null,null,"",{"$error":"#REF!"},{"$error":"#REF!"},{"$f":"IF(I10=\"\",\"\",COUNTIF(I$7:I10,I10))","v":{"$error":"#REF!"}},null,"",{"$error":"#REF!"},{"$error":"#REF!"},{"$f":"IF(N10=\"\",\"\",COUNTIF(N$7:N10,N10))","v":{"$error":"#REF!"}},null,{"$f":"OR($M10=\"\", $G10=\"optional\", AND($M10<>\"\",TRIM(C10)<>\"\"))","v":true},true,true,true]
[null,null,null,null,null,null,null,"",{"$error":"#REF!"},{"$error":"#REF!"},{"$f":"IF(I11=\"\",\"\",COUNTIF(I$7:I11,I11))","v":{"$error":"#REF!"}},null,"",{"$error":"#REF!"},{"$error":"#REF!"},{"$f":"IF(N11=\"\",\"\",COUNTIF(N$7:N11,N11))","v":{"$error":"#REF!"}},null,{"$f":"OR($M11=\"\", $G11=\"optional\", AND($M11<>\"\",TRIM(C11)<>\"\"))","v":true},true,true,true]
[null,null,null,null,null,null,null,"",{"$error":"#REF!"},{"$error":"#REF!"},{"$f":"IF(I12=\"\",\"\",COUNTIF(I$7:I12,I12))","v":{"$error":"#REF!"}},null,"",{"$error":"#REF!"},{"$error":"#REF!"},{"$f":"IF(N12=\"\",\"\",COUNTIF(N$7:N12,N12))","v":{"$error":"#REF!"}},null,true,true,true,true]
[null,null,null,null,null,null,null,"",{"$error":"#REF!"},{"$error":"#REF!"},{"$f":"IF(I13=\"\",\"\",COUNTIF(I$7:I13,I13))","v":{"$error":"#REF!"}},null,"",{"$error":"#REF!"},{"$error":"#REF!"},{"$f":"IF(N13=\"\",\"\",COUNTIF(N$7:N13,N13))","v":{"$error":"#REF!"}},null,true,true,true,true]
[null,null,null,null,null,null,null,"",{"$error":"#REF!"},{"$error":"#REF!"},{"$f":"IF(I14=\"\",\"\",COUNTIF(I$7:I14,I14))","v":{"$error":"#REF!"}},null,"",{"$error":"#REF!"},{"$error":"#REF!"},{"$f":"IF(N14=\"\",\"\",COUNTIF(N$7:N14,N14))","v":{"$error":"#REF!"}},null,true,true,true,true]
[null,null,null,null,null,null,null,"",{"$error":"#REF!"},{"$error":"#REF!"},{"$f":"IF(I15=\"\",\"\",COUNTIF(I$7:I15,I15))","v":{"$error":"#REF!"}},null,"",{"$error":"#REF!"},{"$error":"#REF!"},{"$f":"IF(N15=\"\",\"\",COUNTIF(N$7:N15,N15))","v":{"$error":"#REF!"}},null,true,true,true,true]
[null,null,null,null,null,null,null,"",{"$error":"#REF!"},{"$error":"#REF!"},{"$f":"IF(I16=\"\",\"\",COUNTIF(I$7:I16,I16))","v":{"$error":"#REF!"}},null,"",{"$error":"#REF!"},{"$error":"#REF!"},{"$f":"IF(N16=\"\",\"\",COUNTIF(N$7:N16,N16))","v":{"$error":"#REF!"}},null,true,true,true,true]
["B. Core Behavioral Competencies",null,null,null,null,null,null,null,"-",0,null,null,null,"-",0,null,null,true,true,true,true]
[null,null,null,null,null,null,null,{"$f":"IFERROR(INDEX($H$37:$H$41,SMALL(IF(ISNUMBER(MATCH($I$37:$I$41,I18,0)),MATCH(ROW($I$37:$I$41),ROW($I$37:$I$41)),\"\"),K18)),\"\")","v":""},{"$f":"IF(AND(J17<>\"\",OR(ROW()-ROW(I$17)<=3,COUNTIF(I$17:I17,I17)<>J17)),LARGE($I$37:$I$41,ROW()-ROW(I$17)),\"\")","v":{"$error":"#REF!"}},{"$f":"IF(I18=\"\",\"\",COUNTIF($I$37:$I$41,I18))","v":{"$error":"#REF!"}},{"$f":"IF(I18=\"\",\"\",COUNTIF(I$18:I18,I18))","v":{"$error":"#REF!"}},null,{"$f":"IFERROR(INDEX($H$37:$H$41,SMALL(IF(ISNUMBER(MATCH($I$37:$I$41,N18,0)),MATCH(ROW($I$37:$I$41),ROW($I$37:$I$41)),\"\"),P18)),\"\")","v":""},{"$f":"IF(AND(O17<>\"\",OR(ROW()-ROW(N$17)<=3,COUNTIF(N$17:N17,N17)<>O17)),SMALL($I$37:$I$41,ROW()-ROW(N$17)),\"\")","v":{"$error":"#REF!"}},{"$f":"IF(N18=\"\",\"\",COUNTIF($I$37:$I$41,N18))","v":{"$error":"#REF!"}},{"$f":"IF(N18=\"\",\"\",COUNTIF(N$18:N18,N18))","v":{"$error":"#REF!"}},null,true,true,true,true]
[null,null,null,null,null,null,null,{"$f":"IFERROR(INDEX($H$37:$H$41,SMALL(IF(ISNUMBER(MATCH($I$37:$I$41,I19,0)),MATCH(ROW($I$37:$I$41),ROW($I$37:$I$41)),\"\"),K19)),\"\")","v":""},{"$f":"IF(AND(J18<>\"\",OR(ROW()-ROW(I$17)<=3,COUNTIF(I$17:I18,I18)<>J18)),LARGE($I$37:$I$41,ROW()-ROW(I$17)),\"\")","v":{"$error":"#REF!"}},{"$f":"IF(I19=\"\",\"\",COUNTIF($I$37:$I$41,I19))","v":{"$error":"#REF!"}},{"$f":"IF(I19=\"\",\"\",COUNTIF(I$18:I19,I19))","v":{"$error":"#REF!"}},null,{"$f":"IFERROR(INDEX($H$37:$H$41,SMALL(IF(ISNUMBER(MATCH($I$37:$I$41,N19,0)),MATCH(ROW($I$37:$I$41),ROW($I$37:$I$41)),\"\"),P19)),\"\")","v":""},{"$f":"IF(AND(O18<>\"\",OR(ROW()-ROW(N$17)<=3,COUNTIF(N$17:N18,N18)<>O18)),SMALL($I$37:$I$41,ROW()-ROW(N$17)),\"\")","v":{"$error":"#REF!"}},{"$f":"IF(N19=\"\",\"\",COUNTIF($I$37:$I$41,N19))","v":{"$error":"#REF!"}},{"$f":"IF(N19=\"\",\"\",COUNTIF(N$18:N19,N19))","v":{"$error":"#REF!"}},null,true,true,true,true]
[null,null,null,null,null,null,null,{"$f":"IFERROR(INDEX($H$37:$H$41,SMALL(IF(ISNUMBER(MATCH($I$37:$I$41,I20,0)),MATCH(ROW($I$37:$I$41),ROW($I$37:$I$41)),\"\"),K20)),\"\")","v":""},{"$f":"IF(AND(J19<>\"\",OR(ROW()-ROW(I$17)<=3,COUNTIF(I$17:I19,I19)<>J19)),LARGE($I$37:$I$41,ROW()-ROW(I$17)),\"\")","v":{"$error":"#REF!"}},{"$f":"IF(I20=\"\",\"\",COUNTIF($I$37:$I$41,I20))","v":{"$error":"#REF!"}},{"$f":"IF(I20=\"\",\"\",COUNTIF(I$18:I20,I20))","v":{"$error":"#REF!"}},null,{"$f":"IFERROR(INDEX($H$37:$H$41,SMALL(IF(ISNUMBER(MATCH($I$37:$I$41,N20,0)),MATCH(ROW($I$37:$I$41),ROW($I$37:$I$41)),\"\"),P20)),\"\")","v":""},{"$f":"IF(AND(O19<>\"\",OR(ROW()-ROW(N$17)<=3,COUNTIF(N$17:N19,N19)<>O19)),SMALL($I$37:$I$41,ROW()-ROW(N$17)),\"\")","v":{"$error":"#REF!"}},{"$f":"IF(N20=\"\",\"\",COUNTIF($I$37:$I$41,N20))","v":{"$error":"#REF!"}},{"$f":"IF(N20=\"\",\"\",COUNTIF(N$18:N20,N20))","v":{"$error":"#REF!"}},null,true,true,true,true]
[null,null,null,null,null,null,"",{"$f":"IFERROR(INDEX($H$37:$H$41,SMALL(IF(ISNUMBER(MATCH($I$37:$I$41,I21,0)),MATCH(ROW($I$37:$I$41),ROW($I$37:$I$41)),\"\"),K21)),\"\")","v":""},{"$f":"IF(AND(J20<>\"\",OR(ROW()-ROW(I$17)<=3,COUNTIF(I$17:I20,I20)<>J20)),LARGE($I$37:$I$41,ROW()-ROW(I$17)),\"\")","v":{"$error":"#REF!"}},{"$f":"IF(I21=\"\",\"\",COUNTIF($I$37:$I$41,I21))","v":{"$error":"#REF!"}},{"$f":"IF(I21=\"\",\"\",COUNTIF(I$18:I21,I21))","v":{"$error":"#REF!"}},null,{"$f":"IFERROR(INDEX($H$37:$H$41,SMALL(IF(ISNUMBER(MATCH($I$37:$I$41,N21,0)),MATCH(ROW($I$37:$I$41),ROW($I$37:$I$41)),\"\"),P21)),\"\")","v":""},{"$f":"IF(AND(O20<>\"\",OR(ROW()-ROW(N$17)<=3,COUNTIF(N$17:N20,N20)<>O20)),SMALL($I$37:$I$41,ROW()-ROW(N$17)),\"\")","v":{"$error":"#REF!"}},{"$f":"IF(N21=\"\",\"\",COUNTIF($I$37:$I$41,N21))","v":{"$error":"#REF!"}},{"$f":"IF(N21=\"\",\"\",COUNTIF(N$18:N21,N21))","v":{"$error":"#REF!"}},null,true,true,true,true]
[null,null,null,null,null,null,"",{"$f":"IFERROR(INDEX($H$37:$H$41,SMALL(IF(ISNUMBER(MATCH($I$37:$I$41,I22,0)),MATCH(ROW($I$37:$I$41),ROW($I$37:$I$41)),\"\"),K22)),\"\")","v":""},{"$f":"IF(AND(J21<>\"\",OR(ROW()-ROW(I$17)<=3,COUNTIF(I$17:I21,I21)<>J21)),LARGE($I$37:$I$41,ROW()-ROW(I$17)),\"\")","v":{"$error":"#REF!"}},{"$f":"IF(I22=\"\",\"\",COUNTIF($I$37:$I$41,I22))","v":{"$error":"#REF!"}},{"$f":"IF(I22=\"\",\"\",COUNTIF(I$18:I22,I22))","v":{"$error":"#REF!"}},null,{"$f":"IFERROR(INDEX($H$37:$H$41,SMALL(IF(ISNUMBER(MATCH($I$37:$I$41,N22,0)),MATCH(ROW($I$37:$I$41),ROW($I$37:$I$41)),\"\"),P22)),\"\")","v":""},{"$f":"IF(AND(O21<>\"\",OR(ROW()-ROW(N$17)<=3,COUNTIF(N$17:N21,N21)<>O21)),SMALL($I$37:$I$41,ROW()-ROW(N$17)),\"\")","v":{"$error":"#REF!"}},{"$f":"IF(N22=\"\",\"\",COUNTIF($I$37:$I$41,N22))","v":{"$error":"#REF!"}},{"$f":"IF(N22=\"\",\"\",COUNTIF(N$18:N22,N22))","v":{"$error":"#REF!"}},null,true,true,true,true]
[]
[null,null,null,null,null,null,"",{"$f":"IFERROR(INDEX($H$37:$H$41,SMALL(IF(ISNUMBER(MATCH($I$37:$I$41,I24,0)),MATCH(ROW($I$37:$I$41),ROW($I$37:$I$41)),\"\"),K24)),\"\")","v":""},{"$f":"IF(AND(J22<>\"\",OR(ROW()-ROW(I$17)<=3,COUNTIF(I$17:I22,I22)<>J22)),LARGE($I$37:$I$41,ROW()-ROW(I$17)),\"\")","v":{"$error":"#REF!"}},{"$f":"IF(I24=\"\",\"\",COUNTIF($I$37:$I$41,I24))","v":{"$error":"#REF!"}},{"$f":"IF(I24=\"\",\"\",COUNTIF(I$18:I24,I24))","v":{"$error":"#REF!"}},null,{"$f":"IFERROR(INDEX($H$37:$H$41,SMALL(IF(ISNUMBER(MATCH($I$37:$I$41,N24,0)),MATCH(ROW($I$37:$I$41),ROW($I$37:$I$41)),\"\"),P24)),\"\")","v":""},{"$f":"IF(AND(O22<>\"\",OR(ROW()-ROW(N$17)<=3,COUNTIF(N$17:N22,N22)<>O22)),SMALL($I$37:$I$41,ROW()-ROW(N$17)),\"\")","v":{"$error":"#REF!"}},{"$f":"IF(N24=\"\",\"\",COUNTIF($I$37:$I$41,N24))","v":{"$error":"#REF!"}},{"$f":"IF(N24=\"\",\"\",COUNTIF(N$18:N24,N24))","v":{"$error":"#REF!"}},null,true,true,true,true]
["C. Leadership Competencies",null,null,null,null,null,"",{"$f":"IFERROR(INDEX($H$37:$H$41,SMALL(IF(ISNUMBER(MATCH($I$37:$I$41,I25,0)),MATCH(ROW($I$37:$I$41),ROW($I$37:$I$41)),\"\"),K25)),\"\")","v":""},{"$f":"IF(AND(J23<>\"\",OR(ROW()-ROW(I$17)<=3,COUNTIF(I$17:I23,I23)<>J23)),LARGE($I$37:$I$41,ROW()-ROW(I$17)),\"\")","v":""},{"$f":"IF(I25=\"\",\"\",COUNTIF($I$37:$I$41,I25))","v":""},{"$f":"IF(I25=\"\",\"\",COUNTIF(I$18:I25,I25))","v":""},null,{"$f":"IFERROR(INDEX($H$37:$H$41,SMALL(IF(ISNUMBER(MATCH($I$37:$I$41,N25,0)),MATCH(ROW($I$37:$I$41),ROW($I$37:$I$41)),\"\"),P25)),\"\")","v":""},{"$f":"IF(AND(O23<>\"\",OR(ROW()-ROW(N$17)<=3,COUNTIF(N$17:N23,N23)<>O23)),SMALL($I$37:$I$41,ROW()-ROW(N$17)),\"\")","v":""},{"$f":"IF(N25=\"\",\"\",COUNTIF($I$37:$I$41,N25))","v":""},{"$f":"IF(N25=\"\",\"\",COUNTIF(N$18:N25,N25))","v":""},null,{"$f":"OR($M25=\"\", $G25=\"optional\", AND($M25<>\"\",TRIM(C25)<>\"\"))","v":true},{"$f":"OR($M25=\"\", $G25=\"optional\", AND($M25<>\"\",TRIM(D25)<>\"\"))","v":true},{"$f":"OR($M25=\"\", $G25=\"optional\", AND($M25<>\"\",TRIM(E25)<>\"\"))","v":true},{"$f":"OR($M25=\"\", $G25=\"optional\", AND($M25<>\"\",TRIM(F25)<>\"\"))","v":true}]
[]
[]
[]
[]
[]
[]
[]
["PPST Indicators for Development from the Teacher’s Commitment Form"]
["(Maximum of three (3) PPST Indicators with below the minimum performance.)"]
[]
["PPST Indicator",null,"Action Plan",null,"Timeline","Resources"]
[null,null,"(Recommended Developmental Intervention)",null,null,null,null,"Self-Management",{"$error":"#REF!"}]
[null,null,"Learning Objectives","Intervention",null,null,null,"Professionalism and Ethics",{"$error":"#REF!"}]
[null,null,null,null,null,null,null,"Teamwork",{"$error":"#REF!"}]
[null,null,null,null,null,null,null,"Service Orientation",{"$error":"#REF!"}]
[null,null,null,null,null,null,null,"Innovation",{"$error":"#REF!"}]
[]
["Feedback"]
[]
[]
[]
["RATEE",null,"RATER",null,"APPROVING AUTHORITY"]

{"sheet":"data1","index":11,"n_rows":230,"n_cols":12,"rows_kept":230,"cut":false,"hidden":true,"merged":[]}
["Region","Division","div_code",null,"Region","reg_code","named_reference","lookup_reference","Offering","Levels","Offering","Class lookup"]
["BARMM","Basilan","BARMM-01",null,"Bangsamoro Autonomous Region in Muslim Mindanao (BARMM)","BARMM","BARMM_divlist","BARMM_vlookup","Kindergarten","Kindergarten","Kindergarten","Class1"]
["BARMM","Cotabato City","BARMM-10",null,"Cordillera Administrative Region (CAR)","CAR","CAR_divlist","CAR_vlookup","Kinder to Grade 6","Kindergarten","Kinder to Grade 6","Class2"]
["BARMM","Lamitan City","BARMM-02",null,"National Capital Region (NCR)","NCR","NCR_divlist","NCR_vlookup","Kinder to Grade 6","Elementary","Kinder to Grade 10","Class3"]
["BARMM","Lanao del Sur I","BARMM-03",null,"I - Ilocos Region","REG1","REG1_divlist","REG1_vlookup","Kinder to Grade 10","Kindergarten","Kinder to Grade 12","Class4"]
["BARMM","Lanao del Sur II","BARMM-04",null,"II - Cagayan Valley","REG2","REG2_divlist","REG2_vlookup","Kinder to Grade 10","Elementary","Kinder to Grade 6; Grade 11-12","Class5"]
["BARMM","Maguindanao I","BARMM-05",null,"III - Central Luzon","REG3","REG3_divlist","REG3_vlookup","Kinder to Grade 10","Junior High School","Kinder to Grade 10 attached to Tertiary","Class6"]
["BARMM","Maguindanao II","BARMM-06",null,"IV-A - CALABARZON","REG4A","REG4A_divlist","REG4A_vlookup","Kinder to Grade 12","Kindergarten","Kinder to Grade 12 attached to Tertiary","Class7"]
["BARMM","Marawi City","BARMM-07",null,"IV-B - MIMAROPA","REG4B","REG4B_divlist","REG4B_vlookup","Kinder to Grade 12","Elementary","Kindergarten; Grade 7-10","Class8"]
["BARMM","Sulu 1","BARMM-08",null,"V - Bicol Region","REG5","REG5_divlist","REG5_vlookup","Kinder to Grade 12","Junior High School","Kindergarten; Grade 7-10; Grade 11-12","Class9"]
["BARMM","Tawi-Tawi","BARMM-09",null,"VI - Western Visayas","REG6","REG6_divlist","REG6_vlookup","Kinder to Grade 12","Senior High School","Kindergarten; Grade 11-12","Class10"]
["BARMM","Special Geographic Areas (63 Brgys in N. Cot)","BARMM-11",null,"VII - Central Visayas","REG7","REG7_divlist","REG7_vlookup","Kinder to Grade 6; Grade 11-12","Kindergarten","Grade 1-6","Class11"]
["CAR","Abra","CAR-01",null,"VIII - Eastern Visayas","REG8","REG8_divlist","REG8_vlookup","Kinder to Grade 6; Grade 11-12","Elementary","Grade 1-6; Grade 7-10","Class12"]
["CAR","Apayao","CAR-02",null,"IX - Zamboanga Peninsula","REG9","REG9_divlist","REG9_vlookup","Kinder to Grade 6; Grade 11-12","Senior High School","Grade 1-6; Grade 11-12","Class13"]
["CAR","Baguio City","CAR-03",null,"X - Northern Mindanao","REG10","REG10_divlist","REG10_vlookup","Kinder to Grade 10 attached to Tertiary","Kindergarten","Grade 1-6; Grade 7-10; Grade 11-12","Class14"]
["CAR","Benguet","CAR-04",null,"XI - Davao Region","REG11","REG11_divlist","REG11_vlookup","Kinder to Grade 10 attached to Tertiary","Elementary","Grade 7-10","Class15"]
["CAR","Ifugao","CAR-05",null,"XII - SOCCSKSARGEN","REG12","REG12_divlist","REG12_vlookup","Kinder to Grade 10 attached to Tertiary","Junior High School","Grade 7-10; Grade 11-12","Class16"]
["CAR","Kalinga","CAR-06",null,"XIII - CARAGA Region","REG13","REG13_divlist","REG13_vlookup","Kinder to Grade 12 attached to Tertiary","Kindergarten","Grade 11-12","Class17"]
["CAR","Mt. Province","CAR-07",null,null,null,null,null,"Kinder to Grade 12 attached to Tertiary","Elementary","Community-based Learning Center","Class18"]
["CAR","Tabuk City","CAR-08",null,null,null,null,null,"Kinder to Grade 12 attached to Tertiary","Junior High School"]
["NCR","Caloocan City","NCR-01",null,null,null,null,null,"Kinder to Grade 12 attached to Tertiary","Senior High School"]
["NCR","Las Pinas City","NCR-02",null,null,null,null,null,"Kindergarten; Grade 7-10","Kindergarten"]
["NCR","Makati City","NCR-03",null,null,null,null,null,"Kindergarten; Grade 7-10","Junior High School"]
["NCR","Malabon City","NCR-04",null,null,null,null,null,"Kindergarten; Grade 7-10; Grade 11-12","Kindergarten"]
["NCR","Mandaluyong City","NCR-05",null,null,null,null,null,"Kindergarten; Grade 7-10; Grade 11-12","Junior High School"]
["NCR","Manila","NCR-06",null,null,null,null,null,"Kindergarten; Grade 7-10; Grade 11-12","Senior High School"]
["NCR","Marikina City","NCR-07",null,null,null,null,null,"Kindergarten; Grade 11-12","Kindergarten"]
["NCR","Muntinlupa City","NCR-08",null,null,null,null,null,"Kindergarten; Grade 11-12","Senior High School"]
["NCR","Navotas City","NCR-09",null,null,null,null,null,"Grade 1-6","Elementary"]
["NCR","Paranaque City","NCR-10",null,null,null,null,null,"Grade 1-6; Grade 7-10","Elementary"]
["NCR","Pasay City","NCR-11",null,null,null,null,null,"Grade 1-6; Grade 7-10","Junior High School"]
["NCR","Pasig City","NCR-12",null,null,null,null,null,"Grade 1-6; Grade 11-12","Elementary"]
["NCR","Quezon City","NCR-13",null,null,null,null,null,"Grade 1-6; Grade 11-12","Senior High School"]
["NCR","San Juan City","NCR-14",null,null,null,null,null,"Grade 1-6; Grade 7-10; Grade 11-12","Elementary"]
["NCR","Taguig City-Pateros","NCR-15",null,null,null,null,null,"Grade 1-6; Grade 7-10; Grade 11-12","Junior High School"]
["NCR","Valenzuela City","NCR-16",null,null,null,null,null,"Grade 1-6; Grade 7-10; Grade 11-12","Senior High School"]
["Region I","Alaminos City","REG1-01",null,null,null,null,null,"Grade 7-10","Junior High School"]
["Region I","Batac City","REG1-02",null,null,null,null,null,"Grade 7-10; Grade 11-12","Junior High School"]
["Region I","Candon City","REG1-03",null,null,null,null,null,"Grade 7-10; Grade 11-12","Senior High School"]
["Region I","Dagupan City","REG1-04",null,null,null,null,null,"Grade 11-12","Senior High School"]
["Region I","Ilocos Norte","REG1-05",null,null,null,null,null,"Community-based Learning Center","Elementary"]
["Region I","Ilocos Sur","REG1-06",null,null,null,null,null,"Community-based Learning Center","Junior High School"]
["Region I","La Union","REG1-07"]
["Region I","Laoag City","REG1-08"]
["Region I","Pangasinan I","REG1-09"]
["Region I","Pangasinan II","REG1-10"]
["Region I","San Carlos City","REG1-11"]
["Region I","San Fernando City","REG1-12"]
["Region I","Urdaneta City","REG1-13"]
["Region I","Vigan City","REG1-14"]
["Region II","Batanes","REG2-01"]
["Region II","Cagayan","REG2-02"]
["Region II","Cauayan City","REG2-03"]
["Region II","Ilagan City","REG2-04"]
["Region II","Isabela Province","REG2-05"]
["Region II","Nueva Vizcaya","REG2-06"]
["Region II","Quirino","REG2-07"]
["Region II","Santiago City","REG2-08"]
["Region II","Tuguegarao City","REG2-09"]
["Region III","Angeles City","REG3-01"]
["Region III","Aurora","REG3-02"]
["Region III","Balanga City","REG3-03"]
["Region III","Baliwag City","REG3-21"]
["Region III","Bataan","REG3-04"]
["Region III","Bulacan Province","REG3-05"]
["Region III","Cabanatuan City","REG3-06"]
["Region III","Gapan City","REG3-07"]
["Region III","Mabalacat City","REG3-08"]
["Region III","Malolos City","REG3-09"]
["Region III","Meycauayan","REG3-10"]
["Region III","Nueva Ecija","REG3-11"]
["Region III","Olongapo City","REG3-12"]
["Region III","Pampanga","REG3-13"]
["Region III","San Fernando City","REG3-14"]
["Region III","San Jose City","REG3-15"]
["Region III","San Jose del Monte","REG3-16"]
["Region III","Science City of Munoz","REG3-17"]
["Region III","Tarlac City","REG3-18"]
["Region III","Tarlac Province","REG3-19"]
["Region III","Zambales","REG3-20"]
["Region IV-A","Antipolo City","REG4A-01"]
["Region IV-A","Bacoor City","REG4A-02"]
["Region IV-A","Batangas City","REG4A-03"]
["Region IV-A","Batangas Province","REG4A-04"]
["Region IV-A","Binan City","REG4A-05"]
["Region IV-A","Cabuyao City","REG4A-06"]
["Region IV-A","Calamba City","REG4A-07"]
["Region IV-A","Cavite City","REG4A-08"]
["Region IV-A","Cavite Province","REG4A-09"]
["Region IV-A","Dasmarinas City","REG4A-10"]
["Region IV-A","General Trias City","REG4A-11"]
["Region IV-A","Imus City","REG4A-12"]
["Region IV-A","Laguna","REG4A-13"]
["Region IV-A","Lipa City","REG4A-14"]
["Region IV-A","Lucena City","REG4A-15"]
["Region IV-A","Quezon Province","REG4A-16"]
["Region IV-A","Rizal","REG4A-17"]
["Region IV-A","San Pablo City","REG4A-18"]
["Region IV-A","San Pedro","REG4A-22"]
["Region IV-A","Sta. Rosa City","REG4A-19"]
["Region IV-A","Tanauan City","REG4A-20"]
["Region IV-A","Tayabas City","REG4A-21"]
["Region IV-A","Sto. Tomas City","REG4A-23"]
["Region IV-B","Calapan City","REG4B-01"]
["Region IV-B","Marinduque","REG4B-02"]
["Region IV-B","Occidental Mindoro","REG4B-03"]
["Region IV-B","Oriental Mindoro","REG4B-04"]
["Region IV-B","Palawan","REG4B-05"]
["Region IV-B","Puerto Princesa","REG4B-06"]
["Region IV-B","Romblon","REG4B-07"]
["Region V","Albay","REG5-01"]
["Region V","Camarines Norte","REG5-02"]
["Region V","Camarines Sur","REG5-03"]
["Region V","Catanduanes","REG5-04"]
["Region V","Iriga City","REG5-05"]
["Region V","Legazpi City","REG5-06"]
["Region V","Ligao City","REG5-07"]
["Region V","Masbate Province","REG5-08"]
["Region V","Masbate City","REG5-09"]
["Region V","Naga City","REG5-10"]
["Region V","Sorsogon City","REG5-11"]
["Region V","Sorsogon Province","REG5-12"]
["Region V","Tabaco City","REG5-13"]
["Region VI","Aklan","REG6-01"]
["Region VI","Antique","REG6-02"]
["Region VI","Bacolod City","REG6-03"]
["Region VI","Bago City","REG6-04"]
["Region VI","Cadiz City","REG6-05"]
["Region VI","Capiz","REG6-06"]
["Region VI","Escalante City","REG6-07"]
["Region VI","Guimaras","REG6-08"]
["Region VI","Himamaylan City","REG6-09"]
["Region VI","Iloilo City","REG6-10"]
["Region VI","Iloilo Province","REG6-11"]
["Region VI","Kabankalan City","REG6-12"]
["Region VI","La Carlota City","REG6-13"]
["Region VI","Negros Occidental","REG6-14"]
["Region VI","Passi City","REG6-15"]
["Region VI","Roxas City","REG6-16"]
["Region VI","Sagay City","REG6-17"]
["Region VI","San Carlos City","REG6-18"]
["Region VI","Silay City","REG6-19"]
["Region VI","Sipalay City","REG6-20"]
["Region VI","Victorias City","REG6-21"]
["Region VII","Bais City","REG7-01"]
["Region VII","Bayawan City","REG7-02"]
["Region VII","Bogo City","REG7-03"]
["Region VII","Bohol","REG7-04"]
["Region VII","Carcar City","REG7-05"]
["Region VII","Cebu City","REG7-06"]
["Region VII","Cebu Province","REG7-07"]
["Region VII","Danao","REG7-08"]
["Region VII","Dumaguete City","REG7-09"]
["Region VII","Guihulngan City","REG7-10"]
["Region VII","Lapu-Lapu City ","REG7-11"]
["Region VII","Mandaue City","REG7-12"]
["Region VII","Naga City","REG7-13"]
["Region VII","Negros Oriental","REG7-14"]
["Region VII","Siquijor","REG7-15"]
["Region VII","Tagbilaran City","REG7-16"]
["Region VII","Talisay City","REG7-17"]
["Region VII","Tanjay City","REG7-18"]
["Region VII","Toledo City","REG7-19"]
["Region VII","Canlaon City","REG7-20"]
["Region VIII","Baybay City","REG8-01"]
["Region VIII","Biliran","REG8-02"]
["Region VIII","Borongan City","REG8-03"]
["Region VIII","Calbayog City","REG8-04"]
["Region VIII","Catbalogan City","REG8-05"]
["Region VIII","Eastern Samar","REG8-06"]
["Region VIII","Leyte","REG8-07"]
["Region VIII","Maasin City","REG8-08"]
["Region VIII","Northern Samar","REG8-09"]
["Region VIII","Ormoc City","REG8-10"]
["Region VIII","Southern Leyte","REG8-11"]
["Region VIII","Tacloban City","REG8-12"]
["Region VIII","Western Samar","REG8-13"]
["Region IX","Dapitan City","REG9-01"]
["Region IX","Dipolog City","REG9-02"]
["Region IX","Isabela City","REG9-03"]
["Region IX","Pagadian City","REG9-04"]
["Region IX","Zamboanga City","REG9-05"]
["Region IX","Zamboanga del Norte","REG9-06"]
["Region IX","Zamboanga del Sur","REG9-07"]
["Region IX","Zamboanga Sibugay","REG9-08"]
["Region X","Bukidnon","REG10-01"]
["Region X","Cagayan de Oro City","REG10-02"]
["Region X","Camiguin","REG10-03"]
["Region X","El Salvador City","REG10-04"]
["Region X","Gingoog City","REG10-05"]
["Region X","Iligan City","REG10-06"]
["Region X","Lanao Del Norte","REG10-07"]
["Region X","Malaybalay City","REG10-08"]
["Region X","Misamis Occidental","REG10-09"]
["Region X","Misamis Oriental","REG10-10"]
["Region X","Oroquieta City","REG10-11"]
["Region X","Ozamiz City","REG10-12"]
["Region X","Tangub City","REG10-13"]
["Region X","Valencia City","REG10-14"]
["Region XI","Davao de Oro (Compostela Valley)","REG11-01"]
["Region XI","Davao City","REG11-02"]
["Region XI","Davao del Norte","REG11-03"]
["Region XI","Davao del Sur","REG11-04"]
["Region XI","Davao Occidental","REG11-05"]
["Region XI","Davao Oriental","REG11-06"]
["Region XI","Digos city","REG11-07"]
["Region XI","Mati City","REG11-08"]
["Region XI","Panabo City","REG11-09"]
["Region XI","Samal City","REG11-10"]
["Region XI","Tagum City","REG11-11"]
["Region XII","Cotabato Province","REG12-02"]
["Region XII","General Santos City","REG12-03"]
["Region XII","Kidapawan City","REG12-04"]
["Region XII","Koronadal City","REG12-05"]
["Region XII","Sarangani","REG12-06"]
["Region XII","South Cotabato","REG12-07"]
["Region XII","Sultan Kudarat","REG12-08"]
["Region XII","Tacurong City","REG12-09"]
["Caraga","Agusan del Norte","REG13-01"]
["Caraga","Agusan del Sur","REG13-02"]
["Caraga","Bayugan City","REG13-03"]
["Caraga","Bislig City","REG13-04"]
["Caraga","Butuan City","REG13-05"]
["Caraga","Cabadbaran City","REG13-06"]
["Caraga","Dinagat Islands","REG13-07"]
["Caraga","Siargao","REG13-08"]
["Caraga","Surigao City","REG13-09"]
["Caraga","Surigao del Norte","REG13-10"]
["Caraga","Surigao del Sur","REG13-11"]
["Caraga","Tandag City","REG13-12"]

{"sheet":"data2","index":12,"n_rows":36,"n_cols":28,"rows_kept":36,"cut":false,"hidden":true,"merged":[]}
["HP_COT","RPMS 5-pt scale","P_COT","RPMS 5-pt scale","rating","description","5-PT Scale","School Type","School Size","classification","level taught",null,"grade level","position","age","Sex","Employment Status","Total Number of Years in Teaching","Specialization","Highest Degree Obtained","subjects","raters","career_stage","level_code","teacher_type","type_code","objective_type","sy_end year when lowest rating is applied to Q when COT is incomplete"]
[8,5,7,5,0,"Poor",1,"Urban","Small","Elementary","Kindergarten","kinder_list","Kindergarten","Teacher I","Under 25 years old","Male","Regular Permanent","0-3 years","English","Bachelor's Degree","All Subjects","Schools Division Superintendent","Beginning towards Proficient","BtP","Regular Teacher","R","COI",{"$f":"IF(AB5,sy_end,\"\")","v":""}]
[7,4,6,4,1.5,"Unsatisfactory",2,"Rural","Medium","Junior High School","Elementary","elemgrade_list","Grade 1","Teacher II","25-30","Female","Provisional","4-10 years","Filipino","Master's Degree","MTB-MLE","Assistant Schools Division Superintendent","Proficient","P","Full-time Teacher Broadcaster","TB","NCOI"]
[6,3,5,3,2.5,"Satisfactory",3,null,"Large","Senior High School","Junior High School","jhsgrade_list","Grade 2","Teacher III","31-35",null,"Substitute","More than 10 years","Mathematics","Doctorate Degree","Madrasah ALIVE","CID Chief","Highly Proficient","HP",null,null,null,"lowest rating if not met"]
[5,2,4,2,3.5,"Very Satisfactory",4,null,"Very Large",null,"Senior High School","shsgrade_list","Grade 3","Teacher IV","36-40",null,"Contractual",null,"General Science",null,"Filipino","Education Program Supervisor","Distinguished","D",null,null,null,false]
[4,1,3,1,4.5,"Outstanding",5,null,null,null,null,null,"Grade 4","Teacher V","41-45",null,null,null,"Biology",null,"English","Education Program Specialist II",null,null,null,null,"indicator_type"]
[null,null,null,null,null,null,null,null,null,null,null,null,"Grade 5","Teacher VI","46-50",null,null,null,"Chemistry",null,"Mathematics","Public Schools District Supervisor",null,null,null,null,"COI"]
[null,null,null,null,null,null,null,null,null,null,null,null,"Grade 6","Teacher VII","51-55",null,null,null,"Physics",null,"Science","Principal IV",null,null,null,null,"NCOI"]
[null,null,null,null,null,null,null,null,null,null,null,null,"SPED","Master Teacher I","Over 55 years old",null,null,null,"Social Science",null,"Araling Panlipunan","Principal III",null,null,null,null,"COI/NCOI"]
[null,null,null,null,null,null,null,null,null,null,null,null,"Multigrade","Master Teacher II",null,null,null,null,"Early Childhood Education",null,"Edukasyon sa Pagpapakatao","Principal II"]
[null,null,null,null,null,null,null,null,null,null,null,null,"Grade 7","Master Teacher III",null,null,null,null,"Values Education",null,"MAPEH","Principal I"]
[null,null,null,null,null,null,null,null,null,null,null,null,"Grade 8","Master Teacher IV",null,null,null,null,"SPED",null,"Music","Assistant School Principal I"]
[null,null,null,null,null,null,null,null,null,null,null,null,"Grade 9",null,null,null,null,null,"Music",null,"Arts","Assistant School Principal II"]
[null,null,null,null,null,null,null,null,null,null,null,null,"Grade 10",null,null,null,null,null,"Arts",null,"Physical Education","Special School Principal I"]
[null,null,null,null,null,null,null,null,null,null,null,null,"Grade 11",null,null,null,null,null,"Physical Education",null,"Health","Special School Principal II"]
[null,null,null,null,null,null,null,null,null,null,null,null,"Grade 12",null,null,null,null,null,"Health",null,"TLE/EPP-HE","Vocational School Administrator I"]
[null,null,null,null,null,null,null,null,null,null,null,null,"Multigrade",null,null,null,null,null,"TLE/HE/TVL",null,"TLE/EPP-LE/Tech-Voc","Vocational School Administrator II"]
[null,null,null,null,null,null,null,null,null,null,null,null,null,null,null,null,null,null,null,null,"ALS","Head Teacher VI"]
[null,null,null,null,null,null,null,null,null,null,null,null,null,null,null,null,null,null,null,null,"IPED","Head Teacher V"]
[null,null,null,null,null,null,null,null,null,null,null,null,null,null,null,null,null,null,null,null,"Special Programs","Head Teacher IV"]
[null,null,null,null,null,null,null,null,null,null,null,null,null,null,null,null,null,null,null,null,"No Classroom Observation (w/ valid reason per DM 008, s. 2023 items 22 & 23)","Head Teacher III"]
[null,null,null,null,null,null,null,null,null,null,null,null,null,null,null,null,null,null,null,null,"No Classroom Observation (invalid reason)","Head Teacher II"]
[null,null,null,null,null,null,null,null,null,null,null,null,null,null,null,null,null,null,null,null,"ACAD-ABM","Head Teacher I"]
[null,null,null,null,null,null,null,null,null,null,null,null,null,null,null,null,null,null,null,null,"ACAD-HUMSS","Master Teacher IV"]
[null,null,null,null,null,null,null,null,null,null,null,null,null,null,null,null,null,null,null,null,"ACAD-STEM","Master Teacher III"]
[null,null,null,null,null,null,null,null,null,null,null,null,null,null,null,null,null,null,null,null,"ACAD-General Academic","Master Teacher II"]
[null,null,null,null,null,null,null,null,null,null,null,null,null,null,null,null,null,null,null,null,"ACAD-Pre-Baccalaureate Maritime","Master Teacher I"]
[null,null,null,null,null,null,null,null,null,null,null,null,null,null,null,null,null,null,null,null,"TVL-Agri-Fishery","Officer-in-Charge"]
[null,null,null,null,null,null,null,null,null,null,null,null,null,null,null,null,null,null,null,null,"TVL-HE","Teacher-in-Charge"]
[null,null,null,null,null,null,null,null,null,null,null,null,null,null,null,null,null,null,null,null,"TVL-ICT"]
[null,null,null,null,null,null,null,null,null,null,null,null,null,null,null,null,null,null,null,null,"TVL-Industrial Arts"]
[null,null,null,null,null,null,null,null,null,null,null,null,null,null,null,null,null,null,null,null,"TVL-Maritime"]
[null,null,null,null,null,null,null,null,null,null,null,null,null,null,null,null,null,null,null,null,"Sports"]
[null,null,null,null,null,null,null,null,null,null,null,null,null,null,null,null,null,null,null,null,"Arts and Design"]
[null,null,null,null,null,null,null,null,null,null,null,null,null,null,null,null,null,null,null,null,"No Classroom Observation (w/ valid reason per DM 008, s. 2023 items 22 & 23)"]
[null,null,null,null,null,null,null,null,null,null,null,null,null,null,null,null,null,null,null,null,"No Classroom Observation (invalid reason)"]